Workbook

Sheet SCHEDULE MJL-D1
A1: AMEREN MISSOURI
A2: ORIGINAL COST OF ELECTRIC PLANT
A3: ="BY FUNCTIONAL CLASSIFICATION "&'SCHEDULE MJL-D3'!A3:G3 -> BY FUNCTIONAL CLASSIFICATION FOR THE TWELVE MONTHS ENDED MARCH 31, 2022
A4: ($000)
E7: TOTALS | G7: PRO FORMA
E8: PER | F8: PRO FORMA | G8: ELECTRIC
A9: LINE | C9: FUNCTIONAL CLASSIFICATION | E9: BOOKS | F9: ADJUSTMENTS | G9: TOTALS
C10: (A) | E10: (B) | F10: (C) | G10: (D)
C11: INTANGIBLE PLANT
A12: 1 | C12: FRANCHISES | E12: =+ROUND([1]Plant!$B$10*0.001,0) -> 100102 | F12: =+ROUND(SUM([1]Plant!$C$10:$G$10)*0.001,0) -> 0 | G12: =SUM(E12:F12) -> 100102
A13: =1+A12 -> 2 | C13: CALLAWAY LIFE EXTENSION DEFERRAL | E13: =+ROUND([1]Plant!$B$11*0.001,0) -> 2812 | F13: =+ROUND(SUM([1]Plant!$C$11:$G$11)*0.001,0) -> 0 | G13: =SUM(E13:F13) -> 2812
A14: 3 | C14: MISC INTANGIBLE PLANT | E14: =+ROUND([1]Plant!$B$12*0.001,0) -> 582853 | F14: =+ROUND(SUM([1]Plant!$C$12:$G$12)*0.001,0) -> 54772 | G14: =SUM(E14:F14) -> 637625
A15: =1+A14 -> 4 | C15: TOTAL INTANGIBLE PLANT | E15: =SUM(E12:E14) -> 685767 | F15: =SUM(F12:F14) -> 54772 | G15: =SUM(G12:G14) -> 740539
C17: PRODUCTION PLANT
A18: =1+A15 -> 5 | C18: NUCLEAR | E18: =+ROUND([1]Plant!$B$17*0.001,0) -> 3522205 | F18: =+ROUND(SUM([1]Plant!$C$17:$G$17)*0.001,0) -> -32615 | G18: =SUM(E18:F18) -> 3489590
A19: =1+A18 -> 6 | C19: CALLAWAY POST OPERATIONAL | E19: =+ROUND([1]Plant!$B$18*0.001,0) -> 116731 | F19: =+ROUND(SUM([1]Plant!$C$18:$G$18)*0.001,0) -> 0 | G19: 116731
A20: =1+A19 -> 7 | C20: STEAM | E20: =+ROUND(([1]Plant!$B$19+[1]Plant!$B$20)*0.001,0)+1 -> 5083574 | F20: =+ROUND(SUM([1]Plant!$C$19:$G$20)*0.001,0) -> -677631 | G20: 4405943
A21: =1+A20 -> 8 | C21: HYDRAULIC | E21: =+ROUND([1]Plant!$B$21*0.001,0) -> 623350 | F21: =+ROUND(SUM([1]Plant!$C$21:$G$21)*0.001,0) -> 26054 | G21: 649404
A22: =1+A21 -> 9 | C22: WIND | E22: =+ROUND([1]Plant!$B$22*0.001,0) -> 1204170 | F22: =+ROUND(SUM([1]Plant!$C$22:$G$22)*0.001,0) -> -39436 | G22: 1164734
A23: 10 | C23: OTHER | E23: =+ROUND([1]Plant!$B$23*0.001,0) -> 1301491 | F23: =+ROUND(SUM([1]Plant!$C$23:$G$23)*0.001,0) -> 25336 | G23: 1326827
A24: 11 | C24: TOTAL PRODUCTION PLANT | E24: =SUM(E18:E23) -> 11851521 | F24: =SUM(F18:F23) -> -698292 | G24: =SUM(G18:G23) -> 11153229
A26: =1+A24 -> 12 | C26: TRANSMISSION PLANT | E26: =+ROUND([1]Plant!$B$26*0.001,0) -> 1670668 | F26: =+ROUND(SUM([1]Plant!$C$26:$G$26)*0.001,0) -> 209848 | G26: =SUM(E26:F26) -> 1880516
A28: =+A26+1 -> 13 | C28: DISTRIBUTION PLANT | E28: =+ROUND([1]Plant!$B$28*0.001,0) -> 7423433 | F28: =+ROUND(SUM([1]Plant!$C$28:$G$28)*0.001,0) -> 733300 | G28: =SUM(E28:F28) -> 8156733
A30: =1+A28 -> 14 | C30: GENERAL PLANT | E30: =+ROUND([1]Plant!$B$30*0.001,0) -> 918473 | F30: =+ROUND(SUM([1]Plant!$C$30:$G$30)*0.001,0) -> 91118 | G30: =SUM(E30:F30) -> 1009591
A32: =1+A30 -> 15 | C32: INCENTIVE COMPENSATION CAPITALIZED | E32: =+ROUND([1]Plant!$B32*0.001,0) -> 0 | F32: =+ROUND(SUM([1]Plant!$C$32:$G$32)*0.001,0) -> -57150 | G32: =SUM(E32:F32) -> -57150
A34: =1+A32 -> 16 | C34: TOTAL PLANT IN SERVICE | E34: =E15+SUM(E24:E32) -> 22549862 | F34: =F15+SUM(F24:F32) -> 333596 | G34: =G15+SUM(G24:G32) -> 22883458
C38: PRO FORMA ADJUSTMENTS
A39: =1+A34 -> 17 | B39: -1 | C39: Eliminate Plant balances related to FAS 143 Asset Retirement Obligation and ASC 842 Leases
A40: =1+A39 -> 18 | D40: NUCLEAR | F40: =+ROUND([1]Plant!$C$17*0.001,0) -> -101675
A41: =1+A40 -> 19 | D41: STEAM | F41: =+ROUND([1]Plant!$C$19*0.001,0) -> -140108
A42: =1+A41 -> 20 | D42: WIND | F42: =+ROUND([1]Plant!$C$22*0.001,0) -> -52681
A43: 21 | D43: DISTRIBUTION | F43: =+ROUND([1]Plant!$C$28*0.001,0) -> 0
A44: 22 | D44: OTHER | F44: =+ROUND([1]Plant!$C$23*0.001,0) -> -428
A45: 23 | D45: GENERAL | F45: =+ROUND([1]Plant!$C$30*0.001,0) -> -3737
A46: 24 | D46: TOTAL | G46: =SUM(F40:F45) -> -298629
A48: =1+A46 -> 25 | B48: -2 | C48: Plant Additions for the true-up period
A49: =1+A48 -> 26 | D49: INTANGIBLE FRANCHISES | F49: =+ROUND(([1]Plant!$D$10)*0.001,0) -> 0
A50: 27 | D50: OTHER INTANGIBLE PLANT | F50: =+ROUND([1]Plant!$D$12*0.001,0) -> 79992
A51: 28 | D51: NUCLEAR | F51: =+ROUND([1]Plant!$D$17*0.001,0) -> 69059
A52: 29 | D52: STEAM | F52: =+ROUND(([1]Plant!$D$19+[1]Plant!$D$20)*0.001,0) -> 146987
A53: 30 | D53: HYDRAULIC | F53: =+ROUND([1]Plant!$D$21*0.001,0) -> 26054
A54: 31 | D54: WIND | F54: =+ROUND([1]Plant!$D$22*0.001,0)+1 -> 13245
A55: 32 | D55: OTHER | F55: =+ROUND([1]Plant!$D$23*0.001,0) -> 25764
A56: 33 | D56: TRANSMISSION | F56: =+ROUND([1]Plant!$D$26*0.001,0) -> 209848
A57: 34 | D57: DISTRIBUTION | F57: =+ROUND([1]Plant!$D$28*0.001,0) -> 733300
A58: 35 | D58: GENERAL | F58: =+ROUND([1]Plant!$D$30*0.001,0) -> 112309
A59: 36 | D59: TOTAL | G59: =SUM(F49:F58) -> 1416558
A61: =A59+1 -> 37 | B61: (3) | C61: Reduce Meramec Energy Center plant investment in accordance with the Stipulation and Agreement from File No. ER-2021-0240. | G61: =+ROUND(([1]Plant!$E$34)*0.001,0) -> -684510
A62: =1+A61 -> 38
A64: =A62+1 -> 39 | B64: -4 | C64: Eliminate portions of plant in service for multi use general assets which are applicable to gas operations. For convenience, such assets are recorded as electric plant but are commonly used for both electric and gas.
A65: =1+A64 -> 40
A66: =1+A65 -> 41
A67: =1+A66 -> 42 | D67: GENERAL | G67: =+ROUND([1]Plant!$F$34*0.001,0) -> -42658
A69: =1+A67 -> 43 | B69: -5 | C69: Reduce Plant-in-Service for specified incentive compensation capitalized.
A70: =1+A69 -> 44 | D70: GENERAL | G70: =+ROUND([1]Plant!$G$34*0.001,0) -> -57165
A72: =1+A70 -> 45 | D72: TOTAL PRO FORMA ADJUSTMENTS | G72: =SUM(G40:G70) -> 333596

Sheet SCHEDULE MJL-D2
A1: AMEREN MISSOURI
A2: TOTAL ELECTRIC RESERVES FOR DEPRECIATION AND AMORTIZATION
A3: =+'SCHEDULE MJL-D1'!A3:G3 -> BY FUNCTIONAL CLASSIFICATION FOR THE TWELVE MONTHS ENDED MARCH 31, 2022
A4: ($000)
E7: TOTALS | G7: PRO FORMA
E8: PER | F8: PRO FORMA | G8: ELECTRIC
A9: LINE | C9: FUNCTIONAL CLASSIFICATION | E9: BOOKS | F9: ADJUSTMENTS | G9: TOTALS
C10: (A) | E10: (B) | F10: (C) | G10: (D)
C11: INTANGIBLE PLANT
A12: 1 | C12: FRANCHISES | E12: =+ROUND([1]Reserve!$C$10*0.001,0) -> 31486 | F12: =+ROUND(SUM([1]Reserve!$D$10:$J$10)*0.001,0) -> 3175 | G12: =E12+F12 -> 34661
A13: =1+A12 -> 2 | C13: CALLAWAY LIFE EXTENSION DEFERRAL | E13: =+ROUND([1]Reserve!$C$11*0.001,0) -> 469 | F13: =+ROUND(SUM([1]Reserve!$D$11:$J$11)*0.001,0) -> 78 | G13: =E13+F13 -> 547
A14: 3 | C14: MISC INTANGIBLE PLANT | E14: =+ROUND([1]Reserve!$C$12*0.001,0)-1 -> 281513 | F14: =+ROUND(SUM([1]Reserve!$D$12:$J$12)*0.001,0) -> -5426 | G14: =E14+F14 -> 276087
A15: =1+A14 -> 4 | C15: TOTAL INTANGIBLE PLANT | E15: =SUM(E12:E14) -> 313468 | F15: =SUM(F12:F14) -> -2173 | G15: =E15+F15 -> 311295
C17: PRODUCTION PLANT
A18: =1+A15 -> 5 | C18: NUCLEAR | E18: =+ROUND([1]Reserve!$C$17*0.001,0) -> 1777698 | F18: =+ROUND(SUM([1]Reserve!$D$17:$J$17)*0.001,0) -> 67495 | G18: 1845193
A19: =1+A18 -> 6 | C19: CALLAWAY POST OPERATIONAL | E19: =+ROUND([1]Reserve!$C$18*0.001,0) -> 107205 | F19: =+ROUND(SUM([1]Reserve!$D$18:$J$18)*0.001,0) -> 2766 | G19: =E19+F19 -> 109971
A20: =1+A19 -> 7 | C20: STEAM | E20: =+ROUND((SUM([1]Reserve!$C$19:$C$20))*0.001,0) -> 2378593 | F20: =+ROUND(SUM([1]Reserve!$D$19:$J$20)*0.001,0) -> -547234 | G20: 1831359
A21: =1+A20 -> 8 | C21: HYDRAULIC | E21: =+ROUND([1]Reserve!$C$21*0.001,0) -> 140530 | F21: =+ROUND(SUM([1]Reserve!$D$21:$J$21)*0.001,0) -> 12036 | G21: 152566
A22: =1+A21 -> 9 | C22: WIND | E22: =+ROUND([1]Reserve!$C$22*0.001,0) -> 50147 | F22: =+ROUND(SUM([1]Reserve!$D$22:$J$22)*0.001,0) -> 29278 | G22: 79425
A23: 10 | C23: OTHER | E23: =+ROUND([1]Reserve!$C$23*0.001,0)-1 -> 742951 | F23: =+ROUND(SUM([1]Reserve!$D$23:$J$23)*0.001,0)+1 -> 18480 | G23: 761431
A24: =1+A23 -> 11 | C24: TOTAL PRODUCTION PLANT | E24: =SUM(E18:E23) -> 5197124 | F24: =SUM(F18:F23) -> -417179 | G24: 4779945
A26: =1+A24 -> 12 | C26: TRANSMISSION PLANT | E26: =+ROUND([1]Reserve!$C$26*0.001,0) -> 441573 | F26: =+ROUND(SUM([1]Reserve!$D$26:$J$26)*0.001,0) -> 28687 | G26: 470260
A28: =1+A26 -> 13 | C28: DISTRIBUTION PLANT | E28: =+ROUND([1]Reserve!$C$28*0.001,0) -> 3205675 | F28: =+ROUND(SUM([1]Reserve!$D$28:$J$28)*0.001,0) -> 157435 | G28: 3363110
A30: =1+A28 -> 14 | C30: GENERAL PLANT | E30: =+ROUND([1]Reserve!$C$30*0.001,0) -> 279071 | F30: =+ROUND(SUM([1]Reserve!$D$30:$J$30)*0.001,0) -> 33696 | G30: 312767
A32: =1+A30 -> 15 | C32: INCENTIVE COMPENSATION CAPITALIZED | E32: =+ROUND([1]Reserve!$C$32*0.001,0) -> 0 | F32: =+ROUND(SUM([1]Reserve!$D$32:$J$32)*0.001,0) -> -15776 | G32: =E32+F32 -> -15776
A34: =1+A32 -> 16 | C34: TOTAL DEPRC. & AMORT RESERVE | E34: =E15+E24+E26+E28+E30+E32 -> 9436911 | F34: =F15+F24+F26+F28+F30+F32 -> -215310 | G34: =G15+G24+G26+G28+G30+G32 -> 9221601
C36: PRO FORMA ADJUSTMENTS
A37: =1+A34 -> 17 | B37: -1 | C37: Eliminate Reserve balances related to FAS 143 Asset Retirement Obligation and ASC 842 Leases
A38: =1+A37 -> 18 | D38: NUCLEAR | F38: =+ROUND([1]Reserve!$D$17*0.001,0) -> 6828
A39: =1+A38 -> 19 | D39: STEAM | F39: =+ROUND([1]Reserve!$D$19*0.001,0) -> -83937
A40: 20 | D40: WIND | F40: =+ROUND([1]Reserve!$D$22*0.001,0) -> -2128
A41: 22 | D41: DISTRIBUTION | F41: =+ROUND([1]Reserve!$D$28*0.001,0) -> 0
A42: 23 | D42: OTHER | F42: =+ROUND([1]Reserve!$D$23*0.001,0) -> -2
A43: 24 | D43: GENERAL | F43: =+ROUND([1]Reserve!$D$30*0.001,0) -> -1513
A44: =1+A43 -> 25 | D44: TOTAL | G44: =SUM(F38:F43) -> -80752
A46: =1+A44 -> 26 | B46: -2 | C46: Reserve Balance at December 31, 2020 adjusted to reflect Reserve Balance at September 30, 2021 .
A47: =1+A46 -> 27
A48: =1+A47 -> 28 | D48: INTANGIBLE FRANCHISES | F48: =+ROUND([1]Reserve!$E$10*0.001,0) -> 3175
A49: =1+A48 -> 29 | D49: CALLAWAY LIFE EXTENSION DEFERRAL | F49: =+ROUND([1]Reserve!$E$11*0.001,0) -> 78
A50: =1+A49 -> 30 | D50: MISC INTANGIBLE PLANT | F50: =+ROUND([1]Reserve!$E$12*0.001,0) -> 0
A51: =A50+1 -> 31 | D51: NUCLEAR | F51: =+ROUND([1]Reserve!$E$17*0.001,0) -> 60018
A52: =A51+1 -> 32 | D52: CALLAWAY POST OPERATIONAL | F52: =+ROUND([1]Reserve!$E$18*0.001,0) -> 2766
A53: =1+A52 -> 33 | D53: STEAM | F53: =+ROUND(SUM([1]Reserve!$E$19:$E$20)*0.001,0)-1 -> 204723
A54: 34 | D54: HYDRAULIC | F54: =+ROUND([1]Reserve!$E$21*0.001,0) -> 11780
A55: 35 | D55: WIND | F55: =+ROUND([1]Reserve!$E$22*0.001,0) -> 31224
A56: 36 | D56: OTHER | F56: =+ROUND([1]Reserve!$E$23*0.001,0) -> 18229
A57: 37 | D57: TRANSMISSION | F57: =+ROUND([1]Reserve!$E$26*0.001,0) -> 27419
A58: 38 | D58: DISTRIBUTION | F58: =+ROUND([1]Reserve!$E$28*0.001,0) -> 152481
A59: 39 | D59: GENERAL | F59: =+ROUND([1]Reserve!$E$30*0.001,0) -> 37909
A60: 40 | D60: TOTAL | G60: =SUM(F48:F59) -> 549802
A62: =1+A60 -> 41 | B62: -3 | C62: Adjustment to depreciation reserve for the additions to plant in service for the true-up period of January 1, 2021 through September 31, 2021.
A63: =1+A62 -> 42
A64: =1+A63 -> 43 | D64: INTANGIBLE FRANCHISES | F64: =+ROUND([1]Reserve!$F$10*0.001,0) -> 0
A65: =1+A64 -> 44 | D65: MISC INTANGIBLE PLANT | F65: =+ROUND([1]Reserve!$F$12*0.001,0) -> 5720
A66: =1+A65 -> 45 | D66: NUCLEAR | F66: =+ROUND([1]Reserve!$F$17*0.001,0) -> 650
A67: =1+A66 -> 46 | D67: STEAM | F67: =+ROUND(SUM([1]Reserve!$F$19:$F$20)*0.001,0) -> 3207
A68: 47 | D68: HYDRAULIC | F68: =+ROUND([1]Reserve!$F$21*0.001,0) -> 256
A69: 48 | D69: WIND | F69: =+ROUND([1]Reserve!$F$22*0.001,0) -> 182
A70: 49 | D70: OTHER | F70: =+ROUND([1]Reserve!$F$23*0.001,0) -> 252
A71: 50 | D71: TRANSMISSION | F71: =+ROUND([1]Reserve!$F$26*0.001,0) -> 1268
A72: 51 | D72: DISTRIBUTION | F72: =+ROUND([1]Reserve!$F$28*0.001,0)+1 -> 4954
A73: 52 | D73: GENERAL | F73: =+ROUND([1]Reserve!$F$30*0.001,0) -> 2487
A74: 53 | D74: TOTAL | G74: =SUM(F64:F73) -> 18976
A76: =1+A74 -> 54 | B76: (4) | C76: Meramec Energy Center adjustment. See Schedule MJL-D1 adjustment (3). | G76: =+ROUND([1]Reserve!$G$34*0.001,0) -> -671227
A78: =1+A76 -> 55 | B78: -5 | C78: Eliminate portions of plant in service for multi use general assets which are applicable to gas operations. For convenience, such assets are recorded as electric plant but are commonly used for both electric and gas
A79: =1+A78 -> 56
A80: =1+A79 -> 57
A81: =1+A80 -> 58 | D81: GENERAL | G81: =+ROUND([1]Reserve!$I$34*0.001,0) -> -16325
A83: =1+A81 -> 59 | B83: -6 | C83: Reduce Reserve for specified incentive compensation capitalized.
A84: =1+A83 -> 60 | D84: GENERAL | G84: =+ROUND([1]Reserve!$J$34*0.001,0) -> -15784
A86: =1+A84 -> 61 | D86: TOTAL PRO FORMA ADJUSTMENTS | G86: =SUM(G37:G84) -> -215310

Sheet SCHEDULE MJL-D3
A1: AMEREN MISSOURI
A2: AVERAGE FUEL AND MATERIALS & SUPPLIES INVENTORIES
A3: FOR THE TWELVE MONTHS ENDED MARCH 31, 2022
A4: ($000)
D6: TOTALS | F6: PRO FORMA
D7: PER | E7: PRO FORMA | F7: ELECTRIC
A8: LINE | C8: DESCRIPTION | D8: BOOKS | E8: ADJUSTMENTS | F8: TOTALS
C9: (A) | D9: (B) | E9: (C) | F9: (D)
A11: 1 | C11: AVERAGE NUCLEAR FUEL | D11: =+ROUND('[1]Mat&Sup'!$D$10*0.001,0) -> 160034 | E11: 0 | F11: =D11+E11 -> 160034
C13: AVERAGE FOSSIL FUEL:
A14: =1+A11 -> 2 | C14: COAL | D14: =+ROUND('[1]Mat&Sup2'!$D$30*0.001,0) -> 100641 | E14: =+ROUND(SUM('[1]Mat&Sup2'!$D$37,'[1]Mat&Sup'!$B$58)*0.001,0)-1 -> 24779 | F14: =D14+E14 -> 125420
A15: =1+A14 -> 3 | C15: OIL | D15: =+ROUND('[1]Mat&Sup'!$D$12*0.001,0) -> 3187 | E15: 0 | F15: =D15+E15 -> 3187
A16: =1+A15 -> 4 | C16: STORED GAS FOR CTG'S | D16: =+ROUND('[1]Mat&Sup'!$D$13*0.001,0) -> 1436 | E16: 0 | F16: =D16+E16 -> 1436
A17: =1+A16 -> 5 | C17: TOTAL FOSSIL FUEL | D17: =SUM(D14:D16) -> 105264 | E17: =SUM(E14:E16) -> 24779 | F17: =D17+E17 -> 130043
A19: =1+A17 -> 6 | C19: EMISSION ALLOWANCES AND RECS | D19: =+ROUND('[1]Mat&Sup'!$D$17*0.001,0) -> 42 | E19: 0 | F19: =D19+E19 -> 42
A21: =1+A19 -> 7 | C21: GENERAL MATERIALS AND SUPPLIES | D21: =+ROUND('[1]Mat&Sup'!$C$19*0.001,0) -> 293597 | E21: =ROUND(SUM(-'[1]Mat&Sup'!$E$19, '[1]Mat&Sup'!$D$21)*0.001,0) -> -15766 | F21: =D21+E21 -> 277831
A23: =1+A21 -> 8 | C23: TOTAL | D23: =D11+D17+D19+D21 -> 558937 | E23: =E11+E17+E19+E21 -> 9013 | F23: =F11+F17+F19+F21 -> 567950
C26: PRO FORMA ADJUSTMENT
A27: =1+A23 -> 9 | B27: -1 | C27: Adjust Coal Supply to reflect 13 month average inventory levels priced at the January 2023 coal prices. | F27: =+ROUND(('[1]Mat&Sup2'!$D$37+'[1]Mat&Sup'!$B$58)*0.001,0) -> 24780
A29: =1+A27 -> 10 | B29: (2) | C29: Meramec Energy Center adjustment. See Schedule MJL-D1 adjustment (3). | F29: =+ROUND('[1]Mat&Sup'!$D$21*0.001,0) -> -13653
A31: =1+A29 -> 11 | B31: (3) | C31: Eliminate portions of average fuel and general materials and supplies which are applicable to gas
A32: =1+A31 -> 12 | C32: operations. | F32: =-ROUND('[1]Mat&Sup'!$E$19*0.001,0) -> -2114
A34: =1+A32 -> 13 | C34: TOTAL PRO FORMA ADJUSTMENTS | F34: =SUM(F27:F33) -> 9013

Sheet SCHEDULE MJL-D4
B1: AMEREN MISSOURI
B2: AVERAGE PREPAYMENTS
B3: =+'SCHEDULE MJL-D3'!A3 -> FOR THE TWELVE MONTHS ENDED MARCH 31, 2022
B4: ($000)
E6: TOTALS | G6: PRO FORMA
E7: PER | F7: PRO FORMA | G7: ELECTRIC
B8: LINE | D8: DESCRIPTION | E8: BOOKS(1) | F8: ADJUSTMENTS | G8: TOTALS
D9: (A) | E9: (B) | F9: (C) | G9: (D)
B11: 1 | D11: RENTS (3) | E11: =+ROUND([1]Prepay!$C$9*0.001,0) -> 210 | F11: =-ROUND([1]Prepay!$E$9*0.001,0) -> -5 | G11: =E11+F11 -> 205
B12: =1+B11 -> 2 | D12: INSURANCE - DIRECT (2) | E12: =+ROUND([1]Prepay!$C$10*0.001,0) -> 11521 | F12: =-ROUND([1]Prepay!$E$10*0.001,0) -> -605 | G12: 10916
B13: =1+B12 -> 3 | D13: M/A COMM RADIO SYS SRVC AGREEMENT (3) | E13: =+ROUND([1]Prepay!$C$11*0.001,0) -> 0 | F13: =-ROUND([1]Prepay!$E$11*0.001,0) -> 0 | G13: 0
B14: 4 | D14: MEDICAL AND DENTAL VEBA (3) | E14: =+ROUND([1]Prepay!$C$12*0.001,0) -> 4481 | F14: =-ROUND([1]Prepay!$E$12*0.001,0) -> -105 | G14: 4376
B15: 5 | D15: MEDICAL AND DENTAL VEBA (3) | E15: =+ROUND([1]Prepay!$C$13*0.001,0) -> 54 | F15: =-ROUND([1]Prepay!$E$13*0.001,0) -> 0 | G15: 54
B16: =1+B15 -> 6 | D16: OPTIV GIGAMON (3) | E16: =+ROUND([1]Prepay!$C$14*0.001,0) -> 0 | F16: =-ROUND([1]Prepay!$E$14*0.001,0) -> 0 | G16: =E16+F16 -> 0
B17: =1+B16 -> 7 | D17: CRM SALESFORCE SUBSCRIPTION (3) | E17: =+ROUND([1]Prepay!$C$19*0.001,0) -> 0 | F17: =-ROUND([1]Prepay!$E$19*0.001,0) -> 0 | G17: =E17+F17 -> 0
B18: 8 | D18: AGA MEMBERSHIP DUES (2) | E18: =+ROUND([1]Prepay!$C$20*0.001,0) -> 23 | F18: =-ROUND([1]Prepay!$E$20*0.001,0) -> -23 | G18: =E18+F18 -> 0
B19: 9 | D19: KANSAS CITY POWER & LIGHT (2) | E19: =+ROUND([1]Prepay!$C$21*0.001,0) -> 0 | F19: =-ROUND([1]Prepay!$E$21*0.001,0) -> 0 | G19: =E19+F19 -> 0
B20: =1+B19 -> 10 | D20: PALO ALTO ENTERPRISE (3) | E20: =+ROUND([1]Prepay!$C$22*0.001,0) -> 157 | F20: =-ROUND([1]Prepay!$E$22*0.001,0)+1 -> -3 | G20: 154
B21: 11 | D21: RCGA MEMBERSHIP DUES (2) | E21: =+ROUND([1]Prepay!$C$23*0.001,0) -> 41 | F21: =-ROUND([1]Prepay!$E$23*0.001,0) -> 0 | G21: 41
B22: 12 | D22: LOW INCOME WEATHERIZATION (2) | E22: =+ROUND([1]Prepay!$C$25*0.001,0) -> 499 | F22: =-ROUND([1]Prepay!$E$25*0.001,0) -> -109 | G22: =E22+F22 -> 390
B23: 13 | D23: NOKIA WARRANTY (3) | E23: =+ROUND([1]Prepay!$C$26*0.001,0) -> 196 | F23: =-ROUND([1]Prepay!$E$26*0.001,0) -> -5 | G23: =E23+F23 -> 191
B24: =1+B22 -> 13 | D24: TOTAL AVERAGE PREPAYMENTS | E24: =SUM(E11:E23) -> 17182 | F24: =SUM(F11:F23) -> -855 | G24: =SUM(G11:G23) -> 16327
B26: =1+B24 -> 14 | C26: -1 | D26: Reflects 13 month average
B27: =1+B26 -> 15 | C27: -2 | D27: Directly assigned to electric or gas.
B28: 13 | C28: -3 | D28: Allocated to gas based on operating expenses excluding fuel and purchased power.
C32: PRO FORMA ADJUSTMENT
B34: =B28+1 -> 14 | C34: -1 | D34: Eliminate portions of prepayments which are applicable to gas operations. Allocated between electric | G34: =+F24 -> -855
B35: =1+B34 -> 15 | D35: and gas operations based on operating expenses excluding purchased power, off-system sales and
B36: =1+B35 -> 16 | D36: purchased gas.

Sheet SCHEDULE MJL-D5
A1: AMEREN MISSOURI
A2: TOTAL ELECTRIC CASH WORKING CAPITAL
A3: =+'SCHEDULE MJL-D3'!A3 -> FOR THE TWELVE MONTHS ENDED MARCH 31, 2022
A4: ($000)
J6: CASH WORKING
E7: REVENUE | F7: EXPENSE | G7: NET | I7: TEST YEAR | J7: CAPITAL
A8: LINE | C8: DESCRIPTION | E8: LAG | F8: LEAD (1) | G8: LEAD/LAG | H8: FACTOR | I8: EXPENSE | J8: REQUIREMENT
C9: (A) | E9: (B) | F9: (C) | G9: (D) | H9: (E) | I9: (F) | J9: (G)
A11: 1 | C11: PAYROLL & WITHHOLDINGS | E11: =+[1]CashWorkCap!$C$10 -> 37.02 | F11: =[1]CashWorkCap!$D$10 -> -10.9 | G11: =+E11+F11 -> 26.12 | H11: =ROUND(+G11/365,6) -> 0.071562 | I11: =+ROUND([1]CashWorkCap!$G$10*0.001,0) -> 340184 | J11: =ROUND(+H11*I11,0) -> 24344
A12: =1+A11 -> 2 | C12: PENSIONS AND BENEFITS | E12: =[1]CashWorkCap!$C$11 -> 37.02 | F12: =[1]CashWorkCap!$D$11 -> -15.7 | G12: =+E12+F12 -> 21.32 | H12: =ROUND(+G12/365,6) -> 0.058411 | I12: =+ROUND([1]CashWorkCap!$G$11*0.001,0) -> -49059 | J12: =ROUND(+H12*I12,0) -> -2866
A13: 3 | C13: OTHER EMPLOYEE BENEFITS | E13: =[1]CashWorkCap!$C$12 -> 37.02 | F13: =[1]CashWorkCap!$D$12 -> -17.65 | G13: =+E13+F13 -> 19.37 | H13: =ROUND(+G13/365,6) -> 0.053068 | I13: =+ROUND([1]CashWorkCap!$G$12*0.001,0) -> 50506 | J13: =ROUND(+H13*I13,0) -> 2680
A14: 4 | C14: FUEL
A15: 5 | C15: NUCLEAR | E15: =[1]CashWorkCap!$C$14 -> 37.02 | F15: =[1]CashWorkCap!$D$14 -> -15.21 | G15: =+E15+F15 -> 21.81 | H15: =ROUND(+G15/365,6) -> 0.059753 | I15: =+ROUND([1]CashWorkCap!$G$14*0.001,0) -> 62765 | J15: =ROUND(+H15*I15,0) -> 3750
A16: 6 | C16: COAL | E16: =[1]CashWorkCap!$C$15 -> 37.02 | F16: =[1]CashWorkCap!$D$15 -> -14.43 | G16: 22.59 | H16: 0.06189 | I16: =+ROUND([1]CashWorkCap!$G$15*0.001,0) -> 484349 | J16: =ROUND(+H16*I16,0) -> 29976
A17: =1+A16 -> 7 | C17: NATURAL GAS | E17: =[1]CashWorkCap!$C$16 -> 37.02 | F17: =[1]CashWorkCap!$D$16 -> -40.72 | G17: -3.7 | H17: -0.010137 | I17: =+ROUND([1]CashWorkCap!$G$16*0.001,0) -> 21850 | J17: -221
A18: 8 | C18: OIL | E18: =[1]CashWorkCap!$C$17 -> 37.02 | F18: =[1]CashWorkCap!$D$17 -> -14.69 | G18: =+E18+F18 -> 22.33 | H18: 0.061178 | I18: =+ROUND([1]CashWorkCap!$G$17*0.001,0) -> 3098 | J18: =ROUND(+H18*I18,0) -> 190
A19: 9 | C19: PURCHASED POWER | E19: =[1]CashWorkCap!$C$18 -> 37.02 | F19: =[1]CashWorkCap!$D$18 -> -18.1 | G19: =+E19+F19 -> 18.92 | H19: 0.051836 | I19: =+ROUND([1]CashWorkCap!$G$18*0.001,0) -> 290134 | J19: =ROUND(+H19*I19,0) -> 15039
A20: 10 | C20: INCENTIVE COMPENSATION | E20: =[1]CashWorkCap!$C$19 -> 37.02 | F20: =[1]CashWorkCap!$D$19 -> -250.8 | G20: -213.78 | H20: -0.585699 | I20: =+ROUND([1]CashWorkCap!$G$19*0.001,0) -> 30427 | J20: -17821
A21: 11 | C21: UNCOLLECTIBLE ACCOUNTS | E21: =[1]CashWorkCap!$C$20 -> 37.02 | F21: =[1]CashWorkCap!$D$20 -> -37.02 | G21: 0 | H21: 0 | I21: =+ROUND([1]CashWorkCap!$G$20*0.001,0) -> 7849 | J21: 0
A22: 12 | C22: OTHER OPERATING EXPENSES | E22: =[1]CashWorkCap!$C$21 -> 37.02 | F22: =[1]CashWorkCap!$D$21 -> -42.25 | G22: -5.23 | H22: -0.014329 | I22: =+ROUND([1]CashWorkCap!$G$21*0.001,0)+1 -> 504116 | J22: =ROUND(+H22*I22,0) -> -7223
A24: =1+A22 -> 13 | C24: TOTAL O&M EXPENSES | I24: =ROUND([1]CashWorkCap!$G$23*0.001,0) -> 1746220
A26: =1+A24 -> 14 | C26: TOTAL CASH WORKING CAPITAL REQUIREMENT | J26: =SUM(J11:J22) -> 47848
A28: =1+A26 -> 15 | C28: FICA - EMPLOYER'S PORTION | E28: =[1]CashWorkCap!$C$28 -> 37.02 | F28: =[1]CashWorkCap!$D$28 -> -9.38 | G28: =+E28+F28 -> 27.64 | H28: =ROUND(+G28/365,6) -> 0.075726 | I28: =+ROUND([1]CashWorkCap!$G$28*0.001,0) -> 21086 | J28: =ROUND(+H28*I28,0) -> 1597
A29: =1+A28 -> 16 | C29: ST. LOUIS PAYROLL EXPENSE TAXES | E29: =[1]CashWorkCap!$C$29 -> 37.02 | F29: =[1]CashWorkCap!$D$29 -> -9.38 | G29: =+E29+F29 -> 27.64 | H29: =ROUND(+G29/365,6) -> 0.075726 | I29: =+ROUND([1]CashWorkCap!$G$29*0.001,0) -> 449 | J29: =ROUND(+H29*I29,0) -> 34
A30: 17 | C30: FEDERAL UNEMPLOYMENT TAXES | E30: =[1]CashWorkCap!$C$30 -> 37.02 | F30: =[1]CashWorkCap!$D$30 -> -9.38 | G30: 27.64 | H30: =ROUND(+G30/365,6) -> 0.075726 | I30: =+ROUND([1]CashWorkCap!$G$30*0.001,0) -> 180 | J30: 14
A31: 18 | C31: STATE UNEMPLOYMENT TAXES | E31: =[1]CashWorkCap!$C$31 -> 37.02 | F31: =[1]CashWorkCap!$D$31 -> -9.38 | G31: 27.64 | H31: 0.075726 | I31: =+ROUND([1]CashWorkCap!$G$31*0.001,0) -> 42 | J31: 3
A32: 19 | C32: CORPORATE FRANCHISE TAXES | E32: =[1]CashWorkCap!$C$32 -> 37.02 | F32: =[1]CashWorkCap!$D$32 -> -233.19 | G32: -196.17 | H32: -0.537452 | I32: =+ROUND([1]CashWorkCap!$G$32*0.001,0) -> 136 | J32: -73
A33: 20 | C33: PROPERTY TAXES | E33: =[1]CashWorkCap!$C$33 -> 37.02 | F33: =[1]CashWorkCap!$D$33 -> -183 | G33: -145.98 | H33: -0.399945 | I33: =+ROUND([1]CashWorkCap!$G$33*0.001,0) -> 172041 | J33: -68807
A34: 21 | C34: DECOMMISSIONING FEES | E34: =[1]CashWorkCap!$C$34 -> 37.02 | F34: =[1]CashWorkCap!$D$34 -> -69.5 | G34: =+E34+F34 -> -32.48 | H34: =ROUND(+G34/365,6) -> -0.088986 | I34: =+ROUND([1]CashWorkCap!$G$34*0.001,0) -> 6759 | J34: -601
A35: 22 | C35: SALES TAXES | E35: =[1]CashWorkCap!$C$35 -> 37.02 | F35: =[1]CashWorkCap!$D$35 -> -9.31 | G35: 27.71 | H35: 0.075918 | I35: =+ROUND([1]CashWorkCap!$G$35*0.001,0) -> 75938 | J35: 5765
A36: =1+A35 -> 23 | C36: MO & IA USE TAXES | E36: =[1]CashWorkCap!$C$36 -> 37.02 | F36: =[1]CashWorkCap!$D$36 -> -76.25 | G36: -39.23 | H36: -0.107479 | I36: =+ROUND([1]CashWorkCap!$G$36*0.001,0) -> 3907 | J36: -420
A37: =1+A36 -> 24 | C37: IL USE TAXES | E37: =[1]CashWorkCap!$C$37 -> 37.02 | F37: =[1]CashWorkCap!$D$37 -> -35.78 | G37: =+E37+F37 -> 1.24 | H37: =ROUND(+G37/365,6) -> 0.003397 | I37: =+ROUND([1]CashWorkCap!$G$37*0.001,0) -> 68 | J37: =ROUND(+H37*I37,0) -> 0
A38: 25 | C38: FED EXCISE HEAVY USE TAX | E38: =[1]CashWorkCap!$C$38 -> 37.02 | F38: =[1]CashWorkCap!$D$38 -> 125.57 | G38: =+E38+F38 -> 162.59 | H38: =ROUND(+G38/365,6) -> 0.445452 | I38: =+ROUND([1]CashWorkCap!$G$38*0.001,0) -> 22 | J38: =ROUND(+H38*I38,0) -> 10
A39: =1+A38 -> 26 | C39: SELF PROCURED INS TAX | E39: =[1]CashWorkCap!$C$39 -> 37.02 | F39: =[1]CashWorkCap!$D$39 -> -241.5 | G39: -204.48 | H39: -0.560219 | I39: =+ROUND([1]CashWorkCap!$G$39*0.001,0) -> 113 | J39: -63
A40: 27 | C40: OHIO COMMERCIAL ACTIVITY TAX | E40: =[1]CashWorkCap!$C$40 -> 37.02 | F40: =[1]CashWorkCap!$D$40 -> 50 | G40: 87.02 | H40: 0.238411 | I40: =+ROUND([1]CashWorkCap!$G$40*0.001,0) -> 1 | J40: 0
A41: 28 | C41: GROSS RECEIPTS TAXES | E41: =[1]CashWorkCap!$C$41 -> 24.27 | F41: =[1]CashWorkCap!$D$41 -> -26.99 | G41: -2.72 | H41: -0.007452 | I41: =+ROUND([1]CashWorkCap!$G$41*0.001,0)+1 -> 145598 | J41: -1085
A43: =1+A41 -> 29 | C43: TOTAL TAXES AND OTHER EXPENSES | I43: =SUM(I28:I41) -> 426340
A45: =1+A43 -> 30 | C45: NET CUSTOMER SUPPLIED FUNDS | J45: =SUM(J28:J41) -> -63626
A47: =1+A45 -> 31 | C47: NET CASH WORKING CAPITAL REQUIREMENT | J47: =J26+J45 -> -15778

Sheet SCHEDULE MJL-D6
A1: AMEREN MISSOURI
A2: TOTAL ELECTRIC FEDERAL AND STATE INCOME TAX AND CITY EARNINGS TAX CASH REQUIREMENTS
A3: AND INTEREST EXPENSE CASH REQUIREMENT
A4: ='SCHEDULE MJL-D5'!A3 -> FOR THE TWELVE MONTHS ENDED MARCH 31, 2022
A5: ($000)
J8: CASH WORKING
E9: REVENUE | F9: EXPENSE | G9: NET | I9: TEST YEAR | J9: CAPITAL
A10: LINE | C10: DESCRIPTION | E10: LAG | F10: LEAD (1) | G10: LEAD/LAG | H10: FACTOR | I10: EXPENSE | J10: REQUIREMENT
C11: (A) | E11: (B) | F11: (C) | G11: (D) | H11: (E) | I11: (F) | J11: (G)
A14: 1 | C14: FEDERAL INCOME TAX CASH REQUIREMENT | E14: =[1]CashWorkCap!$C$51 -> 37.02 | F14: =[1]CashWorkCap!$D$51 -> -38 | G14: =+E14+F14 -> -0.98 | H14: =ROUND(+G14/365,6) -> -0.002685 | I14: =+ROUND([1]CashWorkCap!$G$51*0.001,0) -> 70244 | J14: =ROUND(+H14*I14,0) -> -189
A16: =1+A14 -> 2 | C16: MO STATE INCOME TAX CASH REQUIREMENT | E16: =[1]CashWorkCap!$C$52 -> 37.02 | F16: =[1]CashWorkCap!$D$52 -> -38 | G16: =+E16+F16 -> -0.98 | H16: =ROUND(+G16/365,6) -> -0.002685 | I16: =+ROUND([1]CashWorkCap!$G$52*0.001,0) -> 23910 | J16: =ROUND(+H16*I16,0) -> -64
A18: =1+A16 -> 3 | C18: IN STATE INCOME TAX CASH REQUIREMENT | E18: =[1]CashWorkCap!$C$53 -> 37.02 | F18: =[1]CashWorkCap!$D$53 -> -14 | G18: =+E18+F18 -> 23.02 | H18: =ROUND(+G18/365,6) -> 0.063068 | I18: =+ROUND([1]CashWorkCap!$G$53*0.001,0) -> 0 | J18: =ROUND(+H18*I18,0) -> 0
A20: =1+A18 -> 4 | C20: IA STATE INCOME TAX CASH REQUIREMENT | E20: =[1]CashWorkCap!$C$54 -> 37.02 | F20: =[1]CashWorkCap!$D$54 -> 77 | G20: =+E20+F20 -> 114.02 | H20: =ROUND(+G20/365,6) -> 0.312384 | I20: =+ROUND([1]CashWorkCap!$G$54*0.001,0) -> 0 | J20: =ROUND(+H20*I20,0) -> 0
A22: =1+A20 -> 5 | C22: CITY EARNINGS TAX CASH REQUIREMENT | E22: =[1]CashWorkCap!$C$55 -> 37.02 | F22: =[1]CashWorkCap!$D$55 -> -274.5 | G22: =+E22+F22 -> -237.48 | H22: =ROUND(+G22/365,6) -> -0.65063 | I22: =+ROUND([1]CashWorkCap!$G$55*0.001,0) -> 138 | J22: =ROUND(+H22*I22,0)+1 -> -89
A24: 6 | C24: INTEREST EXPENSE CASH REQUIREMENT | E24: =[1]CashWorkCap!$C$56 -> 37.02 | F24: =[1]CashWorkCap!$D$56 -> -91.37 | G24: =+E24+F24 -> -54.35 | H24: =ROUND(+G24/365,6) -> -0.148904 | I24: =+ROUND([1]CashWorkCap!$G$56*0.001,0) -> 215984 | J24: =ROUND(+H24*I24,0) -> -32161

Sheet SCHEDULE MJL-D7
A1: AMEREN MISSOURI
A2: TOTAL ELECTRIC AVERAGE CUSTOMER ADVANCES FOR CONSTRUCTION AND
A3: AVERAGE CUSTOMER DEPOSITS
A4: ='SCHEDULE MJL-D4'!B3 -> FOR THE TWELVE MONTHS ENDED MARCH 31, 2022
A5: ($000)
A8: LINE | C8: DESCRIPTION | E8: TOTAL ELECTRIC
C9: (A) | E9: (B)
A13: =1 -> 1 | C13: AVERAGE CUSTOMER ADVANCES FOR CONSTRUCTION | E13: =ROUND('[1]Rate Base'!$C$29*0.001,0) -> -546
A16: =1+A13 -> 2 | C16: AVERAGE CUSTOMER DEPOSITS | E16: =ROUND('[1]Rate Base'!$C$31*0.001,0) -> -18816

Sheet SCHEDULE MJL-D8
A1: AMEREN MISSOURI
A2: OTHER REGULATORY ASSETS
A3: AND REGULATORY LIABILITIES
A4: =+'SCHEDULE MJL-D9'!A3:H3 -> FOR THE TWELVE MONTHS ENDED MARCH 31, 2022
A5: ($000)
H9: TOTAL
A10: LINE | C10: DESCRIPTION | H10: ELECTRIC
C11: (A) | H11: (B)(1)
A15: =1 -> 1 | C15: PENSIONS | H15: =+ROUND(SUM('[1]Rate Base'!$C$33:$C$38)*0.001,0) -> -29516
A18: =1+A15 -> 2 | C18: OTHER POST-EMPLOYMENT BENEFITS | H18: =+ROUND(SUM('[1]Rate Base'!$C$39:$C$44)*0.001,0) -> -10163
A21: =1+A18 -> 3 | C21: PAYS REGULATORY ASSET | H21: =+ROUND('[1]Rate Base'!$C$47*0.001,0) -> 1861
A24: =1+A21 -> 4 | C24: PISA REGULATORY ASSET | H24: =+ROUND('[1]Rate Base'!$C$52*0.001,0) -> 394572
A27: =1+A24 -> 5 | C27: MERAMEC RETIREMENT ASSET | H27: =+ROUND('[1]Rate Base'!$C$50*0.001,0) -> 38581
A30: 6 | C30: UNDER COLLECTED AMORTIZATIONS IN RATE BASE | H30: =+ROUND('[1]Rate Base'!$C$54*0.001,0) -> 161
A33: =1+A30 -> 7 | C33: (1) A positive balance is a Regulatory Asset and a negative balance is a
A34: =1+A33 -> 8 | C34: Regulatory Liability.

Sheet SCHEDULE MJL-D9
A1: AMEREN MISSOURI
A2: ACCUMULATED DEFERRED INCOME TAXES
A3: =+'SCHEDULE MJL-D3'!A3:G3 -> FOR THE TWELVE MONTHS ENDED MARCH 31, 2022
A4: ($000)
F6: TOTAL | H6: PRO FORMA
F7: ELECTRIC | G7: PRO FORMA | H7: ELECTRIC
A8: LINE | C8: DESCRIPTION | F8: PER BOOKS | G8: ADJUSTMENTS | H8: TOTAL
C9: (A) | F9: (B) | G9: (C) | H9: (D)
A11: 1 | C11: ACCOUNT 190 | F11: =ROUND([1]AccumDef!$D$69*0.001,0) -> 36591 | G11: =ROUND([1]AccumDef!$F$69*0.001,0) -> -3349 | H11: =+F11+G11 -> 33242
A13: 2 | C13: ACCOUNT 281 | F13: =ROUND([1]AccumDef!$D$75*0.001,0) -> -88067 | G13: =ROUND([1]AccumDef!$F$75*0.001,0) -> 0 | H13: =+F13+G13 -> -88067
A15: 3 | C15: ACCOUNT 282 | F15: =ROUND([1]AccumDef!$D$140*0.001,0) -> -2768510 | G15: =ROUND([1]AccumDef!$F$140*0.001,0) -> -43313 | H15: =+F15+G15 -> -2811823
A17: 4 | C17: ACCOUNT 283 | F17: =ROUND([1]AccumDef!$D$184*0.001,0) -> -98060 | G17: =ROUND([1]AccumDef!$F$184*0.001,0) -> -3500 | H17: =+F17+G17 -> -101560
A19: 5 | C19: MERAMEC ADJUSTMENT | F19: 0 | G19: 0 | H19: =+F19+G19 -> 0
A21: 6 | C21: TOTAL ACCUMULATED DEFERRED INCOME TAXES | F21: =SUM(F11:F20) -> -2918046 | G21: =SUM(G11:G20) -> -50162 | H21: =SUM(H11:H20) -> -2968208
C24: PRO FORMA ADJUSTMENT:
A25: 7 | C25: Changes in balances from March 31, 2022 to December 31, 2022, which is the end of the true-up period.

Sheet SCHEDULE MJL-D10
A1: AMEREN MISSOURI
A2: TOTAL ELECTRIC PER BOOK AND PRO FORMA OPERATING REVENUES
A3: ='SCHEDULE MJL-D5'!A3 -> FOR THE TWELVE MONTHS ENDED MARCH 31, 2022
A4: ($000)
F8: ADJUSTED
D9: TOTAL | E9: PRO FORMA | F9: TOTAL
A10: LINE | C10: DESCRIPTION | D10: ELECTRIC | E10: ADJUSTMENTS | F10: ELECTRIC
C11: (A) | D11: (B) | E11: (C) | F11: (D)
C13: OPERATING REVENUES
A14: 1 | C14: RETAIL REVENUES | D14: =+ROUND(([1]Revenues!$C$10)*0.001,0) -> 2913418 | E14: =SUM(D31:D43) -> -195834 | F14: =D14+E14 -> 2717584
A15: =1+A14 -> 2 | C15: PROVISION FOR RATE REFUNDS | D15: =+ROUND(([1]Revenues!$C$29)*0.001,0) -> -23766 | E15: =+E46 -> 23766 | F15: =D15+E15 -> 0
A16: =1+A15 -> 3 | C16: OTHER ELECTRIC REVENUES | D16: =+ROUND(([1]Revenues!$C$45)*0.001,0) -> 177165 | E16: =E57 -> -92173 | F16: =D16+E16 -> 84992
A18: =1+A16 -> 4 | C18: TOTAL REVENUES | D18: =SUM(D13:D16) -> 3066817 | E18: =SUM(E13:E16) -> -264241 | F18: =SUM(F13:F16) -> 2802576
A20: =1+A18 -> 5 | C20: DISPOSITION OF ALLOWANCES | D20: =+ROUND(([1]Revenues!$C$47)*0.001,0) -> 0 | E20: =+E59 -> 0 | F20: =D20+E20 -> 0
A22: =1+A20 -> 6 | C22: OFF-SYSTEM SALES - ENERGY | D22: =+ROUND(([1]Revenues!$C$49)*0.001,0) -> 223764 | E22: =+E61 -> 56291 | F22: =D22+E22 -> 280055
A24: =1+A22 -> 7 | C24: OFF-SYSTEM SALES-CAPACITY REVENUE | D24: =+ROUND(([1]Revenues!$C$51)*0.001,0) -> 18324 | E24: =+E63 -> 211108 | F24: =D24+E24 -> 229432
A26: =A24+1 -> 8 | C26: TOTAL REVENUES PER BOOKS | D26: =SUM(D18:D24) -> 3308905 | E26: =SUM(E18:E24) -> 3158 | F26: =SUM(F18:F24) -> 3312063
C30: PRO FORMA ADJUSTMENTS:
A31: =1+A26 -> 9 | B31: -1 | C31: REMOVE ADD ON REVENUE TAX | D31: =ROUND([1]Revenues!$E$12*0.001,0) -> -143699
A32: =1+A31 -> 10 | B32: -2 | C32: ELIMINATE REVENUE FROM MEEIA RECOVERIES | D32: =ROUND(([1]Revenues!$E$11+[1]Revenues!$E$16)*0.001,0) -> -135558
A33: 11 | B33: -3 | C33: ELIMINATE REVENUE FROM FAC RECOVERIES | D33: =ROUND([1]Revenues!$E$14*0.001,0) -> -88220
A34: 12 | B34: -4 | C34: ELIMINATE UNBILLED REVENUE | D34: =ROUND([1]Revenues!$E$13*0.001,0) -> -22430
A35: =1+A34 -> 13 | B35: -5 | C35: ANNUALIZE RATE CHANGE | D35: =ROUND([1]Revenues!$E$19*0.001,0)-1 -> 214415
A36: 14 | B36: -6 | C36: ADJUST FOR EDI | D36: =ROUND([1]Revenues!$E$20*0.001,0) -> -676
A37: 15 | B37: -7 | C37: ADJUST FOR COMMUNITY SOLAR | D37: =ROUND([1]Revenues!$E$21*0.001,0) -> 221
A38: 16 | B38: -8 | C38: ADJUST FOR GROWTH | D38: =ROUND([1]Revenues!$E$22*0.001,0) -> 5893
A39: 17 | B39: -9 | C39: ADJUST FOR RESRAM REVENUES | D39: =ROUND([1]Revenues!$E$15*0.001,0) -> -1531
A40: 18 | B40: -10 | C40: ADJUST FOR ENERGY EFFICIENCY AND SOLAR ANNUALIZATION | D40: =ROUND([1]Revenues!$E$23*0.001,0) -> -16225
A41: 19 | B41: -11 | C41: DAYS ADJUSTMENT | D41: =ROUND([1]Revenues!$E$24*0.001,0) -> 8567
A42: 20 | B42: -12 | C42: ADJUST FOR BILLING UNITS | D42: =ROUND([1]Revenues!$E$25*0.001,0) -> 12594
A43: 21 | B43: -13 | C43: ADJUST FOR NORMAL WEATHER | D43: =ROUND([1]Revenues!$E$26*0.001,0) -> -29185
A44: 22 | C44: TOTAL | E44: =SUM(D31:D43) -> -195834
A46: =1+A44 -> 23 | B46: -14 | C46: ELIMINATE PROVISION FOR RATE REFUNDS | E46: =ROUND([1]Revenues!$E$29*0.001,0) -> 23766
A48: =1+A46 -> 24 | B48: -15 | C48: ADJUST TRANSMISSION REVENUES | D48: =ROUND((SUM([1]Revenues!$E$32:$E$34))*0.001,0) -> 348
A49: =1+A48 -> 25 | B49: -16 | C49: MISC REVENUE FROM COAL REFINEMENT | D49: =ROUND([1]Revenues!$E$38*0.001,0) -> -311
A50: 26 | B50: -17 | C50: ADJUST LATE FEE REVENUE | D50: =ROUND([1]Revenues!$E$36*0.001,0) -> -2151
A51: 27 | B51: -18 | C51: REMOVE CALLAWAY INSURANCE RECOVERIES | D51: =ROUND([1]Revenues!$E$37*0.001,0) -> -87950
A52: 28 | B52: -19 | C52: ADJUST LEASE REVENUE FROM RENT | D52: =ROUND([1]Revenues!$E$39*0.001,0)+1 -> 196
A53: 29 | B53: -20 | C53: MISC LEASE REVENUE FROM SOFTWARE LEASES | D53: =ROUND([1]Revenues!$E$41*0.001,0) -> -922
A54: 30 | B54: -21 | C54: ADJUST BOA LEASE REVENUE | D54: =ROUND([1]Revenues!$E$40*0.001,0) -> -375
A55: 31 | B55: -22 | C55: ADJUST FOR PAYS REVENUES | D55: =ROUND([1]Revenues!$E$42*0.001,0) -> 19
A56: 32 | B56: -23 | C56: REMOVE ADD ON REVENUE TAX | D56: =ROUND([1]Revenues!$E$43*0.001,0) -> -1027
A57: =1+A56 -> 33 | C57: TOTAL | E57: =SUM(D48:D56) -> -92173
A59: =1+A57 -> 34 | B59: -24 | C59: ELIMINATE DISPOSITION OF ALLOWANCES | E59: =ROUND([1]Revenues!$E$47*0.001,0) -> 0
A61: =1+A59 -> 35 | B61: -25 | C61: ADJUST OFF-SYSTEM SALES - ENERGY | E61: =ROUND([1]Revenues!$E$49*0.001,0)-1 -> 56291
A63: =1+A61 -> 36 | B63: -26 | C63: ADJUST OFF-SYSTEM SALES - CAPACITY | E63: =ROUND([1]Revenues!$E$51*0.001,0) -> 211108
A65: =1+A63 -> 37 | C65: TOTAL PRO FORMA ADJUSTMENTS | E65: =SUM(E31:E63) -> 3158

Sheet SCHEDULE MJL-D11-1 to 6
F1: #1 | G1: #2 | H1: #3 | I1: #4 | J1: #5 | K1: #6 | L1: #7 | M1: #8 | R1: #9 | S1: #10 | T1: #11 | U1: #12 | V1: #13 | W1: #14 | X1: #15 | Y1: #16 | Z1: #17 | AE1: #18 | AF1: #19 | AG1: #20 | AH1: #21 | AI1: #22 | AJ1: #23 | AK1: #24 | AL1: #25 | AM1: #26 | AR1: #27 | AS1: #28 | AT1: #29 | AU1: #30 | AV1: #31 | AW1: #32 | AX1: #33 | AY1: #34 | AZ1: #35 | BE1: #36 | BF1: #37 | BG1: #38 | BH1: #39 | BI1: #40 | BJ1: #41 | BK1: #42 | BL1: #43 | BM1: #44 | BR1: #45 | BS1: #46 | BT1: #47 | BU1: #48 | BV1: #49
C2: Title included in Page header for printing purposes. | H2: LONG TERM | J2: ADJUST | W2: REMOVE | AJ2: ENERGY EFFICIENCY | AR2: PRO FORMA | AT2: REBASE | AU2: AMORTIZE | AY2: BOARD OF | BE2: INCREASE
E3: TOTAL | G3: INCENTIVE | H3: INCENTIVE | I3: CHANGE IN FUEL | J3: PURCHASED | K3: MARK TWAIN | L3: REMOVE | M3: COAL | R3: STEAM | S3: RUSH IISLAND | T3: MERAMEC | U3: ELIMINATE | V3: CALLAWAY | W3: CALLAWAY | X3: CALLAWAY | Y3: OTHER | Z3: REBASE | AE3: ELIMINATE | AF3: ANNUALIZE SOLAR | AG3: DEPRECIATION | AH3: NORMALIZE | AI3: ADD INTEREST | AJ3: PROGRAM COST | AK3: PAYS | AL3: ANNUALIZE | AR3: MEDICAL & | AS3: NON-QUALIFIED | AT3: PENSION | AU3: PENSION | AV3: RESRAM | AW3: NET | AY3: DIRECTORS | AZ3: NORMALIZE | BE3: BUILDING | BF3: RECENTLY | BG3: SOFTWARE | BH3: ALLOCATION | BI3: AMR | BJ3: CUSTOMER | BK3: CLEAN ENERGY | BL3: ELECTRIC | BM3: CUSTOMER | BR3: CYBERSECURITY | BS3: SOFTWARE | BV3: EV | BX3: TOTAL | BY3: PRO FORMA
E4: PER | F4: LABOR | G4: COMPENSATION | H4: COMPENSATION | I4: EXPENSE FOR | J4: POWER FOR | K4: TRANSMISSION | L4: MEMBERSHIP | M4: REFINEMENT | R4: PLANT | S4: MAINTENANCE | T4: MAINTENANCE | U4: FAC | V4: REFUELING | W4: REFUELING | X4: UNPLANNED | Y4: RES | Z4: RES | AE4: SOLAR | AF4: REBATE | AG4: TO O&M | AH4: STORM | AI4: ON CUSTOMER | AJ4: RECOVERY | AK4: PROGRAM | AL4: BAD DEBT | AM4: INSURANCE | AR4: BENEFIT | AS4: PENSION | AT4: AND OPEB | AU4: AND OPEB | AV4: BASE | AW4: RATE CASE | AX4: MPSC | AY4: EXPENSE | AZ4: STUDY | BE4: RENT FROM | BF4: EXITED | BG4: RENTAL | BH4: FACTOR | BI4: COST | BJ4: AFFORDABILITY | BK4: TRANSITION | BL4: COSTS | BM4: CONVENIENCE | BR4: COSTS | BS4: MAINTENANCE | BT4: NRC FEE | BU4: SALES AND USE | BV4: INCENTIVE | BX4: PRO FORMA | BY4: ELECTRIC
C5: LINE | D5: FUNCTIONAL CLASSIFICATION | E5: BOOKS | F5: ADJUSTMENT | G5: ADJUSTMENT | H5: ADJUSTMENT | I5: TU CHANGE | J5: TU CHANGE | K5: ADJUSTMENT | L5: DUES | M5: ADJUSTMENT | P5: LINE | Q5: FUNCTIONAL CLASSIFICATION | R5: MAINTENANCE | S5: ADJUSTMENT | T5: ADJUSTMENT | U5: RECOVERY | V5: EXPENSES | W5: AMORTIZATION | X5: OUTAGE | Y5: ADJUSTMENT | Z5: EXPENSE | AD5: FUNCTIONAL CLASSIFICATION | AE5: AMOUNTS | AF5: AMORTIZATION | AG5: ADJUSTMENT | AH5: COSTS | AI5: DEPOSITS | AJ5: ADJUSTMENT | AK5: AMORTIZATION | AL5: EXPENSE | AM5: ADJUST. | AP5: LINE | AQ5: FUNCTIONAL CLASSIFICATION | AR5: ADJUST. | AS5: ADJUST. | AT5: TRACKER | AU5: TRACKER | AV5: EXPENSE | AW5: EXPENSES | AX5: ASSESSMENT | AY5: ADJUSTMENT | AZ5: EXPENSE | BC5: LINE | BD5: FUNCTIONAL CLASSIFICATION | BE5: AMS | BF5: FACILITIES | BG5: EXPENSE | BH5: ADJUSTMENT | BI5: SAVINGS | BJ5: ADJUSTMENT | BK5: ADJUSTMENT | BL5: ALLOC TO GAS | BM5: FEES | BP5: LINE | BQ5: FUNCTIONAL CLASSIFICATION | BR5: ADJUSTMENT | BS5: ADJUSTMENT | BT5: ANNUALIZATION | BU5: TAX AUDIT | BV5: ADJUSTMENT | BX5: ADJUSTMENT | BY5: TOTALS
D6: (A) | E6: (B) | F6: (C) | G6: (D) | H6: (E) | I6: (G) | J6: (H) | K6: (I) | L6: (J) | M6: (K) | Q6: (A) | R6: (B) | S6: (C) | T6: (D) | U6: (E) | V6: (F) | W6: (G) | X6: (H) | Y6: (I) | Z6: (J) | AD6: (A) | AE6: (B) | AF6: (C) | AG6: (D) | AH6: (E) | AI6: (F) | AJ6: (G) | AK6: (H) | AL6: (I) | AM6: (J) | AQ6: (A) | AR6: (B) | AS6: (C) | AT6: (D) | AU6: (E ) | AV6: (F) | AW6: (G) | AX6: (H) | AY6: (I) | AZ6: (J) | BD6: (A) | BE6: (B) | BF6: (C) | BG6: (D) | BH6: (E ) | BI6: (F) | BJ6: (G) | BK6: (H) | BL6: (I) | BM6: (J) | BQ6: (A) | BR6: (B) | BS6: (C) | BT6: (D) | BU6: (E) | BV6: (F) | BX6: (G) | BY6: (H)
D7: PRODUCTION: | Q7: PRODUCTION: | AD7: PRODUCTION: | AQ7: PRODUCTION: | BD7: PRODUCTION: | BQ7: PRODUCTION:
D8: INCREMENTAL COSTS: | Q8: INCREMENTAL COSTS: | AD8: INCREMENTAL COSTS: | AQ8: INCREMENTAL COSTS: | BD8: INCREMENTAL COSTS: | BQ8: INCREMENTAL COSTS:
C9: 1 | D9: LABOR | E9: =+ROUND('[1]O&M'!$B$11*0.001,0) -> 197565 | F9: =+ROUND('[1]O&M'!$C$11*0.001,0) -> 10141 | G9: =+ROUND('[1]O&M'!$D$11*0.001,0) -> -1093 | H9: =+ROUND('[1]O&M'!$E$11*0.001,0) -> -1641 | I9: 0 | J9: 0 | K9: 0 | L9: 0 | M9: 0 | P9: 1 | Q9: LABOR | S9: 0 | T9: 0 | U9: 0 | V9: =+ROUND('[1]O&M'!$P$11*0.001,0) -> 5262 | W9: 0 | X9: 0 | Y9: 0 | Z9: 0 | AC9: 1 | AD9: LABOR | AE9: 0 | AF9: 0 | AG9: 0 | AH9: 0 | AI9: 0 | AJ9: 0 | AK9: 0 | AL9: 0 | AM9: 0 | AP9: 1 | AQ9: LABOR | AR9: 0 | AS9: 0 | AT9: 0 | AU9: 0 | AV9: 0 | AW9: 0 | AX9: 0 | AY9: 0 | AZ9: 0 | BC9: 1 | BD9: LABOR | BE9: 0 | BF9: 0 | BG9: 0 | BH9: 0 | BI9: 0 | BJ9: 0 | BK9: 0 | BL9: 0 | BM9: 0 | BP9: 1 | BQ9: LABOR | BR9: 0 | BS9: 0 | BT9: 0 | BU9: 0 | BV9: 0 | BX9: =SUM(F9:M9,R9:Z9,AE9:AM9,AR9:AZ9,BE9:BM9,BR9:BW9) -> 12669 | BY9: =E9+BX9 -> 210234
D10: FUEL (EXCL. W/H CR.) | Q10: FUEL (EXCL. W/H CR.) | AD10: FUEL (EXCL. W/H CR.) | AQ10: FUEL (EXCL. W/H CR.) | BD10: FUEL (EXCL. W/H CR.) | BQ10: FUEL (EXCL. W/H CR.)
C11: =1+C9 -> 2 | D11: BASE LOAD | E11: =+ROUND('[1]O&M'!$B$13*0.001,0) -> 415685 | F11: 0 | G11: 0 | H11: 0 | I11: =+ROUND('[1]O&M'!$G$13*0.001,0) -> 34675 | J11: 0 | K11: 0 | L11: 0 | M11: 0 | P11: =1+P9 -> 2 | Q11: BASE LOAD | S11: 0 | T11: 0 | U11: 0 | V11: 0 | W11: 0 | X11: 0 | Y11: 0 | Z11: 0 | AC11: =1+AC9 -> 2 | AD11: BASE LOAD | AE11: 0 | AF11: 0 | AG11: 0 | AH11: 0 | AI11: 0 | AJ11: 0 | AK11: 0 | AL11: 0 | AM11: 0 | AP11: =1+AP9 -> 2 | AQ11: BASE LOAD | AR11: 0 | AS11: 0 | AT11: 0 | AU11: 0 | AV11: 0 | AW11: 0 | AX11: 0 | AY11: 0 | AZ11: 0 | BC11: =1+BC9 -> 2 | BD11: BASE LOAD | BE11: 0 | BF11: 0 | BG11: 0 | BH11: 0 | BI11: 0 | BJ11: 0 | BK11: 0 | BL11: 0 | BM11: 0 | BP11: =1+BP9 -> 2 | BQ11: BASE LOAD | BR11: 0 | BS11: 0 | BT11: 0 | BU11: 0 | BV11: 0 | BX11: =SUM(F11:M11,R11:Z11,AE11:AM11,AR11:AZ11,BE11:BM11,BR11:BW11) -> 34675 | BY11: =E11+BX11 -> 450360
C12: =1+C11 -> 3 | D12: INTERCHANGE | E12: =+ROUND('[1]O&M'!$B$14*0.001,0) -> 175916 | F12: 0 | G12: 0 | H12: 0 | I12: =+ROUND('[1]O&M'!$G$14*0.001,0) -> -46785 | J12: 0 | K12: 0 | L12: 0 | M12: 0 | P12: =1+P11 -> 3 | Q12: INTERCHANGE | S12: 0 | T12: 0 | U12: 0 | V12: 0 | W12: 0 | X12: 0 | Y12: 0 | Z12: 0 | AC12: =1+AC11 -> 3 | AD12: INTERCHANGE | AE12: 0 | AF12: 0 | AG12: 0 | AH12: 0 | AI12: 0 | AJ12: 0 | AK12: 0 | AL12: 0 | AM12: 0 | AP12: =1+AP11 -> 3 | AQ12: INTERCHANGE | AR12: 0 | AS12: 0 | AT12: 0 | AU12: 0 | AV12: 0 | AW12: 0 | AX12: 0 | AY12: 0 | AZ12: 0 | BC12: =1+BC11 -> 3 | BD12: INTERCHANGE | BE12: 0 | BF12: 0 | BG12: 0 | BH12: 0 | BI12: 0 | BJ12: 0 | BK12: 0 | BL12: 0 | BM12: 0 | BP12: =1+BP11 -> 3 | BQ12: INTERCHANGE | BR12: 0 | BS12: 0 | BT12: 0 | BU12: 0 | BV12: 0 | BX12: =SUM(F12:M12,R12:Z12,AE12:AM12,AR12:AZ12,BE12:BM12,BR12:BW12) -> -46785 | BY12: =E12+BX12 -> 129131
C13: =1+C12 -> 4 | D13: FUEL ADDITIVES | E13: =+ROUND('[1]O&M'!$B$15*0.001,0) -> 6979 | F13: 0 | G13: 0 | H13: 0 | I13: =+ROUND('[1]O&M'!$G$15*0.001,0) -> 224 | J13: 0 | K13: 0 | L13: 0 | M13: 0 | P13: =1+P12 -> 4 | Q13: FUEL ADDITIVES | R13: 0 | S13: 0 | T13: 0 | U13: 0 | V13: 0 | W13: 0 | X13: 0 | Y13: 0 | Z13: 0 | AC13: =1+AC12 -> 4 | AD13: FUEL ADDITIVES | AE13: 0 | AF13: 0 | AG13: 0 | AH13: 0 | AI13: 0 | AJ13: 0 | AK13: 0 | AL13: 0 | AM13: 0 | AP13: =1+AP12 -> 4 | AQ13: FUEL ADDITIVES | AR13: 0 | AS13: 0 | AT13: 0 | AU13: 0 | AV13: 0 | AW13: 0 | AX13: 0 | AY13: 0 | AZ13: 0 | BC13: =1+BC12 -> 4 | BD13: FUEL ADDITIVES | BE13: 0 | BF13: 0 | BG13: 0 | BH13: 0 | BI13: 0 | BJ13: 0 | BK13: 0 | BL13: 0 | BM13: 0 | BP13: =1+BP12 -> 4 | BQ13: FUEL ADDITIVES | BR13: 0 | BS13: 0 | BT13: 0 | BU13: 0 | BV13: 0 | BX13: =SUM(F13:M13,R13:Z13,AE13:AM13,AR13:AZ13,BE13:BM13,BR13:BW13) -> 224 | BY13: =E13+BX13 -> 7203
D14: PURCHASED POWER | Q14: PURCHASED POWER | AD14: PURCHASED POWER | AQ14: PURCHASED POWER | BD14: PURCHASED POWER | BQ14: PURCHASED POWER
D15: ENERGY | Q15: ENERGY | AD15: ENERGY | AQ15: ENERGY | BD15: ENERGY | BQ15: ENERGY
C16: =1+C13 -> 5 | D16: BASE LOAD | E16: =+ROUND('[1]O&M'!$B$18*0.001,0) -> 71903 | F16: 0 | G16: 0 | H16: 0 | I16: =+ROUND('[1]O&M'!G18*0.001,0) -> 0 | J16: =+ROUND('[1]O&M'!$H$18*0.001,0) -> -362 | K16: 0 | L16: 0 | M16: 0 | P16: =1+P13 -> 5 | Q16: BASE LOAD | R16: 0 | S16: 0 | T16: 0 | U16: 0 | V16: 0 | W16: 0 | X16: 0 | Y16: 0 | Z16: 0 | AC16: =1+AC13 -> 5 | AD16: BASE LOAD | AE16: 0 | AF16: 0 | AG16: 0 | AH16: 0 | AI16: 0 | AJ16: 0 | AK16: 0 | AL16: 0 | AM16: 0 | AP16: =1+AP13 -> 5 | AQ16: BASE LOAD | AR16: 0 | AS16: 0 | AT16: 0 | AU16: 0 | AV16: 0 | AW16: 0 | AX16: 0 | AY16: 0 | AZ16: 0 | BC16: =1+BC13 -> 5 | BD16: BASE LOAD | BE16: 0 | BF16: 0 | BG16: 0 | BH16: 0 | BI16: 0 | BJ16: 0 | BK16: 0 | BL16: 0 | BM16: 0 | BP16: =1+BP13 -> 5 | BQ16: BASE LOAD | BR16: 0 | BS16: 0 | BT16: 0 | BU16: 0 | BV16: 0 | BX16: =SUM(F16:M16,R16:Z16,AE16:AM16,AR16:AZ16,BE16:BM16,BR16:BW16) -> -362 | BY16: =E16+BX16 -> 71541
C17: =1+C16 -> 6 | D17: INTERCHANGE | E17: =+ROUND('[1]O&M'!$B$19*0.001,0) -> 5992 | F17: 0 | G17: 0 | H17: 0 | I17: =+ROUND('[1]O&M'!G19*0.001,0) -> 0 | J17: =+ROUND('[1]O&M'!$H$19*0.001,0) -> -5992 | K17: 0 | L17: 0 | M17: 0 | P17: =1+P16 -> 6 | Q17: INTERCHANGE | R17: 0 | S17: 0 | T17: 0 | U17: 0 | V17: 0 | W17: 0 | X17: 0 | Y17: 0 | Z17: 0 | AC17: =1+AC16 -> 6 | AD17: INTERCHANGE | AE17: 0 | AF17: 0 | AG17: 0 | AH17: 0 | AI17: 0 | AJ17: 0 | AK17: 0 | AL17: 0 | AM17: 0 | AP17: =1+AP16 -> 6 | AQ17: INTERCHANGE | AR17: 0 | AS17: 0 | AT17: 0 | AU17: 0 | AV17: 0 | AW17: 0 | AX17: 0 | AY17: 0 | AZ17: 0 | BC17: =1+BC16 -> 6 | BD17: INTERCHANGE | BE17: 0 | BF17: 0 | BG17: 0 | BH17: 0 | BI17: 0 | BJ17: 0 | BK17: 0 | BL17: 0 | BM17: 0 | BP17: =1+BP16 -> 6 | BQ17: INTERCHANGE | BR17: 0 | BS17: 0 | BT17: 0 | BU17: 0 | BV17: 0 | BX17: -5992 | BY17: =E17+BX17 -> 0
D18: CAPACITY COSTS | Q18: CAPACITY COSTS | W18: 0 | X18: 0 | Y18: 0 | Z18: 0 | AD18: CAPACITY COSTS | AE18: 0 | AF18: 0 | AQ18: CAPACITY COSTS | AS18: 0 | AT18: 0 | AU18: 0 | AV18: 0 | AW18: 0 | AX18: 0 | AY18: 0 | AZ18: 0 | BD18: CAPACITY COSTS | BE18: 0 | BF18: 0 | BG18: 0 | BH18: 0 | BI18: 0 | BJ18: 0 | BK18: 0 | BL18: 0 | BM18: 0 | BQ18: CAPACITY COSTS | BR18: 0 | BS18: 0 | BT18: 0 | BU18: 0 | BV18: 0 | BX18: 0
C19: =1+C17 -> 7 | D19: BASE LOAD | E19: =+ROUND('[1]O&M'!$B$21*0.001,0) -> 13305 | F19: 0 | G19: 0 | H19: 0 | I19: =+ROUND('[1]O&M'!G21*0.001,0) -> 0 | J19: =+ROUND('[1]O&M'!$H$21*0.001,0) -> 205289 | K19: 0 | L19: 0 | M19: 0 | P19: =1+P17 -> 7 | Q19: BASE LOAD | R19: 0 | S19: 0 | T19: 0 | U19: 0 | V19: 0 | W19: 0 | X19: 0 | Y19: 0 | Z19: 0 | AC19: =1+AC17 -> 7 | AD19: BASE LOAD | AE19: 0 | AF19: 0 | AG19: 0 | AH19: 0 | AI19: 0 | AJ19: 0 | AK19: 0 | AL19: 0 | AM19: 0 | AP19: =1+AP17 -> 7 | AQ19: BASE LOAD | AR19: 0 | AS19: 0 | AT19: 0 | AU19: 0 | AV19: 0 | AW19: 0 | AX19: 0 | AY19: 0 | AZ19: 0 | BC19: =1+BC17 -> 7 | BD19: BASE LOAD | BE19: 0 | BF19: 0 | BG19: 0 | BH19: 0 | BI19: 0 | BJ19: 0 | BK19: 0 | BL19: 0 | BM19: 0 | BP19: =1+BP17 -> 7 | BQ19: BASE LOAD | BR19: 0 | BS19: 0 | BT19: 0 | BU19: 0 | BV19: 0 | BX19: 205289 | BY19: =E19+BX19 -> 218594
C20: =1+C19 -> 8 | D20: INTERCHANGE | E20: 0 | F20: 0 | G20: 0 | H20: 0 | I20: =+ROUND('[1]O&M'!G22*0.001,0) -> 0 | J20: 0 | K20: 0 | L20: 0 | M20: 0 | P20: =1+P19 -> 8 | Q20: INTERCHANGE | R20: 0 | S20: 0 | T20: 0 | U20: 0 | V20: 0 | W20: 0 | X20: 0 | Y20: 0 | Z20: 0 | AC20: =1+AC19 -> 8 | AD20: INTERCHANGE | AE20: 0 | AF20: 0 | AG20: 0 | AH20: 0 | AI20: 0 | AJ20: 0 | AK20: 0 | AL20: 0 | AM20: 0 | AP20: =1+AP19 -> 8 | AQ20: INTERCHANGE | AR20: 0 | AS20: 0 | AT20: 0 | AU20: 0 | AV20: 0 | AW20: 0 | AX20: 0 | AY20: 0 | AZ20: 0 | BC20: =1+BC19 -> 8 | BD20: INTERCHANGE | BE20: 0 | BF20: 0 | BG20: 0 | BH20: 0 | BI20: 0 | BJ20: 0 | BK20: 0 | BL20: 0 | BM20: 0 | BP20: =1+BP19 -> 8 | BQ20: INTERCHANGE | BR20: 0 | BS20: 0 | BT20: 0 | BU20: 0 | BV20: 0 | BX20: 0 | BY20: =E20+BX20 -> 0
C21: =1+C20 -> 9 | D21: OTHER | E21: =+ROUND('[1]O&M'!$B$23*0.001,0) -> 244290 | F21: 0 | G21: 0 | H21: 0 | I21: =+ROUND('[1]O&M'!G23*0.001,0) -> 0 | J21: 0 | K21: 0 | L21: =+ROUND('[1]O&M'!$J$23*0.001,0)-1 -> -28 | M21: =+ROUND('[1]O&M'!$K$23*0.001,0) -> 15105 | P21: =1+P20 -> 9 | Q21: OTHER | R21: =+ROUND('[1]O&M'!$L$23*0.001,0) -> 1496 | S21: =+ROUND('[1]O&M'!$M$23*0.001,0) -> -2539 | T21: =+ROUND('[1]O&M'!$N$23*0.001,0) -> -1443 | U21: =+ROUND('[1]O&M'!$O$23*0.001,0) -> -102847 | V21: =+ROUND('[1]O&M'!$P$23*0.001,0) -> 22715 | W21: =+ROUND('[1]O&M'!$Q$23*0.001,0) -> -27887 | X21: =+ROUND('[1]O&M'!$R$23*0.001,0) -> -968 | Y21: =+ROUND('[1]O&M'!$S$23*0.001,0) -> 3902 | Z21: =+ROUND('[1]O&M'!$T$23*0.001,0) -> 1962 | AC21: =1+AC20 -> 9 | AD21: OTHER | AE21: =+ROUND('[1]O&M'!$V$23*0.001,0) -> 0 | AF21: 0 | AG21: =+ROUND('[1]O&M'!$W$23*0.001,0) -> -399 | AH21: 0 | AI21: 0 | AJ21: 0 | AK21: 0 | AL21: 0 | AM21: 0 | AP21: =1+AP20 -> 9 | AQ21: OTHER | AR21: 0 | AS21: 0 | AT21: 0 | AU21: 0 | AV21: =+ROUND('[1]O&M'!$AO$23*0.001,0) -> 3892 | AW21: 0 | AX21: 0 | AY21: 0 | AZ21: 0 | BC21: =1+BC20 -> 9 | BD21: OTHER | BE21: 0 | BF21: 0 | BG21: 0 | BH21: 0 | BI21: =ROUND('[1]O&M'!$BD$23*0.001,0) -> 0 | BJ21: =ROUND('[1]O&M'!$BD$23*0.001,0) -> 0 | BK21: =+ROUND('[1]O&M'!$BM$23*0.001,0) -> -3434 | BL21: 0 | BM21: 0 | BP21: =1+BP20 -> 9 | BQ21: OTHER | BR21: 0 | BS21: 0 | BT21: =+ROUND('[1]O&M'!$BP$23*0.001,0) -> 22 | BU21: 0 | BV21: 0 | BX21: -90451 | BY21: =E21+BX21 -> 153839
C22: =1+C21 -> 10 | D22: TOTAL PRODUCTION EXPENSES | E22: =SUM(E9:E21) -> 1131635 | F22: 10141 | G22: -1093 | H22: -1641 | I22: =SUM(I9:I21) -> -11886 | J22: =SUM(J9:J21) -> 198935 | K22: =SUM(K9:K21) -> 0 | L22: =SUM(L9:L21) -> -28 | M22: =SUM(M9:M21) -> 15105 | P22: =1+P21 -> 10 | Q22: TOTAL PRODUCTION EXPENSES | R22: =SUM(R9:R21) -> 1496 | S22: =SUM(S9:S21) -> -2539 | T22: -1443 | U22: =SUM(U9:U21) -> -102847 | V22: =SUM(V9:V21) -> 27977 | W22: =SUM(W9:W21) -> -27887 | X22: =SUM(X9:X21) -> -968 | Y22: =SUM(Y9:Y21) -> 3902 | Z22: 1962 | AC22: =1+AC21 -> 10 | AD22: TOTAL PRODUCTION EXPENSES | AE22: =SUM(AE9:AE21) -> 0 | AF22: =SUM(AF9:AF21) -> 0 | AG22: =SUM(AG9:AG21) -> -399 | AH22: =SUM(AH9:AH21) -> 0 | AI22: =SUM(AI9:AI21) -> 0 | AJ22: =SUM(AJ9:AJ21) -> 0 | AK22: =SUM(AK9:AK21) -> 0 | AL22: 0 | AM22: =SUM(AM9:AM21) -> 0 | AP22: =1+AP21 -> 10 | AQ22: TOTAL PRODUCTION EXPENSES | AR22: =SUM(AR9:AR21) -> 0 | AS22: =SUM(AS9:AS21) -> 0 | AT22: =SUM(AT9:AT21) -> 0 | AU22: =SUM(AU9:AU21) -> 0 | AV22: =SUM(AV9:AV21) -> 3892 | AW22: =SUM(AW9:AW21) -> 0 | AX22: =SUM(AX9:AX21) -> 0 | AY22: 0 | AZ22: =SUM(AZ9:AZ21) -> 0 | BC22: =1+BC21 -> 10 | BD22: TOTAL PRODUCTION EXPENSES | BE22: =SUM(BE9:BE21) -> 0 | BF22: =SUM(BF9:BF21) -> 0 | BG22: 0 | BH22: 0 | BI22: 0 | BJ22: 0 | BK22: -3434 | BL22: 0 | BM22: =SUM(BM9:BM21) -> 0 | BP22: =1+BP21 -> 10 | BQ22: TOTAL PRODUCTION EXPENSES | BR22: =SUM(BR9:BR21) -> 0 | BS22: 0 | BT22: =SUM(BT9:BT21) -> 22 | BU22: 0 | BV22: 0 | BX22: =SUM(BX9:BX21) -> 109267 | BY22: =SUM(BY9:BY21) -> 1240902
D24: TRANSMISSION EXPENSES: | Q24: TRANSMISSION EXPENSES: | AD24: TRANSMISSION EXPENSES: | AQ24: TRANSMISSION EXPENSES: | BD24: TRANSMISSION EXPENSES: | BQ24: TRANSMISSION EXPENSES:
C25: =1+C22 -> 11 | D25: LABOR | E25: =+ROUND('[1]O&M'!$B$27*0.001,0)-1 -> 5925 | F25: =+ROUND('[1]O&M'!$C$27*0.001,0) -> 285 | G25: =+ROUND('[1]O&M'!$D$27*0.001,0) -> -33 | H25: =+ROUND('[1]O&M'!$E$27*0.001,0) -> -135 | I25: =+ROUND('[1]O&M'!G27*0.001,0) -> 0 | J25: 0 | K25: 0 | L25: 0 | M25: 0 | P25: =1+P22 -> 11 | Q25: LABOR | R25: 0 | S25: 0 | T25: 0 | U25: 0 | V25: =+ROUND('[1]O&M'!O27*0.001,0) -> 0 | W25: =+ROUND('[1]O&M'!U27*0.001,0) -> 0 | X25: =+ROUND('[1]O&M'!V27*0.001,0) -> 0 | Y25: 0 | Z25: 0 | AC25: =1+AC22 -> 11 | AD25: LABOR | AE25: 0 | AF25: 0 | AG25: 0 | AH25: 0 | AI25: 0 | AJ25: 0 | AK25: 0 | AL25: 0 | AM25: 0 | AP25: =1+AP22 -> 11 | AQ25: LABOR | AR25: 0 | AS25: 0 | AT25: 0 | AU25: 0 | AV25: 0 | AW25: 0 | AX25: 0 | AY25: 0 | AZ25: 0 | BC25: =1+BC22 -> 11 | BD25: LABOR | BE25: 0 | BF25: 0 | BG25: 0 | BH25: 0 | BI25: 0 | BJ25: 0 | BK25: 0 | BL25: 0 | BM25: 0 | BP25: =1+BP22 -> 11 | BQ25: LABOR | BR25: 0 | BS25: 0 | BT25: 0 | BU25: 0 | BV25: 0 | BX25: =SUM(F25:M25,R25:Z25,AE25:AM25,AR25:AZ25,BE25:BM25,BR25:BW25) -> 117 | BY25: =E25+BX25 -> 6042
C26: =1+C25 -> 12 | D26: OTHER | E26: =+ROUND('[1]O&M'!$B$28*0.001,0) -> 105237 | F26: 0 | G26: 0 | H26: 0 | I26: =+ROUND('[1]O&M'!G28*0.001,0) -> 0 | J26: =+ROUND('[1]O&M'!$H$28*0.001,0) -> 1831 | K26: =+ROUND('[1]O&M'!$I$28*0.001,0) -> -125 | L26: 0 | M26: 0 | P26: =1+P25 -> 12 | Q26: OTHER | R26: 0 | S26: 0 | T26: 0 | U26: 0 | V26: =+ROUND('[1]O&M'!O28*0.001,0) -> 0 | W26: =+ROUND('[1]O&M'!U28*0.001,0) -> 0 | X26: =+ROUND('[1]O&M'!V28*0.001,0) -> 0 | Y26: 0 | Z26: 0 | AC26: =1+AC25 -> 12 | AD26: OTHER | AE26: 0 | AF26: 0 | AG26: 0 | AH26: 0 | AI26: 0 | AJ26: 0 | AK26: 0 | AL26: 0 | AM26: 0 | AP26: =1+AP25 -> 12 | AQ26: OTHER | AR26: 0 | AS26: 0 | AT26: 0 | AU26: 0 | AV26: 0 | AW26: 0 | AX26: 0 | AY26: 0 | AZ26: 0 | BC26: =1+BC25 -> 12 | BD26: OTHER | BE26: 0 | BF26: 0 | BG26: 0 | BH26: =ROUND('[1]O&M'!$BC$28*0.001,0) -> -44 | BI26: 0 | BJ26: 0 | BK26: 0 | BL26: 0 | BM26: 0 | BP26: =1+BP25 -> 12 | BQ26: OTHER | BR26: 0 | BS26: 0 | BT26: 0 | BU26: 0 | BV26: 0 | BX26: =SUM(F26:M26,R26:Z26,AE26:AM26,AR26:AZ26,BE26:BM26,BR26:BW26) -> 1662 | BY26: =E26+BX26 -> 106899
C27: =1+C26 -> 13 | D27: TOTAL TRANSMISSION EXPENSES | E27: =SUM(E25:E26) -> 111162 | F27: 285 | G27: -33 | H27: -135 | I27: =SUM(I25:I26) -> 0 | J27: =SUM(J25:J26) -> 1831 | K27: =SUM(K25:K26) -> -125 | L27: =SUM(L25:L26) -> 0 | M27: =SUM(M25:M26) -> 0 | P27: =1+P26 -> 13 | Q27: TOTAL TRANSMISSION EXPENSES | R27: =SUM(R25:R26) -> 0 | S27: =SUM(S25:S26) -> 0 | T27: 0 | U27: =SUM(U25:U26) -> 0 | V27: =SUM(V25:V26) -> 0 | W27: =SUM(W25:W26) -> 0 | X27: =SUM(X25:X26) -> 0 | Y27: =SUM(Y25:Y26) -> 0 | Z27: 0 | AC27: =1+AC26 -> 13 | AD27: TOTAL TRANSMISSION EXPENSES | AE27: =SUM(AE25:AE26) -> 0 | AF27: =SUM(AF25:AF26) -> 0 | AG27: =SUM(AG25:AG26) -> 0 | AH27: =SUM(AH25:AH26) -> 0 | AI27: =SUM(AI25:AI26) -> 0 | AJ27: =SUM(AJ25:AJ26) -> 0 | AK27: =SUM(AK25:AK26) -> 0 | AL27: 0 | AM27: =SUM(AM25:AM26) -> 0 | AP27: =1+AP26 -> 13 | AQ27: TOTAL TRANSMISSION EXPENSES | AR27: =SUM(AR25:AR26) -> 0 | AS27: =SUM(AS25:AS26) -> 0 | AT27: =SUM(AT25:AT26) -> 0 | AU27: =SUM(AU25:AU26) -> 0 | AV27: =SUM(AV25:AV26) -> 0 | AW27: =SUM(AW25:AW26) -> 0 | AX27: =SUM(AX25:AX26) -> 0 | AY27: 0 | AZ27: =SUM(AZ25:AZ26) -> 0 | BC27: =1+BC26 -> 13 | BD27: TOTAL TRANSMISSION EXPENSES | BE27: =SUM(BE25:BE26) -> 0 | BF27: =SUM(BF25:BF26) -> 0 | BG27: 0 | BH27: -44 | BI27: 0 | BJ27: 0 | BK27: 0 | BL27: 0 | BM27: =SUM(BM25:BM26) -> 0 | BP27: =1+BP26 -> 13 | BQ27: TOTAL TRANSMISSION EXPENSES | BR27: =SUM(BR25:BR26) -> 0 | BS27: 0 | BT27: =SUM(BT25:BT26) -> 0 | BU27: 0 | BV27: 0 | BX27: =SUM(BX25:BX26) -> 1779 | BY27: =SUM(BY25:BY26) -> 112941
D29: REGIONAL MARKET EXPENSES: | Q29: REGIONAL MARKET EXPENSES: | AD29: REGIONAL MARKET EXPENSES: | AQ29: REGIONAL MARKET EXPENSES: | BD29: REGIONAL MARKET EXPENSES: | BQ29: REGIONAL MARKET EXPENSES:
C30: =1+C27 -> 14 | D30: LABOR | E30: =+ROUND('[1]O&M'!$B$32*0.001,0) -> 0 | F30: 0 | G30: 0 | H30: 0 | I30: =+ROUND('[1]O&M'!G32*0.001,0) -> 0 | J30: 0 | K30: =+ROUND('[1]O&M'!I32*0.001,0) -> 0 | L30: 0 | M30: 0 | P30: =1+P27 -> 14 | Q30: LABOR | R30: 0 | S30: 0 | T30: 0 | U30: 0 | V30: =+ROUND('[1]O&M'!O32*0.001,0) -> 0 | W30: =+ROUND('[1]O&M'!U32*0.001,0) -> 0 | X30: =+ROUND('[1]O&M'!V32*0.001,0) -> 0 | Y30: 0 | Z30: 0 | AC30: =1+AC27 -> 14 | AD30: LABOR | AE30: 0 | AF30: 0 | AG30: 0 | AH30: 0 | AI30: 0 | AJ30: 0 | AK30: 0 | AL30: 0 | AM30: 0 | AP30: =1+AP27 -> 14 | AQ30: LABOR | AR30: 0 | AS30: 0 | AT30: 0 | AU30: 0 | AV30: 0 | AW30: 0 | AX30: 0 | AY30: 0 | AZ30: 0 | BC30: =1+BC27 -> 14 | BD30: LABOR | BE30: 0 | BF30: 0 | BG30: 0 | BH30: 0 | BI30: 0 | BJ30: 0 | BK30: 0 | BL30: 0 | BM30: 0 | BP30: =1+BP27 -> 14 | BQ30: LABOR | BR30: 0 | BS30: 0 | BT30: 0 | BU30: 0 | BV30: 0 | BX30: =SUM(F30:M30,R30:Z30,AE30:AM30,AR30:AZ30,BE30:BM30,BR30:BW30) -> 0 | BY30: =E30+BX30 -> 0
C31: =1+C30 -> 15 | D31: OTHER | E31: =+ROUND('[1]O&M'!$B$33*0.001,0) -> 6924 | F31: 0 | G31: 0 | H31: 0 | I31: =+ROUND('[1]O&M'!G33*0.001,0) -> 0 | J31: 0 | K31: =+ROUND('[1]O&M'!I33*0.001,0) -> 0 | L31: 0 | M31: 0 | P31: =1+P30 -> 15 | Q31: OTHER | R31: 0 | S31: 0 | T31: 0 | U31: 0 | V31: =+ROUND('[1]O&M'!O33*0.001,0) -> 0 | W31: =+ROUND('[1]O&M'!U33*0.001,0) -> 0 | X31: =+ROUND('[1]O&M'!V33*0.001,0) -> 0 | Y31: 0 | Z31: 0 | AC31: =1+AC30 -> 15 | AD31: OTHER | AE31: 0 | AF31: 0 | AG31: 0 | AH31: 0 | AI31: 0 | AJ31: 0 | AK31: 0 | AL31: 0 | AM31: 0 | AP31: =1+AP30 -> 15 | AQ31: OTHER | AR31: 0 | AS31: 0 | AT31: 0 | AU31: 0 | AV31: 0 | AW31: 0 | AX31: 0 | AY31: 0 | AZ31: 0 | BC31: =1+BC30 -> 15 | BD31: OTHER | BE31: 0 | BF31: 0 | BG31: 0 | BH31: 0 | BI31: 0 | BJ31: 0 | BK31: 0 | BL31: 0 | BM31: 0 | BP31: =1+BP30 -> 15 | BQ31: OTHER | BR31: 0 | BS31: 0 | BT31: 0 | BU31: 0 | BV31: 0 | BX31: =SUM(F31:M31,R31:Z31,AE31:AM31,AR31:AZ31,BE31:BM31,BR31:BW31) -> 0 | BY31: =E31+BX31 -> 6924
C32: =1+C31 -> 16 | D32: TOTAL REGIONAL MARKET EXPENSES | E32: =SUM(E30:E31) -> 6924 | F32: 0 | G32: 0 | H32: 0 | I32: =SUM(I30:I31) -> 0 | J32: =SUM(J30:J31) -> 0 | K32: =SUM(K30:K31) -> 0 | L32: =SUM(L30:L31) -> 0 | M32: =SUM(M30:M31) -> 0 | P32: =1+P31 -> 16 | Q32: TOTAL REGIONAL MARKET EXPENSES | R32: =SUM(R30:R31) -> 0 | S32: =SUM(S30:S31) -> 0 | T32: 0 | U32: =SUM(U30:U31) -> 0 | V32: =SUM(V30:V31) -> 0 | W32: =SUM(W30:W31) -> 0 | X32: =SUM(X30:X31) -> 0 | Y32: =SUM(Y30:Y31) -> 0 | Z32: 0 | AC32: =1+AC31 -> 16 | AD32: TOTAL REGIONAL MARKET EXPENSES | AE32: =SUM(AE30:AE31) -> 0 | AF32: =SUM(AF30:AF31) -> 0 | AG32: =SUM(AG30:AG31) -> 0 | AH32: =SUM(AH30:AH31) -> 0 | AI32: =SUM(AI30:AI31) -> 0 | AJ32: =SUM(AJ30:AJ31) -> 0 | AK32: =SUM(AK30:AK31) -> 0 | AL32: 0 | AM32: =SUM(AM30:AM31) -> 0 | AP32: =1+AP31 -> 16 | AQ32: TOTAL REGIONAL MARKET EXPENSES | AR32: =SUM(AR30:AR31) -> 0 | AS32: =SUM(AS30:AS31) -> 0 | AT32: =SUM(AT30:AT31) -> 0 | AU32: =SUM(AU30:AU31) -> 0 | AV32: =SUM(AV30:AV31) -> 0 | AW32: =SUM(AW30:AW31) -> 0 | AX32: =SUM(AX30:AX31) -> 0 | AY32: 0 | AZ32: =SUM(AZ30:AZ31) -> 0 | BC32: =1+BC31 -> 16 | BD32: TOTAL REGIONAL MARKET EXPENSES | BE32: =SUM(BE30:BE31) -> 0 | BF32: =SUM(BF30:BF31) -> 0 | BG32: 0 | BH32: 0 | BI32: 0 | BJ32: 0 | BK32: 0 | BL32: 0 | BM32: =SUM(BM30:BM31) -> 0 | BP32: =1+BP31 -> 16 | BQ32: TOTAL REGIONAL MARKET EXPENSES | BR32: =SUM(BR30:BR31) -> 0 | BS32: 0 | BT32: =SUM(BT30:BT31) -> 0 | BU32: 0 | BV32: 0 | BX32: =SUM(BX30:BX31) -> 0 | BY32: =SUM(BY30:BY31) -> 6924
D34: DISTRIBUTION EXPENSES: | Q34: DISTRIBUTION EXPENSES: | AD34: DISTRIBUTION EXPENSES: | AQ34: DISTRIBUTION EXPENSES: | BD34: DISTRIBUTION EXPENSES: | BQ34: DISTRIBUTION EXPENSES:
C35: =1+C32 -> 17 | D35: LABOR | E35: =+ROUND('[1]O&M'!$B$37*0.001,0) -> 59721 | F35: =+ROUND('[1]O&M'!$C$37*0.001,0) -> 3160 | G35: =+ROUND('[1]O&M'!$D$37*0.001,0) -> -330 | H35: =+ROUND('[1]O&M'!$E$37*0.001,0) -> -358 | I35: =+ROUND('[1]O&M'!G37*0.001,0) -> 0 | J35: 0 | K35: =+ROUND('[1]O&M'!I37*0.001,0) -> 0 | L35: 0 | M35: 0 | P35: =1+P32 -> 17 | Q35: LABOR | R35: 0 | S35: 0 | T35: 0 | U35: 0 | V35: =+ROUND('[1]O&M'!O37*0.001,0) -> 0 | W35: =+ROUND('[1]O&M'!U37*0.001,0) -> 0 | X35: =+ROUND('[1]O&M'!V37*0.001,0) -> 0 | Y35: 0 | Z35: 0 | AC35: =1+AC32 -> 17 | AD35: LABOR | AE35: 0 | AF35: 0 | AG35: 0 | AH35: 0 | AI35: 0 | AJ35: 0 | AK35: 0 | AL35: 0 | AM35: 0 | AP35: =1+AP32 -> 17 | AQ35: LABOR | AR35: 0 | AS35: 0 | AT35: 0 | AU35: 0 | AV35: 0 | AW35: 0 | AX35: 0 | AY35: 0 | AZ35: 0 | BC35: =1+BC32 -> 17 | BD35: LABOR | BE35: 0 | BF35: 0 | BG35: 0 | BH35: 0 | BI35: 0 | BJ35: 0 | BK35: 0 | BL35: 0 | BM35: 0 | BP35: =1+BP32 -> 17 | BQ35: LABOR | BR35: 0 | BS35: 0 | BT35: 0 | BU35: 0 | BV35: 0 | BX35: =SUM(F35:M35,R35:Z35,AE35:AM35,AR35:AZ35,BE35:BM35,BR35:BW35) -> 2472 | BY35: =E35+BX35 -> 62193
C36: =1+C35 -> 18 | D36: OTHER | E36: =+ROUND('[1]O&M'!$B$38*0.001,0) -> 93964 | F36: 0 | G36: 0 | H36: 0 | I36: =+ROUND('[1]O&M'!G38*0.001,0) -> 0 | J36: 0 | K36: =+ROUND('[1]O&M'!I38*0.001,0) -> 0 | L36: =+ROUND('[1]O&M'!$J$38*0.001,0) -> 0 | M36: 0 | P36: =1+P35 -> 18 | Q36: OTHER | R36: 0 | S36: 0 | T36: 0 | U36: 0 | V36: =+ROUND('[1]O&M'!O38*0.001,0) -> 0 | W36: =+ROUND('[1]O&M'!U38*0.001,0) -> 0 | X36: =+ROUND('[1]O&M'!V38*0.001,0) -> 0 | Y36: 0 | Z36: 0 | AC36: =1+AC35 -> 18 | AD36: OTHER | AE36: =+ROUND('[1]O&M'!$V$38*0.001,0) -> 0 | AF36: =+ROUND('[1]O&M'!$V$38*0.001,0) -> 0 | AG36: =+ROUND('[1]O&M'!$W$38*0.001,0)+1 -> -426 | AH36: =+ROUND('[1]O&M'!$X$38*0.001,0) -> -5330 | AI36: 0 | AJ36: 0 | AK36: 0 | AL36: 0 | AM36: 0 | AP36: =1+AP35 -> 18 | AQ36: OTHER | AR36: 0 | AS36: 0 | AT36: 0 | AU36: 0 | AV36: 0 | AW36: 0 | AX36: 0 | AY36: 0 | AZ36: 0 | BC36: =1+BC35 -> 18 | BD36: OTHER | BE36: 0 | BF36: 0 | BG36: 0 | BH36: =ROUND('[1]O&M'!$BC$38*0.001,0) -> 9 | BI36: 0 | BJ36: 0 | BK36: 0 | BL36: 0 | BM36: 0 | BP36: =1+BP35 -> 18 | BQ36: OTHER | BR36: 0 | BS36: 0 | BT36: 0 | BU36: 0 | BV36: 0 | BX36: =SUM(F36:M36,R36:Z36,AE36:AM36,AR36:AZ36,BE36:BM36,BR36:BW36) -> -5747 | BY36: =E36+BX36 -> 88217
C37: =1+C36 -> 19 | D37: TOTAL DISTRIBUTION EXPENSES | E37: =SUM(E35:E36) -> 153685 | F37: 3160 | G37: -330 | H37: -358 | I37: =SUM(I35:I36) -> 0 | J37: =SUM(J35:J36) -> 0 | K37: =SUM(K35:K36) -> 0 | L37: =SUM(L35:L36) -> 0 | M37: =SUM(M35:M36) -> 0 | P37: =1+P36 -> 19 | Q37: TOTAL DISTRIBUTION EXPENSES | R37: =SUM(R35:R36) -> 0 | S37: =SUM(S35:S36) -> 0 | T37: 0 | U37: =SUM(U35:U36) -> 0 | V37: =SUM(V35:V36) -> 0 | W37: =SUM(W35:W36) -> 0 | X37: =SUM(X35:X36) -> 0 | Y37: =SUM(Y35:Y36) -> 0 | Z37: 0 | AC37: =1+AC36 -> 19 | AD37: TOTAL DISTRIBUTION EXPENSES | AE37: =SUM(AE35:AE36) -> 0 | AF37: =SUM(AF35:AF36) -> 0 | AG37: =SUM(AG35:AG36) -> -426 | AH37: =SUM(AH35:AH36) -> -5330 | AI37: =SUM(AI35:AI36) -> 0 | AJ37: =SUM(AJ35:AJ36) -> 0 | AK37: =SUM(AK35:AK36) -> 0 | AL37: 0 | AM37: =SUM(AM35:AM36) -> 0 | AP37: =1+AP36 -> 19 | AQ37: TOTAL DISTRIBUTION EXPENSES | AR37: =SUM(AR35:AR36) -> 0 | AS37: =SUM(AS35:AS36) -> 0 | AT37: =SUM(AT35:AT36) -> 0 | AU37: =SUM(AU35:AU36) -> 0 | AV37: =SUM(AV35:AV36) -> 0 | AW37: =SUM(AW35:AW36) -> 0 | AX37: =SUM(AX35:AX36) -> 0 | AY37: 0 | AZ37: =SUM(AZ35:AZ36) -> 0 | BC37: =1+BC36 -> 19 | BD37: TOTAL DISTRIBUTION EXPENSES | BE37: =SUM(BE35:BE36) -> 0 | BF37: =SUM(BF35:BF36) -> 0 | BG37: 0 | BH37: 9 | BI37: 0 | BJ37: 0 | BK37: 0 | BL37: 0 | BM37: =SUM(BM35:BM36) -> 0 | BP37: =1+BP36 -> 19 | BQ37: TOTAL DISTRIBUTION EXPENSES | BR37: =SUM(BR35:BR36) -> 0 | BS37: 0 | BT37: =SUM(BT35:BT36) -> 0 | BU37: 0 | BV37: 0 | BX37: =SUM(BX35:BX36) -> -3275 | BY37: =SUM(BY35:BY36) -> 150410
D39: CUSTOMER ACCOUNTING EXPENSES: | Q39: CUSTOMER ACCOUNTING EXPENSES: | AD39: CUSTOMER ACCOUNTING EXPENSES: | AQ39: CUSTOMER ACCOUNTING EXPENSES: | BD39: CUSTOMER ACCOUNTING EXPENSES: | BQ39: CUSTOMER ACCOUNTING EXPENSES:
C40: =1+C37 -> 20 | D40: LABOR | E40: =+ROUND('[1]O&M'!$B$42*0.001,0) -> 20476 | F40: =+ROUND('[1]O&M'!$C$42*0.001,0) -> 1083 | G40: =+ROUND('[1]O&M'!$D$42*0.001,0) -> -113 | H40: =+ROUND('[1]O&M'!$E$42*0.001,0) -> -164 | I40: =+ROUND('[1]O&M'!G42*0.001,0) -> 0 | J40: 0 | K40: =+ROUND('[1]O&M'!I42*0.001,0) -> 0 | L40: 0 | M40: 0 | P40: =1+P37 -> 20 | Q40: LABOR | R40: 0 | S40: 0 | T40: 0 | U40: 0 | V40: =+ROUND('[1]O&M'!O42*0.001,0) -> 0 | W40: =+ROUND('[1]O&M'!U42*0.001,0) -> 0 | X40: =+ROUND('[1]O&M'!V42*0.001,0) -> 0 | Y40: 0 | Z40: 0 | AC40: =1+AC37 -> 20 | AD40: LABOR | AE40: 0 | AF40: 0 | AG40: 0 | AH40: 0 | AI40: 0 | AJ40: 0 | AK40: 0 | AL40: 0 | AM40: 0 | AP40: =1+AP37 -> 20 | AQ40: LABOR | AR40: 0 | AS40: 0 | AT40: 0 | AU40: 0 | AV40: 0 | AW40: 0 | AX40: 0 | AY40: 0 | AZ40: 0 | BC40: =1+BC37 -> 20 | BD40: LABOR | BE40: 0 | BF40: 0 | BG40: 0 | BH40: 0 | BI40: 0 | BJ40: 0 | BK40: 0 | BL40: 0 | BM40: 0 | BP40: =1+BP37 -> 20 | BQ40: LABOR | BR40: 0 | BS40: 0 | BT40: 0 | BU40: 0 | BV40: 0 | BX40: =SUM(F40:M40,R40:Z40,AE40:AM40,AR40:AZ40,BE40:BM40,BR40:BW40) -> 806 | BY40: =E40+BX40 -> 21282
C41: =1+C40 -> 21 | D41: OTHER | E41: =+ROUND('[1]O&M'!$B$43*0.001,0) -> 27092 | F41: 0 | G41: 0 | H41: 0 | I41: =+ROUND('[1]O&M'!G43*0.001,0) -> 0 | J41: 0 | K41: =+ROUND('[1]O&M'!I43*0.001,0) -> 0 | L41: 0 | M41: 0 | P41: =1+P40 -> 21 | Q41: OTHER | R41: 0 | S41: 0 | T41: 0 | U41: 0 | V41: =+ROUND('[1]O&M'!O43*0.001,0) -> 0 | W41: =+ROUND('[1]O&M'!U43*0.001,0) -> 0 | X41: =+ROUND('[1]O&M'!V43*0.001,0) -> 0 | Y41: 0 | Z41: 0 | AC41: =1+AC40 -> 21 | AD41: OTHER | AE41: 0 | AF41: 0 | AG41: 0 | AH41: 0 | AI41: =+ROUND('[1]O&M'!$Z$43*0.001,0) -> 800 | AJ41: 0 | AK41: 0 | AL41: =+ROUND('[1]O&M'!$AE$43*0.001,0) -> 3572 | AM41: 0 | AP41: =1+AP40 -> 21 | AQ41: OTHER | AR41: 0 | AS41: 0 | AT41: 0 | AU41: 0 | AV41: 0 | AW41: 0 | AX41: 0 | AY41: 0 | AZ41: 0 | BC41: =1+BC40 -> 21 | BD41: OTHER | BE41: 0 | BF41: 0 | BG41: 0 | BH41: =ROUND('[1]O&M'!$BC$43*0.001,0) -> 0 | BI41: =ROUND('[1]O&M'!$BD$43*0.001,0) -> -2373 | BJ41: =ROUND('[1]O&M'!$BK$43*0.001,0) -> 0 | BK41: 0 | BL41: 0 | BM41: =+ROUND('[1]O&M'!$BH$43*0.001,0) -> 3849 | BP41: =1+BP40 -> 21 | BQ41: OTHER | BR41: 0 | BS41: 0 | BT41: 0 | BU41: 0 | BV41: 0 | BX41: =SUM(F41:M41,R41:Z41,AE41:AM41,AR41:AZ41,BE41:BM41,BR41:BW41) -> 5848 | BY41: =E41+BX41 -> 32940
C42: =1+C41 -> 22 | D42: TOTAL CUSTOMER ACCOUNTING EXPENSES | E42: =SUM(E40:E41) -> 47568 | F42: 1083 | G42: -113 | H42: -164 | I42: =SUM(I40:I41) -> 0 | J42: =SUM(J40:J41) -> 0 | K42: =SUM(K40:K41) -> 0 | L42: =SUM(L40:L41) -> 0 | M42: =SUM(M40:M41) -> 0 | P42: =1+P41 -> 22 | Q42: TOTAL CUSTOMER ACCOUNTING EXPENSES | R42: =SUM(R40:R41) -> 0 | S42: =SUM(S40:S41) -> 0 | T42: 0 | U42: =SUM(U40:U41) -> 0 | V42: =SUM(V40:V41) -> 0 | W42: =SUM(W40:W41) -> 0 | X42: =SUM(X40:X41) -> 0 | Y42: =SUM(Y40:Y41) -> 0 | Z42: 0 | AC42: =1+AC41 -> 22 | AD42: TOTAL CUSTOMER ACCOUNTING EXPENSES | AE42: =SUM(AE40:AE41) -> 0 | AF42: =SUM(AF40:AF41) -> 0 | AG42: =SUM(AG40:AG41) -> 0 | AH42: =SUM(AH40:AH41) -> 0 | AI42: =SUM(AI40:AI41) -> 800 | AJ42: =SUM(AJ40:AJ41) -> 0 | AK42: =SUM(AK40:AK41) -> 0 | AL42: 3572 | AM42: =SUM(AM40:AM41) -> 0 | AP42: =1+AP41 -> 22 | AQ42: TOTAL CUSTOMER ACCOUNTING EXPENSES | AR42: =SUM(AR40:AR41) -> 0 | AS42: =SUM(AS40:AS41) -> 0 | AT42: =SUM(AT40:AT41) -> 0 | AU42: =SUM(AU40:AU41) -> 0 | AV42: =SUM(AV40:AV41) -> 0 | AW42: =SUM(AW40:AW41) -> 0 | AX42: =SUM(AX40:AX41) -> 0 | AY42: 0 | AZ42: =SUM(AZ40:AZ41) -> 0 | BC42: =1+BC41 -> 22 | BD42: TOTAL CUSTOMER ACCOUNTING EXPENSES | BE42: =SUM(BE40:BE41) -> 0 | BF42: =SUM(BF40:BF41) -> 0 | BG42: 0 | BH42: 0 | BI42: -2373 | BJ42: 0 | BK42: 0 | BL42: 0 | BM42: =SUM(BM40:BM41) -> 3849 | BP42: =1+BP41 -> 22 | BQ42: TOTAL CUSTOMER ACCOUNTING EXPENSES | BR42: =SUM(BR40:BR41) -> 0 | BS42: 0 | BT42: =SUM(BT40:BT41) -> 0 | BU42: 0 | BV42: 0 | BX42: =SUM(BX40:BX41) -> 6654 | BY42: =SUM(BY40:BY41) -> 54222
D44: CUSTOMER SERV. & INFO. EXPENSES: | Q44: CUSTOMER SERV. & INFO. EXPENSES: | AD44: CUSTOMER SERV. & INFO. EXPENSES: | AQ44: CUSTOMER SERV. & INFO. EXPENSES: | BD44: CUSTOMER SERV. & INFO. EXPENSES: | BQ44: CUSTOMER SERV. & INFO. EXPENSES:
C45: =1+C42 -> 23 | D45: LABOR | E45: =+ROUND('[1]O&M'!$B$47*0.001,0) -> 6915 | F45: =+ROUND('[1]O&M'!$C$47*0.001,0)+1 -> 329 | G45: =+ROUND('[1]O&M'!$D$47*0.001,0) -> -38 | H45: =+ROUND('[1]O&M'!$E$47*0.001,0)+0.5 -> -210.5 | I45: =+ROUND('[1]O&M'!G47*0.001,0) -> 0 | J45: 0 | K45: =+ROUND('[1]O&M'!I47*0.001,0) -> 0 | L45: 0 | M45: 0 | P45: =1+P42 -> 23 | Q45: LABOR | R45: 0 | S45: 0 | T45: 0 | U45: 0 | V45: =+ROUND('[1]O&M'!O47*0.001,0) -> 0 | W45: =+ROUND('[1]O&M'!U47*0.001,0) -> 0 | X45: =+ROUND('[1]O&M'!V47*0.001,0) -> 0 | Y45: 0 | Z45: 0 | AC45: =1+AC42 -> 23 | AD45: LABOR | AE45: 0 | AF45: 0 | AG45: 0 | AH45: 0 | AI45: 0 | AJ45: 0 | AK45: 0 | AL45: 0 | AM45: 0 | AP45: =1+AP42 -> 23 | AQ45: LABOR | AR45: 0 | AS45: 0 | AT45: 0 | AU45: 0 | AV45: 0 | AW45: 0 | AX45: 0 | AY45: 0 | AZ45: 0 | BC45: =1+BC42 -> 23 | BD45: LABOR | BE45: 0 | BF45: 0 | BG45: 0 | BH45: 0 | BI45: 0 | BJ45: 0 | BK45: 0 | BL45: 0 | BM45: 0 | BP45: =1+BP42 -> 23 | BQ45: LABOR | BR45: 0 | BS45: 0 | BT45: 0 | BU45: 0 | BV45: 0 | BX45: =SUM(F45:M45,R45:Z45,AE45:AM45,AR45:AZ45,BE45:BM45,BR45:BW45) -> 80.5 | BY45: =E45+BX45 -> 6995.5
A46: SCHEDULE MJL-D11-1 | C46: =1+C45 -> 24 | D46: OTHER | E46: =+ROUND('[1]O&M'!$B$48*0.001,0) -> 81084 | F46: 0 | G46: 0 | H46: 0 | I46: =+ROUND('[1]O&M'!G48*0.001,0) -> 0 | J46: 0 | K46: =+ROUND('[1]O&M'!I48*0.001,0) -> 0 | L46: 0 | M46: 0 | N46: SCHEDULE MJL-D11-2 | P46: =1+P45 -> 24 | Q46: OTHER | R46: 0 | S46: 0 | T46: 0 | U46: 0 | V46: =+ROUND('[1]O&M'!O48*0.001,0) -> 0 | W46: 0 | X46: 0 | Y46: 0 | Z46: 0 | AA46: SCHEDULE MJL-D11-3 | AC46: =1+AC45 -> 24 | AD46: OTHER | AE46: =+ROUND('[1]O&M'!$U$48*0.001,0) -> -978 | AF46: =+ROUND('[1]O&M'!$V$48*0.001,0) -> 1338 | AG46: 0 | AH46: 0 | AI46: 0 | AJ46: =+ROUND('[1]O&M'!$AB$48*0.001,0) -> -73388 | AK46: =+ROUND('[1]O&M'!$AC$48*0.001,0) -> 163 | AL46: 0 | AM46: 0 | AN46: SCHEDULE MJL-D11-4 | AP46: =1+AP45 -> 24 | AQ46: OTHER | AR46: 0 | AS46: 0 | AT46: 0 | AU46: 0 | AV46: =+ROUND('[1]O&M'!$AN$48*0.001,0) -> 0 | AW46: 0 | AX46: 0 | AY46: 0 | AZ46: 0 | BA46: SCHEDULE MJL-D11-5 | BC46: =1+BC45 -> 24 | BD46: OTHER | BE46: 0 | BF46: 0 | BG46: 0 | BH46: =ROUND('[1]O&M'!$BC$48*0.001,0) -> 1 | BI46: 0 | BJ46: 0 | BK46: 0 | BL46: 0 | BM46: 0 | BN46: SCHEDULE MJL-D11-6 | BP46: =1+BP45 -> 24 | BQ46: OTHER | BR46: 0 | BS46: 0 | BT46: 0 | BU46: 0 | BV46: 0 | BX46: =SUM(F46:M46,R46:Z46,AE46:AM46,AR46:AZ46,BE46:BM46,BR46:BW46) -> -72864 | BY46: =E46+BX46 -> 8220
C47: =1+C46 -> 25 | D47: TOTAL CUSTOMER SERV. & INFO. EXPENSES | E47: =SUM(E45:E46) -> 87999 | F47: 329 | G47: -38 | H47: -210.5 | I47: =SUM(I45:I46) -> 0 | J47: =SUM(J45:J46) -> 0 | K47: =SUM(K45:K46) -> 0 | L47: =SUM(L45:L46) -> 0 | M47: =SUM(M45:M46) -> 0 | P47: =1+P46 -> 25 | Q47: TOTAL CUSTOMER SERV. & INFO. EXPENSES | R47: =SUM(R45:R46) -> 0 | S47: =SUM(S45:S46) -> 0 | T47: 0 | U47: =SUM(U45:U46) -> 0 | V47: =SUM(V45:V46) -> 0 | W47: =SUM(W45:W46) -> 0 | X47: =SUM(X45:X46) -> 0 | Y47: =SUM(Y45:Y46) -> 0 | Z47: 0 | AC47: =1+AC46 -> 25 | AD47: TOTAL CUSTOMER SERV. & INFO. EXPENSES | AE47: =SUM(AE45:AE46) -> -978 | AF47: =SUM(AF45:AF46) -> 1338 | AG47: =SUM(AG45:AG46) -> 0 | AH47: =SUM(AH45:AH46) -> 0 | AI47: =SUM(AI45:AI46) -> 0 | AJ47: =SUM(AJ45:AJ46) -> -73388 | AK47: =SUM(AK45:AK46) -> 163 | AL47: 0 | AM47: =SUM(AM45:AM46) -> 0 | AP47: =1+AP46 -> 25 | AQ47: TOTAL CUSTOMER SERV. & INFO. EXPENSES | AR47: =SUM(AR45:AR46) -> 0 | AS47: =SUM(AS45:AS46) -> 0 | AT47: =SUM(AT45:AT46) -> 0 | AU47: =SUM(AU45:AU46) -> 0 | AV47: =SUM(AV45:AV46) -> 0 | AW47: =SUM(AW45:AW46) -> 0 | AX47: =SUM(AX45:AX46) -> 0 | AY47: 0 | AZ47: =SUM(AZ45:AZ46) -> 0 | BC47: =1+BC46 -> 25 | BD47: TOTAL CUSTOMER SERV. & INFO. EXPENSES | BE47: =SUM(BE45:BE46) -> 0 | BF47: =SUM(BF45:BF46) -> 0 | BG47: 0 | BH47: 1 | BI47: 0 | BJ47: 0 | BK47: 0 | BL47: 0 | BM47: =SUM(BM45:BM46) -> 0 | BP47: =1+BP46 -> 25 | BQ47: TOTAL CUSTOMER SERV. & INFO. EXPENSES | BR47: =SUM(BR45:BR46) -> 0 | BS47: 0 | BT47: =SUM(BT45:BT46) -> 0 | BU47: 0 | BV47: 0 | BX47: =SUM(BX45:BX46) -> -72783.5 | BY47: =SUM(BY45:BY46) -> 15215.5
D49: SALES EXPENSES: | Q49: SALES EXPENSES: | AD49: SALES EXPENSES: | AQ49: SALES EXPENSES: | BD49: SALES EXPENSES: | BQ49: SALES EXPENSES:
C50: =1+C47 -> 26 | D50: LABOR | E50: =+ROUND('[1]O&M'!$B$52*0.001,0) -> 279 | F50: =+ROUND('[1]O&M'!$C$52*0.001,0) -> 14 | G50: =+ROUND('[1]O&M'!$D$52*0.001,0) -> -2 | H50: 0 | I50: =+ROUND('[1]O&M'!G52*0.001,0) -> 0 | J50: 0 | K50: =+ROUND('[1]O&M'!I52*0.001,0) -> 0 | L50: 0 | M50: 0 | P50: =1+P47 -> 26 | Q50: LABOR | R50: 0 | S50: 0 | T50: 0 | U50: 0 | V50: =+ROUND('[1]O&M'!O52*0.001,0) -> 0 | W50: =+ROUND('[1]O&M'!U52*0.001,0) -> 0 | X50: =+ROUND('[1]O&M'!V52*0.001,0) -> 0 | Y50: 0 | Z50: 0 | AC50: =1+AC47 -> 26 | AD50: LABOR | AE50: 0 | AF50: 0 | AG50: 0 | AH50: 0 | AI50: 0 | AJ50: 0 | AK50: 0 | AL50: 0 | AM50: 0 | AP50: =1+AP47 -> 26 | AQ50: LABOR | AR50: 0 | AS50: 0 | AT50: 0 | AU50: 0 | AV50: 0 | AW50: 0 | AX50: 0 | AY50: 0 | AZ50: 0 | BC50: =1+BC47 -> 26 | BD50: LABOR | BE50: 0 | BF50: 0 | BG50: 0 | BH50: 0 | BI50: 0 | BJ50: 0 | BK50: 0 | BL50: 0 | BM50: 0 | BP50: =1+BP47 -> 26 | BQ50: LABOR | BR50: 0 | BS50: 0 | BT50: 0 | BU50: 0 | BV50: 0 | BX50: =SUM(F50:M50,R50:Z50,AE50:AM50,AR50:AZ50,BE50:BM50,BR50:BW50) -> 12 | BY50: =E50+BX50 -> 291
C51: =1+C50 -> 27 | D51: OTHER | E51: =+ROUND('[1]O&M'!$B$53*0.001,0)+1 -> 200 | F51: 0 | G51: 0 | H51: 0 | I51: =+ROUND('[1]O&M'!G53*0.001,0) -> 0 | J51: 0 | K51: =+ROUND('[1]O&M'!I53*0.001,0) -> 0 | L51: =+ROUND('[1]O&M'!$J$53*0.001,0) -> 0 | M51: 0 | P51: =1+P50 -> 27 | Q51: OTHER | R51: 0 | S51: 0 | T51: 0 | U51: 0 | V51: =+ROUND('[1]O&M'!O53*0.001,0) -> 0 | W51: =+ROUND('[1]O&M'!U53*0.001,0) -> 0 | X51: =+ROUND('[1]O&M'!V53*0.001,0) -> 0 | Y51: 0 | Z51: 0 | AC51: =1+AC50 -> 27 | AD51: OTHER | AE51: 0 | AF51: 0 | AG51: 0 | AH51: 0 | AI51: 0 | AJ51: 0 | AK51: 0 | AL51: 0 | AM51: 0 | AP51: =1+AP50 -> 27 | AQ51: OTHER | AR51: 0 | AS51: 0 | AT51: 0 | AU51: 0 | AV51: 0 | AW51: 0 | AX51: 0 | AY51: 0 | AZ51: 0 | BC51: =1+BC50 -> 27 | BD51: OTHER | BE51: 0 | BF51: 0 | BG51: 0 | BH51: 0 | BI51: 0 | BJ51: 0 | BK51: 0 | BL51: 0 | BM51: 0 | BP51: =1+BP50 -> 27 | BQ51: OTHER | BR51: 0 | BS51: 0 | BT51: 0 | BU51: 0 | BV51: 0 | BX51: =SUM(F51:M51,R51:Z51,AE51:AM51,AR51:AZ51,BE51:BM51,BR51:BW51) -> 0 | BY51: =E51+BX51 -> 200
C52: =1+C51 -> 28 | D52: TOTAL SALES EXPENSES | E52: =SUM(E50:E51) -> 479 | F52: 14 | G52: -2 | H52: 0 | I52: =SUM(I50:I51) -> 0 | J52: =SUM(J50:J51) -> 0 | K52: =SUM(K50:K51) -> 0 | L52: =SUM(L50:L51) -> 0 | M52: =SUM(M50:M51) -> 0 | P52: =1+P51 -> 28 | Q52: TOTAL SALES EXPENSES | R52: =SUM(R50:R51) -> 0 | S52: =SUM(S50:S51) -> 0 | T52: 0 | U52: =SUM(U50:U51) -> 0 | V52: =SUM(V50:V51) -> 0 | W52: =SUM(W50:W51) -> 0 | X52: =SUM(X50:X51) -> 0 | Y52: =SUM(Y50:Y51) -> 0 | Z52: 0 | AC52: =1+AC51 -> 28 | AD52: TOTAL SALES EXPENSES | AE52: =SUM(AE50:AE51) -> 0 | AF52: =SUM(AF50:AF51) -> 0 | AG52: =SUM(AG50:AG51) -> 0 | AH52: =SUM(AH50:AH51) -> 0 | AI52: =SUM(AI50:AI51) -> 0 | AJ52: =SUM(AJ50:AJ51) -> 0 | AK52: =SUM(AK50:AK51) -> 0 | AL52: 0 | AM52: =SUM(AM50:AM51) -> 0 | AP52: =1+AP51 -> 28 | AQ52: TOTAL SALES EXPENSES | AR52: =SUM(AR50:AR51) -> 0 | AS52: =SUM(AS50:AS51) -> 0 | AT52: =SUM(AT50:AT51) -> 0 | AU52: =SUM(AU50:AU51) -> 0 | AV52: =SUM(AV50:AV51) -> 0 | AW52: =SUM(AW50:AW51) -> 0 | AX52: =SUM(AX50:AX51) -> 0 | AY52: 0 | AZ52: =SUM(AZ50:AZ51) -> 0 | BC52: =1+BC51 -> 28 | BD52: TOTAL SALES EXPENSES | BE52: =SUM(BE50:BE51) -> 0 | BF52: =SUM(BF50:BF51) -> 0 | BG52: 0 | BH52: 0 | BI52: 0 | BJ52: 0 | BK52: 0 | BL52: 0 | BM52: =SUM(BM50:BM51) -> 0 | BP52: =1+BP51 -> 28 | BQ52: TOTAL SALES EXPENSES | BR52: =SUM(BR50:BR51) -> 0 | BS52: 0 | BT52: =SUM(BT50:BT51) -> 0 | BU52: 0 | BV52: 0 | BX52: =SUM(BX50:BX51) -> 12 | BY52: =SUM(BY50:BY51) -> 491
D54: ADMINISTRATIVE & GENERAL EXPENSES: | Q54: ADMINISTRATIVE & GENERAL EXPENSES: | AD54: ADMINISTRATIVE & GENERAL EXPENSES: | AQ54: ADMINISTRATIVE & GENERAL EXPENSES: | BD54: ADMINISTRATIVE & GENERAL EXPENSES: | BQ54: ADMINISTRATIVE & GENERAL EXPENSES:
C55: =1+C52 -> 29 | D55: LABOR | E55: =+ROUND('[1]O&M'!$B$57*0.001,0) -> 65147 | F55: =+ROUND('[1]O&M'!$C$57*0.001,0) -> 2716 | G55: =+ROUND('[1]O&M'!$D$57*0.001,0) -> -360 | H55: =+ROUND('[1]O&M'!$E$57*0.001,0) -> -3929 | I55: =+ROUND('[1]O&M'!G57*0.001,0) -> 0 | J55: 0 | K55: =+ROUND('[1]O&M'!I57*0.001,0) -> 0 | L55: 0 | M55: 0 | P55: =1+P52 -> 29 | Q55: LABOR | R55: 0 | S55: 0 | T55: 0 | U55: 0 | V55: =+ROUND('[1]O&M'!O57*0.001,0) -> 0 | W55: =+ROUND('[1]O&M'!U57*0.001,0) -> 0 | X55: =+ROUND('[1]O&M'!V57*0.001,0) -> 0 | Y55: 0 | Z55: 0 | AC55: =1+AC52 -> 29 | AD55: LABOR | AE55: 0 | AF55: 0 | AG55: 0 | AH55: 0 | AI55: 0 | AJ55: 0 | AK55: 0 | AL55: 0 | AM55: 0 | AP55: =1+AP52 -> 29 | AQ55: LABOR | AR55: 0 | AS55: 0 | AT55: 0 | AU55: 0 | AV55: 0 | AW55: 0 | AX55: 0 | AY55: 0 | AZ55: 0 | BC55: =1+BC52 -> 29 | BD55: LABOR | BE55: 0 | BF55: 0 | BG55: 0 | BH55: 0 | BI55: 0 | BJ55: 0 | BK55: 0 | BL55: 0 | BM55: 0 | BP55: =1+BP52 -> 29 | BQ55: LABOR | BR55: 0 | BS55: 0 | BT55: 0 | BU55: 0 | BV55: 0 | BX55: =SUM(F55:M55,R55:Z55,AE55:AM55,AR55:AZ55,BE55:BM55,BR55:BW55) -> -1573 | BY55: =E55+BX55 -> 63574
C56: =1+C55 -> 30 | D56: OTHER | E56: =+ROUND('[1]O&M'!$B$58*0.001,0) -> 129431 | F56: 0 | G56: 0 | H56: 0 | I56: =+ROUND('[1]O&M'!G58*0.001,0) -> 0 | J56: 0 | K56: =+ROUND('[1]O&M'!I58*0.001,0) -> 0 | L56: =+ROUND('[1]O&M'!$J$58*0.001,0) -> -1 | M56: 0 | P56: =1+P55 -> 30 | Q56: OTHER | R56: 0 | S56: 0 | T56: 0 | U56: 0 | V56: =+ROUND('[1]O&M'!O58*0.001,0) -> 0 | W56: =+ROUND('[1]O&M'!U58*0.001,0) -> 0 | X56: =+ROUND('[1]O&M'!V58*0.001,0) -> 0 | Y56: 0 | Z56: 0 | AC56: =1+AC55 -> 30 | AD56: OTHER | AE56: 0 | AF56: =+ROUND('[1]O&M'!$Z$48*0.001,0) -> 0 | AG56: 0 | AH56: 0 | AI56: 0 | AJ56: =+ROUND('[1]O&M'!$AA$58*0.001,0) -> 0 | AK56: 0 | AL56: 0 | AM56: =+ROUND('[1]O&M'!$AI$58*0.001,0) -> 3018 | AP56: =1+AP55 -> 30 | AQ56: OTHER | AR56: =+ROUND('[1]O&M'!$AJ$58*0.001,0) -> 975 | AS56: =+ROUND('[1]O&M'!$AL$58*0.001,0) -> -148 | AT56: =+ROUND('[1]O&M'!$AM$58*0.001,0) -> -27901 | AU56: =+ROUND('[1]O&M'!$AN$58*0.001,0) -> 2498 | AV56: 0 | AW56: =+ROUND('[1]O&M'!$AP$58*0.001,0) -> -136 | AX56: =+ROUND('[1]O&M'!$AQ$58*0.001,0) -> -232 | AY56: =+ROUND('[1]O&M'!$AR$58*0.001,0) -> -422 | AZ56: =+ROUND('[1]O&M'!$AT$58*0.001,0) -> -48 | BC56: =1+BC55 -> 30 | BD56: OTHER | BE56: =+ROUND('[1]O&M'!$AS$58*0.001,0) -> 80 | BF56: =+ROUND('[1]O&M'!$AW$58*0.001,0) -> -710 | BG56: =+ROUND('[1]O&M'!$AY$58*0.001,0) -> 0 | BH56: =+ROUND('[1]O&M'!$BC$58*0.001,0)+1 -> 588 | BI56: =+ROUND('[1]O&M'!$BD$58*0.001,0) -> 0 | BJ56: =+ROUND('[1]O&M'!$BK$58*0.001,0) -> -6274 | BK56: =+ROUND('[1]O&M'!$BM$58*0.001,0) -> 0 | BL56: =+ROUND('[1]O&M'!$BG$58*0.001,0) -> 15 | BM56: 0 | BP56: =1+BP55 -> 30 | BQ56: OTHER | BR56: =+ROUND('[1]O&M'!$BN$58*0.001,0) -> 345 | BS56: =+ROUND('[1]O&M'!$BO$58*0.001,0) -> -277 | BT56: =+ROUND('[1]O&M'!$BP$58*0.001,0) -> 355 | BU56: =+ROUND('[1]O&M'!$BQ$58*0.001,0) -> 384 | BV56: =+ROUND('[1]O&M'!$BS$58*0.001,0) -> 1 | BX56: =SUM(F56:M56,R56:Z56,AE56:AM56,AR56:AZ56,BE56:BM56,BR56:BW56) -> -27890 | BY56: =E56+BX56 -> 101541
C57: =1+C56 -> 31 | D57: TOTAL ADMINISTRATIVE & GENERAL EXPENSES | E57: =SUM(E55:E56) -> 194578 | F57: 2716 | G57: -360 | H57: -3929 | I57: =SUM(I55:I56) -> 0 | J57: =SUM(J55:J56) -> 0 | K57: =SUM(K55:K56) -> 0 | L57: =SUM(L55:L56) -> -1 | M57: =SUM(M55:M56) -> 0 | P57: =1+P56 -> 31 | Q57: TOTAL ADMINISTRATIVE & GENERAL EXPENSES | R57: =SUM(R55:R56) -> 0 | S57: =SUM(S55:S56) -> 0 | T57: 0 | U57: =SUM(U55:U56) -> 0 | V57: =SUM(V55:V56) -> 0 | W57: =SUM(W55:W56) -> 0 | X57: =SUM(X55:X56) -> 0 | Y57: =SUM(Y55:Y56) -> 0 | Z57: 0 | AC57: =1+AC56 -> 31 | AD57: TOTAL ADMINISTRATIVE & GENERAL EXPENSES | AE57: =SUM(AE55:AE56) -> 0 | AF57: =SUM(AF55:AF56) -> 0 | AG57: =SUM(AG55:AG56) -> 0 | AH57: =SUM(AH55:AH56) -> 0 | AI57: =SUM(AI55:AI56) -> 0 | AJ57: =SUM(AJ55:AJ56) -> 0 | AK57: =SUM(AK55:AK56) -> 0 | AL57: 0 | AM57: =SUM(AM55:AM56) -> 3018 | AP57: =1+AP56 -> 31 | AQ57: TOTAL ADMINISTRATIVE & GENERAL EXPENSES | AR57: =SUM(AR55:AR56) -> 975 | AS57: =SUM(AS55:AS56) -> -148 | AT57: =SUM(AT55:AT56) -> -27901 | AU57: 2498 | AV57: =SUM(AV55:AV56) -> 0 | AW57: =SUM(AW55:AW56) -> -136 | AX57: -232 | AY57: =SUM(AY55:AY56) -> -422 | AZ57: =SUM(AZ55:AZ56) -> -48 | BC57: =1+BC56 -> 31 | BD57: TOTAL ADMINISTRATIVE & GENERAL EXPENSES | BE57: =SUM(BE55:BE56) -> 80 | BF57: =SUM(BF55:BF56) -> -710 | BG57: 0 | BH57: 588 | BI57: 0 | BJ57: -6274 | BK57: 0 | BL57: 15 | BM57: =SUM(BM55:BM56) -> 0 | BP57: =1+BP56 -> 31 | BQ57: TOTAL ADMINISTRATIVE & GENERAL EXPENSES | BR57: =SUM(BR55:BR56) -> 345 | BS57: -277 | BT57: =SUM(BT55:BT56) -> 355 | BU57: 384 | BV57: 1 | BX57: =SUM(BX55:BX56) -> -29463 | BY57: =SUM(BY55:BY56) -> 165115
C59: =1+C57 -> 32 | D59: TOTAL OPERATIONS & MAINTENANCE EXPENSES | E59: =E22+E27+E32+E37+E42+E47+E52+E57 -> 1734030 | F59: =F22+F27+F32+F37+F42+F47+F52+F57 -> 17728 | G59: -1969 | H59: -6437.5 | I59: =I22+I27+I32+I37+I42+I47+I52+I57 -> -11886 | J59: =J22+J27+J32+J37+J42+J47+J52+J57 -> 200766 | K59: =K22+K27+K32+K37+K42+K47+K52+K57 -> -125 | L59: =L22+L27+L32+L37+L42+L47+L52+L57 -> -29 | M59: =M22+M27+M32+M37+M42+M47+M52+M57 -> 15105 | P59: =1+P57 -> 32 | Q59: TOTAL OPERATIONS & MAINTENANCE EXPENSES | R59: =R22+R27+R32+R37+R42+R47+R52+R57 -> 1496 | S59: =S22+S27+S32+S37+S42+S47+S52+S57 -> -2539 | T59: -1443 | U59: =U22+U27+U32+U37+U42+U47+U52+U57 -> -102847 | V59: =V22+V27+V32+V37+V42+V47+V52+V57 -> 27977 | W59: =W22+W27+W32+W37+W42+W47+W52+W57 -> -27887 | X59: =X22+X27+X32+X37+X42+X47+X52+X57 -> -968 | Y59: =Y22+Y27+Y32+Y37+Y42+Y47+Y52+Y57 -> 3902 | Z59: 1962 | AC59: =1+AC57 -> 32 | AD59: TOTAL OPERATIONS & MAINTENANCE EXPENSES | AE59: =AE22+AE27+AE32+AE37+AE42+AE47+AE52+AE57 -> -978 | AF59: =AF22+AF27+AF32+AF37+AF42+AF47+AF52+AF57 -> 1338 | AG59: =AG22+AG27+AG32+AG37+AG42+AG47+AG52+AG57 -> -825 | AH59: -5330 | AI59: =AI22+AI27+AI32+AI37+AI42+AI47+AI52+AI57 -> 800 | AJ59: -73388 | AK59: 163 | AL59: 3572 | AM59: =AM22+AM27+AM32+AM37+AM42+AM47+AM52+AM57 -> 3018 | AP59: =1+AP57 -> 32 | AQ59: TOTAL OPERATIONS & MAINTENANCE EXPENSES | AR59: =AR22+AR27+AR32+AR37+AR42+AR47+AR52+AR57 -> 975 | AS59: =AS22+AS27+AS32+AS37+AS42+AS47+AS52+AS57 -> -148 | AT59: =AT22+AT27+AT32+AT37+AT42+AT47+AT52+AT57 -> -27901 | AU59: 2498 | AV59: =AV22+AV27+AV32+AV37+AV42+AV47+AV52+AV57 -> 3892 | AW59: =AW22+AW27+AW32+AW37+AW42+AW47+AW52+AW57 -> -136 | AX59: -232 | AY59: =AY22+AY27+AY32+AY37+AY42+AY47+AY52+AY57 -> -422 | AZ59: =AZ22+AZ27+AZ32+AZ37+AZ42+AZ47+AZ52+AZ57 -> -48 | BC59: =1+BC57 -> 32 | BD59: TOTAL OPERATIONS & MAINTENANCE EXPENSES | BE59: =BE22+BE27+BE32+BE37+BE42+BE47+BE52+BE57 -> 80 | BF59: =BF22+BF27+BF32+BF37+BF42+BF47+BF52+BF57 -> -710 | BG59: 0 | BH59: 554 | BI59: -2373 | BJ59: -6274 | BK59: -3434 | BL59: 15 | BM59: =BM22+BM27+BM32+BM37+BM42+BM47+BM52+BM57 -> 3849 | BP59: =1+BP57 -> 32 | BQ59: TOTAL OPERATIONS & MAINTENANCE EXPENSES | BR59: =BR22+BR27+BR32+BR37+BR42+BR47+BR52+BR57 -> 345 | BS59: -277 | BT59: =BT22+BT27+BT32+BT37+BT42+BT47+BT52+BT57 -> 377 | BU59: 384 | BV59: 1 | BX59: =BX22+BX27+BX32+BX37+BX42+BX47+BX52+BX57 -> 12190.5 | BY59: =BY22+BY27+BY32+BY37+BY42+BY47+BY52+BY57 -> 1746220.5
C61: =1+C59 -> 33 | D61: NOTE: See SCHEDULE MJL-D11-7 for explanation of the pro forma adjustments. | P61: =1+P59 -> 33 | Q61: NOTE: See SCHEDULE MJL-D11-7 for explanation of the pro forma adjustments. | AC61: =1+AC59 -> 33 | AD61: NOTE: See SCHEDULE MJL-D11-7 for explanation of the pro forma adjustments. | AP61: =1+AP59 -> 33 | AQ61: NOTE: See SCHEDULE MJL-D11-7 for explanation of the pro forma adjustments. | BC61: =1+BC59 -> 33 | BD61: NOTE: See SCHEDULE MJL-D11-7 for explanation of the pro forma adjustments. | BP61: =1+BP59 -> 33 | BQ61: NOTE: See SCHEDULE MJL-D11-7 for explanation of the pro forma adjustments.

Sheet SCHEDULE MJL-D11-7
A1: AMEREN MISSOURI
A2: ELECTRIC OPERATING AND MAINTENANCE EXPENSE
A3: PRO FORMA ADJUSTMENTS
A4: ='SCHEDULE MJL-D5'!A3 -> FOR THE TWELVE MONTHS ENDED MARCH 31, 2022
A5: ($000)
B6: PRO FORMA | L6: TOTAL
A7: LINE | B7: ITEM NO. | C7: DESCRIPTION | L7: AMOUNT
B8: (A) | C8: (B) | L8: (C)
A10: 1 | B10: -1 | C10: Increased labor expense from annualizing the average 2.25% wage increase for management employees effective January 1, 2022, the 2.50% wage increase for the Company's union employees effective January 1, 2022 per the labor contracts, annualizing an average 3.75% wage increase for management employees effective January 1, 2023, and the 3.75% wage increase for the Company's union employees effective January 1, 2023. | L10: ='SCHEDULE MJL-D11-1 to 6'!F59 -> 17728
A11: =1+A10 -> 2
A12: =1+A11 -> 3
A13: =1+A12 -> 4
A15: =1+A13 -> 5 | B15: -2 | C15: Decrease the incentive compensation expense for the incentive compensation applicable to AMS and Ameren Missouri officers that is based on the achievement of earnings-per-share goals of the Company. | L15: ='SCHEDULE MJL-D11-1 to 6'!G59 -> -1969
A16: =1+A15 -> 6
A18: =1+A16 -> 7 | B18: -3 | C18: Eliminate the long term incentive compensation expense that is based on the achievement of earnings-per-share goals of the Company. | L18: ='SCHEDULE MJL-D11-1 to 6'!H59 -> -6437.5
A21: =1+A18 -> 8 | B21: -4 | C21: Decrease in fuel expense to reflect the normalized sales and customer growth through December 31, 2022 reflecting January 2023 fuel prices. | L21: ='SCHEDULE MJL-D11-1 to 6'!I59 -> -11886
A22: =1+A21 -> 9
A24: =1+A22 -> 10 | B24: -5 | C24: Increase in purchased power expense to reflect normalized sales and customer growth through December 30, 2022 and normalized power prices. | L24: ='SCHEDULE MJL-D11-1 to 6'!J59 -> 200766
A25: =1+A24 -> 11
A27: =1+A25 -> 12 | B27: -6 | C27: Decrease in transmission expense related to Mark Twain Transmission project. | L27: ='SCHEDULE MJL-D11-1 to 6'!K59 -> -125
A29: =1+A27 -> 13 | B29: -7 | C29: Remove membership dues related to lobbying activities. | L29: =+'SCHEDULE MJL-D11-1 to 6'!L59 -> -29
A31: =1+A29 -> 14 | B31: -8 | C31: Increase the coal handling costs to reflect the elimination of the coal refinement process. | L31: ='SCHEDULE MJL-D11-1 to 6'!M59 -> 15105
A33: =1+A31 -> 15 | B33: -9 | C33: Increase in production expense to normalize steam plant maintenance. | L33: ='SCHEDULE MJL-D11-1 to 6'!R59 -> 1496
A35: =1+A33 -> 16 | B35: -10 | C35: Decrease in production expense to remove a portion of production expense related to Rush Island Energy Center. | L35: ='SCHEDULE MJL-D11-1 to 6'!S59 -> -2539
A37: =1+A35 -> 17 | B37: -11 | C37: Decrease in production expense to remove a portion of production expense related to Meramec Energy Center. | L37: ='SCHEDULE MJL-D11-1 to 6'!T59 -> -1443
A39: =1+A37 -> 18 | B39: -12 | C39: Eliminate test year FAC recovery. | L39: ='SCHEDULE MJL-D11-1 to 6'!U59 -> -102847
A41: =1+A39 -> 19 | B41: -13 | C41: Increase to the nuclear production expense to include the average annualized amount of the last 3 Callaway | L41: ='SCHEDULE MJL-D11-1 to 6'!V59 -> 27977
A42: =1+A41 -> 20 | C42: Nuclear Plant refueling expenses.
A44: =1+A42 -> 21 | B44: -14 | C44: Decrease in production expenses for the amortization of Callaway refueling amortization. | L44: ='SCHEDULE MJL-D11-1 to 6'!W59 -> -27887
A46: =1+A44 -> 22 | B46: -15 | C46: Decrease in production expenses for the unplanned Callaway outage. | L46: ='SCHEDULE MJL-D11-1 to 6'!X59 -> -968
A48: =1+A46 -> 23 | B48: -16 | C48: Increase in production expenses for amortization of RES cost regulatory liability. | L48: ='SCHEDULE MJL-D11-1 to 6'!Y59 -> 3902
A50: =1+A48 -> 24 | B50: -17 | C50: Increase in production expenses for rebase of RES expenses | L50: ='SCHEDULE MJL-D11-1 to 6'!Z59 -> 1962
A52: =1+A50 -> 25 | B52: -18 | C52: Decrease in production expenses to eliminate Solar Rebate amortizations in the test year. | L52: ='SCHEDULE MJL-D11-1 to 6'!AE59 -> -978
A54: =1+A52 -> 26 | B54: -19 | C54: Increase in production expenses for Solar Rebate amortizations. | L54: ='SCHEDULE MJL-D11-1 to 6'!AF59 -> 1338
A56: =1+A54 -> 27 | B56: -20 | C56: Decrease in production and distribution expenses for decrease in depreciation charged to O&M. | L56: ='SCHEDULE MJL-D11-1 to 6'!AG59 -> -825
A58: =1+A56 -> 28 | B58: -21 | C58: Decrease in distribution expense to normalize storm costs. | L58: ='SCHEDULE MJL-D11-1 to 6'!AH59 -> -5330
A60: =1+A58 -> 29 | B60: -22 | C60: Increase in customer accounting expenses to reflect interest expense at 4.25% on the average customer deposit | L60: ='SCHEDULE MJL-D11-1 to 6'!AI59 -> 800
A61: =1+A60 -> 30 | C61: balance.
A63: =A61+1 -> 31 | B63: -23 | C63: Decrease in customer service to eliminate test year MEEIA program costs. | L63: ='SCHEDULE MJL-D11-1 to 6'!AJ59 -> -73388
A65: =1+A63 -> 32 | B65: -24 | C65: Increase in PAYS program amortization. | L65: ='SCHEDULE MJL-D11-1 to 6'!AK59 -> 163
A67: =1+A65 -> 33 | B67: -25 | C67: Increase in administrative and general expenses to normalize bad debt expense. | L67: ='SCHEDULE MJL-D11-1 to 6'!AL59 -> 3572
A69: =1+A67 -> 34 | B69: -26 | C69: Annualize insurance expense based upon current and expected insurance premiums. | L69: ='SCHEDULE MJL-D11-1 to 6'!AM59 -> 3018
A71: =1+A69 -> 35 | B71: -27 | C71: Increase administrative and general expenses to reflect annualized major medical and other employee benefit expenses through December 31, 2022. | L71: ='SCHEDULE MJL-D11-1 to 6'!AR59 -> 975
A72: =1+A71 -> 36
A74: =1+A72 -> 37 | B74: -28 | C74: Decrease non-qualified pension expense to reflect current level of expense. | L74: ='SCHEDULE MJL-D11-1 to 6'!AS59 -> -148
A76: =1+A74 -> 38 | B76: -29 | C76: Rebase Pension and OPEB Tracker to true up level. | L76: ='SCHEDULE MJL-D11-1 to 6'!AT59 -> -27901
A78: =1+A76 -> 39 | B78: -30 | C78: Increase the amortization of the net regulatory liabilities for Pension and OPEB Tracker. | L78: ='SCHEDULE MJL-D11-1 to 6'!AU59 -> 2498
A80: =1+A78 -> 40 | B80: -31 | C80: Increase in operating and maintenance expense for base level expenses related to RESRAM. | L80: ='SCHEDULE MJL-D11-1 to 6'!AV59 -> 3892
A82: =1+A80 -> 41 | B82: -32 | C82: Decrease administrative and general expenses to reflect the 5 case average of expenses to prepare and litigate this rate filings and normalize the amount. | L82: ='SCHEDULE MJL-D11-1 to 6'!AW59 -> -136
A83: =1+A82 -> 42
A85: =1+A83 -> 43 | B85: -33 | C85: Decrease administrative and general expenses to annualize MPSC Assessment. | L85: ='SCHEDULE MJL-D11-1 to 6'!AX59 -> -232
A87: =1+A85 -> 44 | B87: -34 | C87: Decrease administrative and general expenses for certain Board of Director meeting expenses. | L87: ='SCHEDULE MJL-D11-1 to 6'!AY59 -> -422
A89: =1+A87 -> 45 | B89: -35 | C89: Decrease administrative and general expense to normalize depreciation study expense. | L89: ='SCHEDULE MJL-D11-1 to 6'!AZ59 -> -48
A91: =1+A89 -> 46 | B91: -36 | C91: Increase in administrative and general expense for building rent from AMS. | L91: ='SCHEDULE MJL-D11-1 to 6'!BE59 -> 80
A93: =1+A91 -> 47 | B93: -37 | C93: Decrease administrative and general expenses for recently exited facilities. | L93: ='SCHEDULE MJL-D11-1 to 6'!BF59 -> -710
A95: =1+A93 -> 48 | B95: -38 | C95: Increase administrative and general expenses for software rental expense | L95: ='SCHEDULE MJL-D11-1 to 6'!BG59 -> 0
A97: =1+A95 -> 49 | B97: -39 | C97: Increase administrative and general expense to utilize 2022 allocation factors. | L97: ='SCHEDULE MJL-D11-1 to 6'!BH59 -> 554
A99: =1+A97 -> 50 | B99: -40 | C99: Decrease in customer accounting expenses to reflect AMR cost savings. | L99: ='SCHEDULE MJL-D11-1 to 6'!BI59 -> -2373
A101: =1+A99 -> 51 | B101: -41 | C101: Decrease administrative and general expense to remove customer affordability study costs. | L101: ='SCHEDULE MJL-D11-1 to 6'!BJ59 -> -6274
A103: =1+A101 -> 52 | B103: -42 | C103: Eliminate renewable energy transition costs. | L103: ='SCHEDULE MJL-D11-1 to 6'!BK59 -> -3434
A105: =1+A103 -> 53 | B105: -43 | C105: Increase administrative and general expenses for electric costs allocated to gas. | L105: ='SCHEDULE MJL-D11-1 to 6'!BL59 -> 15
A107: =1+A105 -> 54 | B107: -44 | C107: Increase in operating and maintenance expense for customer convenience fees. | L107: ='SCHEDULE MJL-D11-1 to 6'!BM59 -> 3849
A109: =1+A107 -> 55 | B109: -45 | C109: Increase in administrative and general for an increase in cybersecurity costs. | L109: ='SCHEDULE MJL-D11-1 to 6'!BR59 -> 345
A111: =1+A109 -> 56 | B111: -46 | C111: Decrease in administrative and general for a decrease in software maintenance costs. | L111: ='SCHEDULE MJL-D11-1 to 6'!BS59 -> -277
A113: =1+A111 -> 57 | B113: -47 | C113: Increase in administrative and general and production for NRC fee annualization. | L113: ='SCHEDULE MJL-D11-1 to 6'!BT59 -> 377
A115: =1+A113 -> 58 | B115: -48 | C115: Increase in administrative and general for the sales and use tax audit findings. | L115: ='SCHEDULE MJL-D11-1 to 6'!BU59 -> 384
A117: =1+A115 -> 59 | B117: -49 | C117: Increase administrative and general expense for the EV incentive program. | L117: ='SCHEDULE MJL-D11-1 to 6'!BV59 -> 1
A119: =1+A117 -> 60 | B119: Total Pro Forma Adjustments to Electric Operating and Maintenance Expenses
L120: =SUM(L10:L119) -> 12190.5

Sheet SCHEDULE MJL-D12-1
A1: AMEREN MISSOURI
B2: DEPRECIATION & AMORTIZATION EXPENSE
B3: ='SCHEDULE MJL-D5'!A3 -> FOR THE TWELVE MONTHS ENDED MARCH 31, 2022
B4: ($000)
D6: TOTALS | F6: PRO FORMA
D7: PER | E7: PRO FORMA | F7: ELECTRIC
B8: LINE | C8: DESCRIPTION | D8: BOOKS | E8: ADJUSTMENTS(1) | F8: TOTALS
C9: (A) | D9: (B) | E9: (C) | F9: (D)
C11: DEPRECIATION EXPENSE:
B12: =1 -> 1 | C12: STEAM | D12: =ROUND('[1]Depreciation Pro Forma'!C13*0.001,0) -> 185282 | E12: =+'SCHEDULE MJL-D12-2'!E15+'SCHEDULE MJL-D12-2'!E28+'SCHEDULE MJL-D12-2'!E45 -> 30480 | F12: =SUM(D12:E12) -> 215762
B13: =1+B12 -> 2 | C13: NUCLEAR | D13: =ROUND('[1]Depreciation Pro Forma'!C14*0.001,0) -> 79981 | E13: =+'SCHEDULE MJL-D12-2'!E16+'SCHEDULE MJL-D12-2'!E29 -> 12480 | F13: 92461
B14: 3 | C14: CALLAWAY DECOMMISSIONING | D14: =ROUND('[1]Depreciation Pro Forma'!C15*0.001,0) -> 6759 | E14: 0 | F14: 6759
B15: 4 | C15: HYDRAULIC | D15: =ROUND('[1]Depreciation Pro Forma'!C16*0.001,0) -> 13115 | E15: =+'SCHEDULE MJL-D12-2'!E17+'SCHEDULE MJL-D12-2'!E30 -> 3450 | F15: 16565
B16: 5 | C16: OTHER | D16: =ROUND('[1]Depreciation Pro Forma'!C17*0.001,0) -> 68522 | E16: =+'SCHEDULE MJL-D12-2'!E18+'SCHEDULE MJL-D12-2'!E31 -> -2699 | F16: 65823
B17: 6 | C17: TRANSMISSION PLANT | D17: =ROUND('[1]Depreciation Pro Forma'!C18*0.001,0) -> 40737 | E17: =+'SCHEDULE MJL-D12-2'!E19+'SCHEDULE MJL-D12-2'!E32 -> 5957 | F17: 46694
B18: 7 | C18: DISTRIBUTION PLANT | D18: =ROUND('[1]Depreciation Pro Forma'!C19*0.001,0) -> 209517 | E18: =+'SCHEDULE MJL-D12-2'!E20+'SCHEDULE MJL-D12-2'!E33 -> 19699 | F18: 229216
B19: 8 | C19: GENERAL PLANT | D19: =ROUND('[1]Depreciation Pro Forma'!C20*0.001,0) -> 36499 | E19: =+'SCHEDULE MJL-D12-2'!E21+'SCHEDULE MJL-D12-2'!E34+'SCHEDULE MJL-D12-2'!E46 -> 10392 | F19: 46891
B20: 9 | C20: PISA | D20: =ROUND(SUM('[1]Depreciation Pro Forma'!C21:C23)*0.001,0) -> -60981 | E20: =+'SCHEDULE MJL-D12-2'!E39 -> 60981 | F20: 0
B21: 10 | C21: ICC DEPRECIATION | D21: =ROUND('[1]Depreciation Pro Forma'!C24*0.001,0) -> 0 | E21: =+'SCHEDULE MJL-D12-2'!E22 -> -1823 | F21: =SUM(D21:E21) -> -1823
B23: =1+B21 -> 11 | C23: TOTAL DEPRECIATION EXPENSE | D23: =SUM(D12:D22) -> 579431 | E23: =SUM(E12:E22) -> 138917 | F23: =SUM(F12:F22) -> 718348
C25: PLANT AMORTIZATION:
B26: =1+B23 -> 12 | C26: INTANGIBLE PLANT | D26: =ROUND(SUM('[1]Depreciation Pro Forma'!C29,'[1]Depreciation Pro Forma'!C33,'[1]Depreciation Pro Forma'!$C$34)*0.001,0) -> 80748 | E26: =+'SCHEDULE MJL-D12-2'!E23+'SCHEDULE MJL-D12-2'!E35 -> 7286 | F26: =SUM(D26:E26) -> 88034
B27: =1+B26 -> 13 | C27: HYDRAULIC PLANT | D27: =ROUND('[1]Depreciation Pro Forma'!C30*0.001,0) -> 756 | E27: 0 | F27: =SUM(D27:E27) -> 756
B28: =1+B27 -> 14 | C28: TRANSMISSION PLANT | D28: =ROUND('[1]Depreciation Pro Forma'!C31*0.001,0) -> 431 | E28: 0 | F28: =SUM(D28:E28) -> 431
B29: =1+B28 -> 15 | C29: GENERAL PLANT | D29: =ROUND('[1]Depreciation Pro Forma'!C32*0.001,0) -> 0 | E29: 0 | F29: =SUM(D29:E29) -> 0
B30: =1+B29 -> 16 | C30: PISA | D30: =ROUND(SUM('[1]Depreciation Pro Forma'!C35:C38)*0.001,0) -> -32983 | E30: =+'SCHEDULE MJL-D12-2'!E40 -> 32983 | F30: =SUM(D30:E30) -> 0
B32: =1+B30 -> 17 | C32: TOTAL PLANT AMORTIZATION | D32: =SUM(D26:D31) -> 48952 | E32: =SUM(E26:E31) -> 40269 | F32: =SUM(F26:F31) -> 89221
C34: MISC. AMORTIZATION:
B35: =1+B32 -> 18 | C35: CALLAWAY POST OPERATIONAL | D35: =ROUND('[1]Depreciation Pro Forma'!C43*0.001,0)+1 -> 3688 | E35: 0 | F35: =SUM(D35:E35) -> 3688
B36: =B35+1 -> 19 | C36: CALLAWAY LIFE EXTEN AMORT | D36: =ROUND('[1]Depreciation Pro Forma'!C44*0.001,0) -> 104 | E36: 0 | F36: 104
B37: 20 | C37: AMORT OF FUKUSHIMA STUDY COSTS | D37: =ROUND('[1]Depreciation Pro Forma'!C45*0.001,0) -> 93 | E37: 0 | F37: 93
B38: 21 | C38: SIOUX SCRUBBER CONSTRUCTION ACCOUNTING | D38: =ROUND(SUM('[1]Depreciation Pro Forma'!C46:C49)*0.001,0) -> 1196 | E38: ='SCHEDULE MJL-D12-2'!E49 -> 1341 | F38: 2537
B39: 22 | C39: AMORT OF STORM TRACKERS | D39: =ROUND(SUM('[1]Depreciation Pro Forma'!C50:C52)*0.001,0) -> -519 | E39: ='SCHEDULE MJL-D12-2'!E52 -> 519 | F39: 0
B40: 23 | C40: CUSTOMER AFFORDABILITY STUDY | D40: =ROUND(SUM('[1]Depreciation Pro Forma'!C56)*0.001,0) -> 0 | E40: ='SCHEDULE MJL-D12-2'!E58 -> 1926 | F40: 1926
B41: 24 | C41: AMORT. OF ENERGY EFFICIENCY REG ASSETS AND MEEIA ORDERED ADJUSTMENTS | D41: =ROUND(SUM('[1]Depreciation Pro Forma'!C57:C66)*0.001,0)+ROUND(SUM('[1]Depreciation Pro Forma'!C83)*0.001,0) -> 17440 | E41: ='SCHEDULE MJL-D12-2'!E55 -> -17438 | F41: =SUM(D41:E41) -> 2
B42: 25 | C42: AMORT OF LOW INCOME SURCHARGE | D42: =ROUND('[1]Depreciation Pro Forma'!C67*0.001,0) -> 1083 | E42: =+'SCHEDULE MJL-D12-2'!E60 -> 917 | F42: 2000
B43: 26 | C43: AMORT OF EXTENDED REGULATORY ITEMS | D43: =ROUND(SUM('[1]Depreciation Pro Forma'!C68:C70)*0.001,0) -> -4417 | E43: ='SCHEDULE MJL-D12-2'!E62 -> 3345 | F43: -1072
B44: 27 | C44: PISA AMORTIZATION | D44: =ROUND(SUM('[1]Depreciation Pro Forma'!C74:C76)*0.001,0) -> 0 | E44: ='SCHEDULE MJL-D12-2'!E64 -> 20497 | F44: =SUM(D44:E44) -> 20497
B45: =B44+1 -> 28 | C45: EXCESS DEFERRED TRACKER AMORTIZATION | D45: =ROUND(SUM('[1]Depreciation Pro Forma'!C78:C80)*0.001,0) -> 5027 | E45: =+'SCHEDULE MJL-D12-2'!E66 -> -10829 | F45: -5802
B46: 29 | C46: RESRAM ADJUSTMENTS | D46: =ROUND(SUM('[1]Depreciation Pro Forma'!C84:C91)*0.001,0) -> 5475 | E46: =+'SCHEDULE MJL-D12-2'!E68 -> -5475 | F46: 0
B47: 30 | C47: CHARGE AHEAD CORRIDOR | D47: =ROUND(SUM('[1]Depreciation Pro Forma'!C92:C93)*0.001,0) -> 51 | E47: =+'SCHEDULE MJL-D12-2'!E70 -> 953 | F47: 1004
B48: 31 | C48: FERC ROE CASE AMORTIZATION | D48: =ROUND('[1]Depreciation Pro Forma'!C95*0.001,0) -> 0 | E48: ='SCHEDULE MJL-D12-2'!E72 -> -760 | F48: -760
B49: 32 | C49: EQUITY ISSUANCE COST AMORTIZATION | D49: =ROUND(SUM('[1]Depreciation Pro Forma'!C98:C99)*0.001,0) -> 0 | E49: ='SCHEDULE MJL-D12-2'!E76 -> 1782 | F49: 1782
B50: 33 | C50: MERAMEC RETIREMENT | D50: =ROUND(SUM('[1]Depreciation Pro Forma'!C100:C101)*0.001,0) -> -5077 | E50: ='SCHEDULE MJL-D12-2'!E78 -> 17260 | F50: 12183
B51: 34 | C51: COVID AAO | D51: =ROUND('[1]Depreciation Pro Forma'!C102*0.001,0)+ROUND('[1]Depreciation Pro Forma'!$C$103*0.001,0) -> 566 | E51: =+'SCHEDULE MJL-D12-2'!E74-1 -> 1180 | F51: 1746
B52: 35 | C52: CRITICAL NEEDS LOW INCOME PROGRAM | D52: =ROUND('[1]Depreciation Pro Forma'!C104*0.001,0) -> 21 | E52: =+'SCHEDULE MJL-D12-2'!E80 -> 229 | F52: 250
B53: 36 | C53: REHOUSING PILOT LOW INCOME PROGRAM | D53: =ROUND('[1]Depreciation Pro Forma'!C105*0.001,0) -> 21 | E53: =+'SCHEDULE MJL-D12-2'!E82 -> 229 | F53: 250
B54: 37 | C54: TOTAL MISC AMORTIZATION | D54: =SUM(D35:D53) -> 24752 | E54: =SUM(E35:E53) -> 15676 | F54: =SUM(F35:F53) -> 40428
B56: =1+B54 -> 38 | C56: TOTAL DEPR & AMORTIZATION EXPENSE | D56: =+D23+D32+D54 -> 653135 | E56: =+E23+E32+E54 -> 194862 | F56: =+F23+F32+F54 -> 847997
B58: =1+B56 -> 39 | C58: (1) See SCHEDULE MJL-D12-2 for explanation of the pro forma adjustments.

Sheet SCHEDULE MJL-D14
A1: AMEREN MISSOURI
A2: ="TOTAL ELECTRIC INCOME TAXES AT THE PROPOSED RETURN " & 'SCHEDULE MJL-D5'!A3 -> TOTAL ELECTRIC INCOME TAXES AT THE PROPOSED RETURN FOR THE TWELVE MONTHS ENDED MARCH 31, 2022
A3: ($000)
E6: TOTAL
A7: LINE | C7: DESCRIPTION | E7: ELECTRIC
C8: (A) | D8: (B) | E8: (C)
A10: 1 | C10: TOTAL ELECTRIC NET INCOME FROM OPERATIONS | E10: =ROUND([1]IncomeTaxClaimed!$E$8*0.001,0) -> 833991
C12: ADD
A13: =1+A10 -> 2 | C13: CURRENT INCOME TAXES | E13: =ROUND([1]IncomeTaxClaimed!$E$12*0.001,0)+1 -> 94293
A14: =1+A13 -> 3 | C14: DEFERRED INCOME TAXES
A15: =1+A14 -> 4 | C15: DEFERRED INCOME TAX EXPENSE | E15: =ROUND([1]IncomeTaxClaimed!$E$14*0.001,0) -> -84756
A16: =1+A15 -> 5 | C16: I.T.C. AMORTIZATION | E16: =ROUND([1]IncomeTaxClaimed!$E$15*0.001,0) -> -4125
A18: =1+A16 -> 6 | C18: TOTAL ELECTRIC NET INCOME BEFORE INCOME TAX | E18: =SUM(E10:E16) -> 839403
C20: ADDITIONS TO NET INCOME BEFORE INCOME TAX
A21: =1+A18 -> 7 | C21: BOOK DEPRECIATION | E21: =ROUND([1]IncomeTaxClaimed!$E$20*0.001,0) -> 718348
A22: =1+A21 -> 8 | C22: BOOK DEPRECIATION CHARGED TO O&M | E22: =ROUND([1]IncomeTaxClaimed!$E$21*0.001,0) -> 3857
A23: 9 | C23: INTANGIBLE AMORTIZATIONS | E23: =ROUND([1]IncomeTaxClaimed!$E$22*0.001,0) -> 88034
A24: 10 | C24: HYDRAULIC AMORTIZATIONS | E24: =ROUND([1]IncomeTaxClaimed!$E$23*0.001,0) -> 756
A25: 11 | C25: TRANSMISSION AMORTIZATIONS | E25: =ROUND([1]IncomeTaxClaimed!$E$24*0.001,0) -> 431
A26: 12 | C26: CALLAWAY POST OPERATIONAL COSTS | E26: =ROUND([1]IncomeTaxClaimed!$E$25*0.001,0) -> 3687
A27: 13 | C27: NONDEDUCTIBLE PARKING LOT EXPENSE | E27: =ROUND([1]IncomeTaxClaimed!$E$26*0.001,0)-1 -> 421
A29: =1+A27 -> 14 | C29: TOTAL ADDITIONS | E29: =SUM(E21:E28) -> 815534
C31: SUBTRACTIONS TO NET INCOME BEFORE INCOME TAX
A32: =1+A29 -> 15 | C32: INTEREST ON DEBT (1) | E32: =ROUND([1]IncomeTaxClaimed!$E$31*0.001,0)-1 -> 215983
A33: =1+A32 -> 16 | C33: TAX STRAIGHT LINE | E33: =ROUND([1]IncomeTaxClaimed!$E$32*0.001,0) -> 798151
A34: =1+A33 -> 17 | C34: PRODUCTION DEDUCTION | E34: =ROUND([1]IncomeTaxClaimed!$E$33*0.001,0) -> 0
A35: =1+A34 -> 18 | C35: NUCLEAR DECOMMISSIONING | E35: =ROUND([1]IncomeTaxClaimed!$E$34*0.001,0) -> 6759
A36: =1+A33 -> 17 | C36: RESTRICTED STOCK UNITS | E36: =ROUND([1]IncomeTaxClaimed!$E$35*0.001,0) -> 616
A37: =1+A34 -> 18 | C37: PREFERRED DIVIDEND DEDUCTION | E37: =ROUND([1]IncomeTaxClaimed!$E$36*0.001,0) -> 415
A39: =1+A37 -> 19 | C39: TOTAL SUBTRACTIONS | E39: =SUM(E32:E37) -> 1021924
A41: =1+A39 -> 20 | C41: TOTAL ELECTRIC NET TAXABLE INCOME | E41: =E18+E29-E39 -> 633013
C43: FEDERAL INCOME TAX
A44: =1+A41 -> 21 | C44: NET TAXABLE INCOME | E44: =E41 -> 633013
A45: =1+A44 -> 22 | C45: DEDUCT MISSOURI INCOME TAX | E45: =ROUND([1]IncomeTaxClaimed!$E$46*0.001,0) -> 23910
A46: =1+A45 -> 23 | C46: DEDUCT CITY EARNINGS TAX | E46: =+E69 -> 138
A47: =1+A46 -> 24 | C47: FEDERAL TAXABLE INCOME | E47: =E44-E45-E46 -> 608965
A49: =1+A47 -> 25 | C49: =" FEDERAL INCOME TAX" -> FEDERAL INCOME TAX | D49: =[1]IncomeTaxClaimed!$D$50 -> 0.21 | E49: =ROUND(E47*D49,0) -> 127883
C50: LESS TAX CREDITS
A51: =1+A49 -> 26 | C51: RESEARCH CREDIT | E51: =ROUND([1]IncomeTaxClaimed!$E$52*0.001,0) -> 1054
A52: =1+A51 -> 27 | C52: PRODUCTION TAX CREDIT | E52: =ROUND([1]IncomeTaxClaimed!$E$53*0.001,0)+1 -> 56586
A53: =1+A52 -> 28 | C53: TOTAL ELECTRIC FEDERAL INCOME TAX | E53: =+E49-E51-E52 -> 70243
C55: STATE INCOME TAXES
A56: =1+A53 -> 29 | C56: NET TAXABLE INCOME | E56: =E41 -> 633013
A57: =1+A56 -> 30 | C57: DEDUCT 50% OF FEDERAL INCOME TAX | E57: =ROUND(E53*0.5,0) -> 35122
A58: =1+A57 -> 31 | C58: DEDUCT CITY EARNINGS TAX | E58: =+E69 -> 138
A59: =1+A58 -> 32 | C59: MISSOURI TAXABLE INCOME | E59: =E56-E57-E58 -> 597753
A61: =1+A59 -> 33 | C61: TOTAL ELECTRIC MISSOURI INCOME TAX | D61: =[1]IncomeTaxClaimed!$D$63 -> 0.04 | E61: =ROUND(E59*D61,0)+1 -> 23911
C63: CITY EARNINGS TAX
A64: =1+A61 -> 34 | C64: NET TAXABLE INCOME | E64: =+E41 -> 633013
A65: =1+A64 -> 35 | C65: LESS TAX ADJUSTMENTS TO INCOME | E65: =ROUND([1]IncomeTaxClaimed!$E$67*0.001,0) -> -482664
A66: =1+A65 -> 36 | C66: CITY TAXABLE INCOME | E66: =+E64+E65 -> 150349
A67: =1+A66 -> 37 | C67: CITY EARNINGS TAX | D67: =[1]IncomeTaxClaimed!$D$69 -> 0.001175 | E67: =ROUND(E66*D67,0) -> 177
A68: =1+A67 -> 38 | C68: LESS: TAX CREDIT | E68: =ROUND([1]IncomeTaxClaimed!$E$70*0.001,0) -> 39
A69: =1+A68 -> 39 | C69: TOTAL ELECTRIC NET CITY EARNINGS TAX | E69: =+E67-E68 -> 138
A71: =1+A69 -> 40 | C71: TOTAL ELECTRIC CURRENT INCOME TAXES | E71: =E53+E61+E69 -> 94292
C73: DEFERRED INCOME TAXES:
A74: =1+A71 -> 41 | C74: DEFERRED INCOME TAX EXPENSE | E74: =+E15 -> -84756
A75: =1+A74 -> 42 | C75: I.T.C. AMORTIZATION | E75: =+E16 -> -4125
A76: =1+A75 -> 43 | C76: TOTAL ELECTRIC DEFERRED INCOME TAX | E76: =SUM(E74:E75) -> -88881
A78: =1+A76 -> 44 | C78: TOTAL ELECTRIC CURRENT & DEFERRED INCOME TAX | E78: =+E71+E76 -> 5411
A81: =1+A78 -> 45 | C81: (1) RATE BASE X EMBEDDED
A82: =1+A81 -> 46 | C82: COST OF DEBT. | D82: =[1]CostofCap!$I$12+[1]CostofCap!$I$14 -> 0.01861

Sheet SCHEDULE MJL-D12-2
A1: AMEREN MISSOURI
A2: ELECTRIC DEPRECIATION & AMORTIZATION EXPENSE PRO FORMA ADJUSTMENTS
A3: ='SCHEDULE MJL-D5'!A3 -> FOR THE TWELVE MONTHS ENDED MARCH 31, 2022
A4: ($000)
E7: PRO FORMA
A8: LINE | B8: ITEM NO. | C8: DESCRIPTION | E8: ADJUSTMENTS
B9: (A) | C9: (B) | E9: (C)
A11: 1 | B11: -1 | C11: To reflect the book depreciation annualized for the plant in service depreciable balances at March 31, 2022 and additions to plant in service from April 2022 through December 2022 to reflect the true-up.
A12: =1+A11 -> 2
A13: =1+A12 -> 3
A15: =1+A13 -> 4 | C15: Change in Depr. Exp. - Steam | E15: =ROUND(SUM('[1]Depreciation Pro Forma'!F13)*0.001,0) -> 38090
A16: =1+A15 -> 5 | C16: Change in Depr. Exp. - Nuclear | E16: =ROUND('[1]Depreciation Pro Forma'!F14*0.001,0) -> 1776
A17: 6 | C17: Change in Depr. Exp. - Hydro | E17: =ROUND('[1]Depreciation Pro Forma'!F16*0.001,0) -> 3096
A18: 7 | C18: Change in Depr. Exp. - Other Prod. | E18: =ROUND('[1]Depreciation Pro Forma'!F17*0.001,0) -> -1428
A19: 8 | C19: Change in Depr. Exp. - Transmission | E19: =ROUND('[1]Depreciation Pro Forma'!F18*0.001,0) -> -1233
A20: 9 | C20: Change in Depr. Exp. - Distribution | E20: =ROUND('[1]Depreciation Pro Forma'!F19*0.001,0) -> 7375
A21: 10 | C21: Change in Depr. Exp. - General Plant | E21: =ROUND('[1]Depreciation Pro Forma'!F20*0.001,0) -> 20679
A22: 11 | C22: Change in Depr. Exp. - Incentive Comp Capitalized | E22: =ROUND('[1]Depreciation Pro Forma'!F24*0.001,0) -> -1823
A23: 12 | C23: Change in Amor. Exp. - Intangible Plant | E23: =ROUND('[1]Depreciation Pro Forma'!$F$29*0.001,0)+ROUND('[1]Depreciation Pro Forma'!$F$33*0.001,0)+ROUND('[1]Depreciation Pro Forma'!$F$34*0.001,0) -> 7286
A24: 13 | C24: Total Increase in Depreciation Expense | E24: =SUM(E15:E23) -> 73818
A26: =1+A24 -> 14 | B26: -2 | C26: To reflect change in depreciation rates per testimony of Gannett Fleming
A28: =1+A26 -> 15 | C28: Increase in Depr. Exp. - Steam | E28: =ROUND('[1]Depreciation Pro Forma'!H13*0.001,0) -> -7502
A29: =1+A28 -> 16 | C29: Increase in Depr. Exp. - Nuclear | E29: =ROUND('[1]Depreciation Pro Forma'!H14*0.001,0) -> 10704
A30: 17 | C30: Increase in Depr. Exp. - Hydro | E30: =ROUND('[1]Depreciation Pro Forma'!H16*0.001,0) -> 354
A31: 18 | C31: Increase in Depr. Exp. - Other Prod. | E31: =ROUND('[1]Depreciation Pro Forma'!H17*0.001,0) -> -1271
A32: 19 | C32: Increase in Depr. Exp. - Transmission | E32: =ROUND('[1]Depreciation Pro Forma'!H18*0.001,0) -> 7190
A33: 20 | C33: Increase in Depr. Exp. - Distribution | E33: =ROUND('[1]Depreciation Pro Forma'!H19*0.001,0) -> 12324
A34: 21 | C34: Increase in Depr. Exp. - General Plant | E34: =ROUND('[1]Depreciation Pro Forma'!H20*0.001,0) -> 2257
A35: 22 | C35: Increase in Amort. Exp. - Intangible Plant | E35: =ROUND('[1]Depreciation Pro Forma'!H29*0.001,0) -> 0
A36: 23 | C36: Total Increase in Depreciation Expense | E36: =SUM(E28:E35) -> 24056
A38: =1+A36 -> 24 | B38: -3 | C38: To eliminate PISA deferral
A39: =1+A38 -> 25 | C39: Depreciation | E39: =ROUND(SUM('[1]Depreciation Pro Forma'!F21:F23)*0.001,0) -> 60981
A40: 26 | C40: Amortization | E40: =ROUND(SUM('[1]Depreciation Pro Forma'!F35:F38)*0.001,0) -> 32983
A41: 27 | E41: =SUM(E39:E40) -> 93964
A43: =1+A41 -> 28 | B43: -4 | C43: To reduce depreciation expense charged to O&M
A45: =1+A43 -> 29 | C45: Decrease in Depr. Exp. - Steam | E45: =ROUND('[1]Depreciation Pro Forma'!I13*0.001,0) -> -108
A46: =1+A45 -> 30 | C46: Decrease in Depr. Exp. - General Plant | E46: =ROUND('[1]Depreciation Pro Forma'!I20*0.001,0) -> -12544
A47: =1+A46 -> 31 | C47: Total Decrease in Depreciation Expense | E47: =SUM(E45:E46) -> -12652
A49: =1+A47 -> 32 | B49: -5 | C49: To eliminate the amortizations of the Sioux Scrubber Construction Accounting | E49: =ROUND(SUM('[1]Depreciation Pro Forma'!F46:F49)*0.001,0) -> 1341
A50: =1+A49 -> 33 | C50: contra regulatory assets.
A52: =1+A50 -> 34 | B52: -6 | C52: To eliminate the amortization relating to expiring amortizations combined and netted at Adjustment 10. | E52: =ROUND(SUM('[1]Depreciation Pro Forma'!F52)*0.001,0) -> 519
A53: =1+A52 -> 35
A55: =1+A53 -> 36 | B55: -7 | C55: To eliminate the amortizations and deferrals made under the MEEIA Rider, including MEEIA ordered adjustments | E55: =ROUND(SUM('[1]Depreciation Pro Forma'!F62:F65)*0.001,0)+ROUND('[1]Depreciation Pro Forma'!F83*0.001,0)+2 -> -17438
A56: =1+A55 -> 37
A58: =1+A56 -> 38 | B58: -8 | C58: To reflect amortization of Customer Affordability Best Practices McKinsey | E58: =ROUND('[1]Depreciation Pro Forma'!F56*0.001,0) -> 1926
A60: =1+A58 -> 39 | B60: -9 | C60: To reflect annualization of amortization of Low Income Surcharge | E60: =ROUND('[1]Depreciation Pro Forma'!F67*0.001,0) -> 917
A62: =1+A60 -> 40 | B62: -10 | C62: To amortize Extended Regulatory Items | E62: =ROUND(SUM('[1]Depreciation Pro Forma'!F68:F70)*0.001,0) -> 3345
A64: =1+A62 -> 41 | B64: -11 | C64: To reflect amortization of PISA | E64: =ROUND(SUM('[1]Depreciation Pro Forma'!F74:F76)*0.001,0) -> 20497
A66: =1+A64 -> 42 | B66: -12 | C66: To elminate accumulation and reflect annualized amortization of Excess Deferred Tracker | E66: =ROUND(SUM('[1]Depreciation Pro Forma'!F78:F81)*0.001,0) -> -10829
A68: =1+A66 -> 43 | B68: -13 | C68: To eliminate RESRAM activity | E68: =ROUND(SUM('[1]Depreciation Pro Forma'!F84:F91)*0.001,0) -> -5475
A70: =1+A68 -> 44 | B70: -14 | C70: To reflect Charge Ahead Corridor amortization | E70: =ROUND(SUM('[1]Depreciation Pro Forma'!F92:F93)*0.001,0) -> 953
A72: =1+A70 -> 45 | B72: -15 | C72: To reflect amortization FERC ROE Case | E72: =ROUND(SUM('[1]Depreciation Pro Forma'!F95)*0.001,0) -> -760
A74: =1+A72 -> 46 | B74: -16 | C74: To reflect COVID AAO amortization | E74: =ROUND('[1]Depreciation Pro Forma'!F102*0.001,0)+ROUND('[1]Depreciation Pro Forma'!$F$103*0.001,0) -> 1181
A76: =1+A74 -> 47 | B76: -17 | C76: To elminate accumulation and to reflect annualized amortization of Equity Issuance Cost | E76: =ROUND(SUM('[1]Depreciation Pro Forma'!F98:F99)*0.001,0) -> 1782
A78: =1+A76 -> 48 | B78: -18 | C78: To elminate accumulation and reflect annualized amortization of Meramec Retirement Asset | E78: =ROUND(SUM('[1]Depreciation Pro Forma'!F100:F101)*0.001,0) -> 17260
A80: =1+A78 -> 49 | B80: -19 | C80: To annaulize amortization of Critical Needs Low Income Program | E80: =ROUND('[1]Depreciation Pro Forma'!F104*0.001,0) -> 229
A82: =1+A80 -> 50 | B82: -20 | C82: To annualize amortization of Rehousing Pilot Low Income Program | E82: =ROUND('[1]Depreciation Pro Forma'!F105*0.001,0) -> 229
A85: =1+A82 -> 51 | B85: TOTAL PRO FORMA ADJUSTMENTS: DEPRECIATION & AMORTIZATION | E85: =SUM(E24,E36,E41,E47:E83) -> 194863

Sheet SCHEDULE MJL-D13-1
B1: AMEREN MISSOURI
B2: TAXES OTHER THAN INCOME TAXES
B3: ='SCHEDULE MJL-D5'!A3 -> FOR THE TWELVE MONTHS ENDED MARCH 31, 2022
B4: ($000)
E6: TOTAL | G6: PRO FORMA
E7: PER | F7: PRO FORMA | G7: ELECTRIC
B8: LINE | C8: DESCRIPTION | E8: BOOKS | F8: ADJUSTMENTS(1) | G8: TOTALS
C9: (A) | E9: (B) | F9: (C) | G9: (D)
C11: PAYROLL TAXES
B12: 1 | C12: F.I.C.A. | D12: 165021 | E12: =ROUND([1]OtherTax!C10*0.001,0) -> 20089 | F12: =ROUND(SUM([1]OtherTax!D10:H10)*0.001,0) -> 997 | G12: =E12+F12 -> 21086
B13: =1+B12 -> 2 | C13: FEDERAL UNEMPLOYMENT | E13: =ROUND([1]OtherTax!C11*0.001,0) -> 180 | F13: =ROUND(SUM([1]OtherTax!D11:H11)*0.001,0) -> 0 | G13: =E13+F13 -> 180
B14: =1+B13 -> 3 | C14: MISSOURI UNEMPLOYMENT | E14: =ROUND([1]OtherTax!C12*0.001,0) -> -2 | F14: =ROUND(SUM([1]OtherTax!D12:H12)*0.001,0) -> 0 | G14: =E14+F14 -> -2
B15: =1+B14 -> 4 | C15: ILLINOIS UNEMPLOYMENT | E15: =ROUND([1]OtherTax!C13*0.001,0) -> 39 | F15: =ROUND(SUM([1]OtherTax!D13:H13)*0.001,0) -> 0 | G15: 39
B16: =1+B15 -> 5 | C16: IOWA UNEMPLOYMENT | E16: =ROUND([1]OtherTax!C14*0.001,0)+1 -> 6 | F16: =ROUND(SUM([1]OtherTax!D14:H14)*0.001,0) -> 0 | G16: 6
B17: =1+B16 -> 6 | C17: OTHER STATES UNEMPLOYMENT | E17: =ROUND([1]OtherTax!C15*0.001,0) -> 0 | F17: =ROUND(SUM([1]OtherTax!D15:H15)*0.001,0) -> 0 | G17: 0
B18: =1+B17 -> 7 | C18: ST. LOUIS EMPLOYMENT TAX | E18: =ROUND([1]OtherTax!C16*0.001,0) -> 449 | F18: =ROUND(SUM([1]OtherTax!D16:H16)*0.001,0) -> 0 | G18: 449
B19: =1+B18 -> 8 | C19: TOTAL PAYROLL TAXES | E19: =SUM(E12:E18) -> 20761 | F19: =SUM(F12:F18) -> 997 | G19: =SUM(G12:G18) -> 21758
C21: R.E., P.P. & CORP FRANCHISE
B22: =1+B19 -> 9 | C22: MISSOURI R.E., & P.P. | D22: 685910 | E22: =ROUND([1]OtherTax!C20*0.001,0) -> 167555 | F22: =ROUND(SUM([1]OtherTax!D20:H20)*0.001,0) -> 3230 | G22: =SUM(E22:F22) -> 170785
B23: =1+B22 -> 10 | C23: ILLINOIS R.E., & P.P. | E23: =ROUND([1]OtherTax!C21*0.001,0) -> 3999 | F23: =ROUND(SUM([1]OtherTax!D21:H21)*0.001,0) -> 72 | G23: 4071
B24: 11 | C24: IOWA R.E., & P.P. | E24: =ROUND([1]OtherTax!C22*0.001,0) -> 1457 | F24: =ROUND(SUM([1]OtherTax!D22:H22)*0.001,0) -> 13 | G24: 1470
B25: 12 | C25: OTHER STATES R.E. & P.P. | E25: =ROUND([1]OtherTax!C23*0.001,0) -> 25 | F25: =ROUND(SUM([1]OtherTax!D23:H23)*0.001,0) -> 8 | G25: 33
B26: 13 | C26: R.E. TAXES CAPITALIZED | E26: =ROUND([1]OtherTax!C24*0.001,0) -> -4044 | F26: =ROUND(SUM([1]OtherTax!D24:H24)*0.001,0) -> 0 | G26: -4044
B27: 14 | C27: TRANSFER TO GAS | D27: 762523 | E27: =ROUND([1]OtherTax!C25*0.001,0) -> -189 | F27: =ROUND(SUM([1]OtherTax!D25:H25)*0.001,0) -> 0 | G27: -189
B28: 15 | C28: TRANSFER TO NON UTILITY | E28: =ROUND([1]OtherTax!C26*0.001,0) -> -85 | F28: =ROUND(SUM([1]OtherTax!D26:H26)*0.001,0) -> 0 | G28: -85
B29: =1+B28 -> 16 | C29: TOTAL R.E., P.P. & CORP FRANCHISE | D29: =SUM(D22:D27) -> 1448433 | E29: =SUM(E22:E28) -> 168718 | F29: =SUM(F22:F28) -> 3323 | G29: 172041
B31: =1+B29 -> 17 | C31: MUNICIPAL GROSS RECEIPTS | E31: =ROUND([1]OtherTax!C29*0.001,0) -> 145597 | F31: =ROUND(SUM([1]OtherTax!D29:H29)*0.001,0) -> -145597 | G31: =SUM(E31:F31) -> 0
C33: MISCELLANEOUS
B34: =1+B31 -> 18 | C34: MISSOURI CORP FRANCHISE | E34: =ROUND([1]OtherTax!C32*0.001,0) -> 0 | F34: =ROUND(SUM([1]OtherTax!D32:H32)*0.001,0) -> 0 | G34: =E34+F34 -> 0
B35: =1+B34 -> 19 | C35: ILLINOIS CORP FRANCHISE | E35: =ROUND([1]OtherTax!C33*0.001,0) -> 136 | F35: =ROUND(SUM([1]OtherTax!D33:H33)*0.001,0) -> 0 | G35: =E35+F35 -> 136
B36: 20 | C36: IOWA CORP FRANCHISE | E36: =ROUND([1]OtherTax!C34*0.001,0) -> 0 | F36: =ROUND(SUM([1]OtherTax!D34:H34)*0.001,0) -> 0
B37: 21 | C37: FED. EXCISE TAX-HEAVY VEH. USE TAX | E37: =ROUND([1]OtherTax!C35*0.001,0) -> 24 | F37: =ROUND(SUM([1]OtherTax!D35:H35)*0.001,0) -> 0 | G37: =E37+F37 -> 24
B38: 22 | C38: ST. LOUIS EARNINGS | E38: =ROUND([1]OtherTax!C36*0.001,0) -> 0 | F38: =ROUND(SUM([1]OtherTax!D36:H36)*0.001,0) -> 0
B39: 23 | C39: MO. EXCISE - NEIL INS. PREM. | D39: 107 | E39: =ROUND([1]OtherTax!C37*0.001,0) -> 0 | F39: =ROUND(SUM([1]OtherTax!D37:H37)*0.001,0) -> 0 | G39: =E39+F39 -> 0
B40: 24 | C40: MISCELLANEOUS | E40: =ROUND([1]OtherTax!C38*0.001,0) -> 113 | F40: =ROUND(SUM([1]OtherTax!D38:H38)*0.001,0) -> 0 | G40: =E40+F40 -> 113
B41: 25 | C41: TOTAL MISCELLANEOUS | E41: =SUM(E34:E40) -> 273 | F41: =SUM(F34:F40) -> 0 | G41: =SUM(G34:G40) -> 273
B44: =1+B41 -> 26 | C44: TOTAL TAXES OTHER THAN INCOME TAXES | E44: =E19+E29+E31+E41 -> 335349 | F44: =F19+F29+F31+F41 -> -141277 | G44: =G19+G29+G31+G41 -> 194072
B46: =1+B44 -> 27 | C46: (1) See SCHEDULE MJL-D13-2 for explanation of the pro forma adjustments.

Sheet SCHEDULE MJL-D13-2
A1: AMEREN MISSOURI
A2: TAXES OTHER THAN INCOME
A3: PRO FORMA ADJUSTMENTS
A4: ='SCHEDULE MJL-D5'!A3 -> FOR THE TWELVE MONTHS ENDED MARCH 31, 2022
A5: ($000)
K7: PRO FORMA
A8: LINE | B8: ITEM NO. | C8: DESCRIPTION | K8: AMOUNT
B9: (A) | C9: (B) | K9: (C)
A11: 1 | B11: -1 | C11: Increase F.I.C.A. taxes to reflect the pro forma wage adjustments. | K11: =ROUND([1]OtherTax!$D$10*0.001,0) -> 997
A13: 2 | B13: -2 | C13: Property tax true-up adjustment. | K13: =ROUND(SUM([1]OtherTax!E20:E26)*0.001,0) -> 3625
A15: 3 | B15: -3 | C15: Eliminate the property taxes on future use plant, as this investment is excluded from rate base. | K15: =ROUND([1]OtherTax!$F$20*0.001,0) -> -302
A16: =1+A15 -> 4
A18: =1+A16 -> 5 | B18: -4 | C18: Eliminate the gross receipts tax as they are a pass through tax. | K18: =ROUND([1]OtherTax!$G$29*0.001,0) -> -145597
A20: =1+A18 -> 6 | C20: Total Pro Forma Adjustments to Taxes Other Than Income | K20: =SUM(K10:K19) -> -141277

Sheet SCHEDULE MJL-D15
B1: AMEREN MISSOURI
B2: TOTAL ELECTRIC NET ORIGINAL COST RATE BASE AND REVENUE REQUIREMENT
B3: ='SCHEDULE MJL-D5'!A3 -> FOR THE TWELVE MONTHS ENDED MARCH 31, 2022
B4: ($000)
F6: TOTAL
F7: ELECTRIC
B8: LINE | C8: DESCRIPTION | D8: REFERENCE | F8: AMOUNT
C9: (A) | D9: (B) | F9: (C)
C11: A. TOTAL ELECTRIC NET ORIGINAL COST RATE BASE
B13: 1 | C13: ORIGINAL COST OF PLANT IN SERVICE | D13: SCHEDULE MJL-D1 | F13: =+'SCHEDULE MJL-D1'!G34 -> 22883458
B14: =1+B13 -> 2 | C14: LESS: RESERVES FOR DEPRECIATION & AMORTIZATION | D14: SCHEDULE MJL-D2 | F14: =+'SCHEDULE MJL-D2'!G34 -> 9221601
B15: =1+B14 -> 3 | C15: NET ORIGINAL COST OF PLANT | F15: =F13-F14 -> 13661857
B16: 4 | C16: AVERAGE FUEL AND MATERIALS AND SUPPLIES | D16: SCHEDULE MJL-D3 | F16: =+'SCHEDULE MJL-D3'!F23 -> 567950
B17: 5 | C17: AVERAGE PREPAYMENTS | D17: SCHEDULE MJL-D4 | F17: =+'SCHEDULE MJL-D4'!G24 -> 16327
B18: 6 | C18: CASH WORKING CAPITAL (LEAD/LAG) | D18: SCHEDULE MJL-D5 | F18: ='SCHEDULE MJL-D5'!J47 -> -15778
B19: 7 | C19: FEDERAL INCOME TAX CASH REQUIREMENT | D19: SCHEDULE MJL-D6 | F19: ='SCHEDULE MJL-D6'!J14 -> -189
B20: 8 | C20: STATE INCOME TAX CASH REQUIREMENT | D20: SCHEDULE MJL-D6 | F20: ='SCHEDULE MJL-D6'!J16 -> -64
B21: 9 | C21: CITY EARNINGS TAX CASH REQUIREMENT | D21: SCHEDULE MJL-D6 | F21: ='SCHEDULE MJL-D6'!J22 -> -89
B22: =1+B21 -> 10 | C22: INTEREST EXPENSE CASH REQUIREMENT | D22: SCHEDULE MJL-D6 | F22: ='SCHEDULE MJL-D6'!J24 -> -32161
B23: =1+B22 -> 11 | C23: INDIANA STATE TAX OFFSET | D23: SCHEDULE MJL-D6 | F23: ='SCHEDULE MJL-D6'!J18 -> 0
B24: =1+B23 -> 12 | C24: IOWA STATE TAX OFFSET | D24: SCHEDULE MJL-D6 | F24: ='SCHEDULE MJL-D6'!J20 -> 0
B25: =1+B24 -> 13 | C25: AVERAGE CUSTOMER ADVANCES FOR CONSTRUCTION | D25: SCHEDULE MJL-D7 | F25: ='SCHEDULE MJL-D7'!E13 -> -546
B26: 14 | C26: AVERAGE CUSTOMER DEPOSITS | D26: SCHEDULE MJL-D7 | F26: ='SCHEDULE MJL-D7'!E16 -> -18816
B27: =1+B26 -> 15 | C27: PENSION TRACKER REG ASSET | D27: SCHEDULE MJL-D8 | F27: =+'SCHEDULE MJL-D8'!H15 -> -29516
B28: =1+B27 -> 16 | C28: OPEB TRACKER REG LIABILITY | D28: SCHEDULE MJL-D8 | F28: =+'SCHEDULE MJL-D8'!H18 -> -10163
B29: =1+B28 -> 17 | C29: PAYS REGULATORY ASSET | D29: SCHEDULE MJL-D8 | F29: =+'SCHEDULE MJL-D8'!H21 -> 1861
B30: =1+B29 -> 18 | C30: PISA REGULATORY ASSET | D30: SCHEDULE MJL-D8 | F30: =+'SCHEDULE MJL-D8'!H24 -> 394572
B31: 19 | C31: MERAMEC REGULATORY ASSET | D31: SCHEDULE MJL-D8 | F31: ='SCHEDULE MJL-D8'!H27 -> 38581
B32: 20 | C32: UNDER COLLECT AMORTIZATIONS IN RATE BASE | D32: SCHEDULE MJL-D8 | F32: =+'SCHEDULE MJL-D8'!H30 -> 161
B33: =1+B32 -> 21 | C33: ACCUMULATED DEFERRED INCOME TAXES | D33: SCHEDULE MJL-D9 | F33: =+'SCHEDULE MJL-D9'!H21 -> -2968208
B35: =1+B33 -> 22 | C35: TOTAL ELECTRIC NET ORIGINAL COST RATE BASE | F35: =SUM(F15:F33) -> 11605779
C37: B. TOTAL ELECTRIC REVENUE REQUIREMENT
C39: TOTAL ELECTRIC OPERATING EXPENSES:
B40: =1+B35 -> 23 | C40: PRODUCTION | D40: SCHEDULE MJL-11-1 | F40: =+'SCHEDULE MJL-D11-1 to 6'!BY22 -> 1240902
B41: =1+B40 -> 24 | C41: TRANSMISSION | D41: SCHEDULE MJL-11-1 | F41: =+'SCHEDULE MJL-D11-1 to 6'!BY27 -> 112941
B42: =1+B41 -> 25 | C42: REGIONAL MARKET EXPENSES | D42: SCHEDULE MJL-11-1 | F42: =+'SCHEDULE MJL-D11-1 to 6'!BY32 -> 6924
B43: =1+B42 -> 26 | C43: DISTRIBUTION | D43: SCHEDULE MJL-11-1 | F43: =+'SCHEDULE MJL-D11-1 to 6'!BY37 -> 150410
B44: 27 | C44: CUSTOMER ACCOUNTS | D44: SCHEDULE MJL-11-1 | F44: =+'SCHEDULE MJL-D11-1 to 6'!BY42 -> 54222
B45: 28 | C45: CUSTOMER SERVICE | D45: SCHEDULE MJL-11-1 | F45: =+'SCHEDULE MJL-D11-1 to 6'!BY47 -> 15215.5
B46: 29 | C46: SALES | D46: SCHEDULE MJL-11-1 | F46: =+'SCHEDULE MJL-D11-1 to 6'!BY52 -> 491
B47: 30 | C47: ADMINISTRATIVE AND GENERAL | D47: SCHEDULE MJL-11-1 | F47: =+'SCHEDULE MJL-D11-1 to 6'!BY57 -> 165115
B48: 31 | C48: TOTAL ELECTRIC OPERATING EXPENSES | F48: =SUM(F40:F47) -> 1746220.5
B49: 32 | C49: DEPRECIATION AND AMORTIZATION | D49: SCHEDULE MJL-12-1 | F49: ='SCHEDULE MJL-D12-1'!F56 -> 847997
B50: 33 | C50: TAXES OTHER THAN INCOME TAXES | D50: SCHEDULE MJL-13-1 | F50: ='SCHEDULE MJL-D13-1'!G44 -> 194072
C51: INCOME TAXES-BASED ON PROPOSED RATE OF RETURN
B52: =1+B50 -> 34 | C52: FEDERAL | D52: SCHEDULE MJL-14 | F52: ='SCHEDULE MJL-D14'!E53 -> 70243
B53: =1+B52 -> 35 | C53: STATE | D53: SCHEDULE MJL-14 | F53: ='SCHEDULE MJL-D14'!E61 -> 23911
B54: =1+B53 -> 36 | C54: CITY EARNINGS | D54: SCHEDULE MJL-14 | F54: ='SCHEDULE MJL-D14'!E69 -> 138
B55: =1+B54 -> 37 | C55: TOTAL INCOME TAXES | F55: =SUM(F52:F54) -> 94292
C56: DEFERRED INCOME TAXES | E56: =+ROUND('[1]Depreciation Pro Forma'!$J$20*0.001,0)+ROUND('[1]Depreciation Pro Forma'!$J$21*0.001,0) -> 0
B57: =1+B55 -> 38 | C57: DEFERRED INCOME TAX EXPENSE | D57: SCHEDULE MJL-14 | F57: ='SCHEDULE MJL-D14'!E74 -> -84756
B58: =1+B57 -> 39 | C58: I.T.C. AMORTIZATION | D58: SCHEDULE MJL-14 | F58: ='SCHEDULE MJL-D14'!E75 -> -4125
B59: =1+B58 -> 40 | C59: TOTAL DEFERRED INCOME TAXES | F59: =SUM(F57:F58) -> -88881
B61: =1+B59 -> 41 | C61: ="RETURN (RATE BASE * "&TEXT(D61,"0.000%")&")" -> RETURN (RATE BASE * 7.186%) | D61: =[1]CostofCap!$I$20 -> 0.07186 | F61: =ROUND(D61*F35,0) -> 833991
B63: =1+B61 -> 42 | C63: TOTAL ELECTRIC REVENUE REQUIREMENT | F63: =+F48+F49+F50+F55+F59+F61 -> 3627691.5

Sheet SCHEDULE MJL-D16
A1: AMEREN MISSOURI
A2: ="INCREASE REQUIRED TO PRODUCE "& TEXT('SCHEDULE MJL-D15'!D61,"0.000%") &" RETURN ON " -> INCREASE REQUIRED TO PRODUCE 7.186% RETURN ON
A3: TOTAL ELECTRIC NET ORIGINAL COST RATE BASE
A4: ='SCHEDULE MJL-D5'!A3 -> FOR THE TWELVE MONTHS ENDED MARCH 31, 2022
E8: TOTAL
E9: ELECTRIC
A10: LINE | C10: DESCRIPTION | E10: AMOUNT
C11: (A) | E11: (B)
A13: 1 | C13: TOTAL ELECTRIC NET ORIGINAL COST RATE BASE | E13: ='SCHEDULE MJL-D15'!F35 -> 11605779
C15: TOTAL ELECTRIC REVENUE REQUIREMENT:
A16: =1+A13 -> 2 | C16: ="RETURN AT PROPOSED RATE ("&TEXT('SCHEDULE MJL-D15'!D61,"0.000%")&")" -> RETURN AT PROPOSED RATE (7.186%) | E16: ='SCHEDULE MJL-D15'!F61 -> 833991
A17: =1+A16 -> 3 | C17: OPERATING AND MAINTENANCE EXPENSES | E17: ='SCHEDULE MJL-D15'!F48 -> 1746220.5
A18: 4 | C18: DEPRECIATION AND AMORTIZATION | E18: ='SCHEDULE MJL-D15'!F49 -> 847997
A19: 5 | C19: TAXES OTHER THAN INCOME | E19: ='SCHEDULE MJL-D15'!F50 -> 194072
A20: 6 | C20: FEDERAL AND STATE INCOME AND CITY EARNINGS TAXES AT CLAIMED RETURN | E20: ='SCHEDULE MJL-D15'!F52+'SCHEDULE MJL-D15'!F53+'SCHEDULE MJL-D15'!F54 -> 94292
A21: 7 | C21: DEFERRED INCOME TAXES | E21: ='SCHEDULE MJL-D15'!F59 -> -88881
A22: 8 | C22: TOTAL ELECTRIC REVENUE REQUIREMENT | E22: =SUM(E16:E21) -> 3627691.5
A25: =1+A22 -> 9 | C25: PRO FORMA TOTAL ELECTRIC OPERATING REVENUE AT PRESENT RATES | E25: =+'SCHEDULE MJL-D10'!F26 -> 3312063
A27: =1+A25 -> 10 | C27: DEFICIENCY IN TOTAL ELECTRIC OPERATING REVENUE | E27: =E22-E25 -> 315628.5
F30: =+UPPER(C30) -> 

Sheet SCHEDULE MJL-D17
A1: AMEREN MISSOURI
A2: CALCULATION OF NET BASE ENERGY COST (BF)
A3: ='SCHEDULE MJL-D5'!A3 -> FOR THE TWELVE MONTHS ENDED MARCH 31, 2022
A9: LINE | C9: DESCRIPTION | E9: TOTAL | G9: SUMMER | I9: WINTER | K9: WINTER-2
C10: (A) | E10: (B) | G10: (D) | I10: (E) | K10: (F)
B12: A | C12: FUEL & PURCHASED POWER COSTS
C13: BASE LOAD
A14: =1 -> 1 | C14: FUEL FOR LOAD | E14: =G14+I14 -> 444586215.8 | G14: =SUM('[2]NBEC '!$F$12:$F$14) -> 157569000 | I14: =SUM('[2]NBEC '!$J$12:$J$14) -> 287017215.8 | K14: =E14-G14-I14 -> 0
A15: =1+A14 -> 2 | C15: FLY ASH (1) | E15: =G15+I15 -> -2163081.54 | G15: ='[2]NBEC '!$F$15 -> -749679 | I15: ='[2]NBEC '!$J$15 -> -1413402.54 | K15: 0
A16: =1+A15 -> 3 | C16: FIXED GAS SUPPLY COSTS FOR LOAD (2) | E16: =G16+I16 -> 7936238.89 | G16: ='[2]NBEC '!$F$17 -> 2848884 | I16: ='[2]NBEC '!$J$17 -> 5087354.89 | K16: 0
A17: 4 | C17: FUEL ADDITIVES (2) | E17: =G17+I17 -> 5598255.114 | G17: ='[2]NBEC '!$F$16 -> 2009614 | I17: ='[2]NBEC '!$J$16 -> 3588641.114 | K17: 0
A18: 5 | C18: PURCHASED POWER FOR LOAD | E18: =G18+I18 -> 50363269.31 | G18: ='[2]NBEC '!$F$18 -> 15792000 | I18: ='[2]NBEC '!$J$18 -> 34571269.31 | K18: 0
A20: =1+A18 -> 6 | C20: TOTAL BASE LOAD | E20: =SUM(E14:E18) -> 506320897.6 | G20: =SUM(G14:G18) -> 177469819 | I20: =SUM(I14:I18) -> 328851078.6 | K20: =SUM(K14:K18) -> 0
C22: OSS
A23: 7 | C23: FUEL FOR LOAD | E23: =G23+I23 -> 127476232.5 | G23: =SUM('[2]NBEC '!$F$22:$F$24) -> 53008000 | I23: =SUM('[2]NBEC '!$J$22:$J$24) -> 74468232.53
A24: 8 | C24: FLY ASH (1) | E24: =G24+I24 -> -620220 | G24: ='[2]NBEC '!$F$25 -> -214955 | I24: ='[2]NBEC '!$J$25 -> -405265
A25: 9 | C25: FIXED GAS SUPPLY COSTS FOR LOAD (2) | E25: =G25+I25 -> 2275558 | G25: ='[2]NBEC '!$F$27 -> 816861 | I25: ='[2]NBEC '!$J$27 -> 1458697
A26: 10 | C26: FUEL ADDITIVES (2) | E26: =G26+I26 -> 1605188 | G26: ='[2]NBEC '!$F$26 -> 576217 | I26: ='[2]NBEC '!$J$26 -> 1028971
A27: 11 | C27: PURCHASED POWER FOR LOAD | E27: =G27+I27 -> 0 | G27: ='[2]NBEC '!$F$28 -> 0 | I27: ='[2]NBEC '!$J$28 -> 0
A29: 12 | C29: TOTAL OSS | E29: =SUM(E23:E27) -> 130736758.5 | G29: =SUM(G23:G27) -> 54186123 | I29: =SUM(I23:I27) -> 76550635.53
A31: 13 | C31: TOTAL FUEL AND PURCHASED POWER | E31: =E20+E29 -> 637057656.1 | G31: =G20+G29 -> 231655942 | I31: =I20+I29 -> 405401714.1
B34: B | C34: TRANSMISSION COSTS AND REVENUES
A35: 14 | C35: TRANSMISSION BY OTHERS (ACCT. 565 @1.65%) (2) | E35: =G35+I35 -> 3697834.893 | G35: ='[2]NBEC '!$F$34 -> 1327523 | I35: ='[2]NBEC '!$J$34 -> 2370311.893
A36: 15 | C36: TRANMISSION REVENUES (ACC 456.1) (2) | E36: =G36+I36 -> -1474670.663 | G36: ='[2]NBEC '!$F$35 -> -529407 | I36: ='[2]NBEC '!$J$35 -> -945263.6625
A38: 16 | C38: TOTAL TRANSMISSION COSTS AND REVENUES | E38: =SUM(E35:E36) -> 2223164.23 | G38: =SUM(G35:G36) -> 798116 | I38: =SUM(I35:I36) -> 1425048.23
B41: C | C41: ADDITIONAL FUEL & PP COSTS
A42: 17 | C42: MISO DAY 2 EXCLUDING ADMIN (ACCT 555) (2) | E42: =G42+I42 -> 15283072.83 | G42: ='[2]NBEC '!$F$39 -> 5486189 | I42: ='[2]NBEC '!$J$39 -> 9796883.83 | K42: =E42-G42-I42 -> 0
A43: 18 | C43: COMMON BOUNDARY (2) | E43: 173045.09 | G43: ='[2]NBEC '!$F$40 -> 62118 | I43: ='[2]NBEC '!$J$40 -> 110927.09
A44: 19 | C44: CAPACITY EXPENSE (2) | E44: 218593605 | G44: ='[2]NBEC '!$F$41 -> 78468891 | I44: ='[2]NBEC '!$J$41 -> 140124714 | K44: =E44-G44-I44 -> 0
A45: 20 | C45: ANCILLARY SERVICES PURCHASED (ACCT. 555) (2) | E45: 3792292.99 | G45: ='[2]NBEC '!$F$42 -> 1361433 | I45: ='[2]NBEC '!$J$42 -> 2430859.99 | K45: 0
A46: 21 | C46: PJM EXCLUDING ADMIN (ACCT. 555) (2) | E46: 0 | G46: ='[2]NBEC '!$F$43 -> 0 | I46: ='[2]NBEC '!$J$43 -> 0 | K46: 0
A47: 22 | C47: REPLACEMENT POWER INSURANCE (ACC 925) (2) | E47: 687759.72 | G47: ='[2]NBEC '!$F$44 -> 246906 | I47: ='[2]NBEC '!$J$44 -> 440853.72
A49: 23 | C49: TOTAL ADDITIONAL FUEL & PP COSTS | E49: =SUM(E42:E47) -> 238529775.6 | G49: =SUM(G42:G47) -> 85625537 | I49: =SUM(I42:I47) -> 152904238.6 | K49: =SUM(K42:K46) -> 0
B52: D | C52: SALES
A53: =1+A49 -> 24 | C53: OFF-SYSTEM ENERGY SALES REVENUES (ACCT. 447) | E53: =G53+I53 -> 189830535.3 | G53: ='[2]NBEC '!$F$50 -> 60993000 | I53: ='[2]NBEC '!$J$50 -> 128837535.3 | K53: =E53-G53-I53 -> 0
A54: =1+A53 -> 25 | C54: MAKE WHOLE PAYMENT MARGINS (ACCT 447) (2) | E54: =G54+I54 -> 2666247 | G54: ='[2]NBEC '!$F$51 -> 957107 | I54: ='[2]NBEC '!$J$51 -> 1709140 | K54: 0
A55: =1+A54 -> 26 | C55: CAPACITY SALES REVENUES (ACCT. 447) (2) | E55: 228379369 | G55: ='[2]NBEC '!$F$52 -> 81981702 | I55: ='[2]NBEC '!$J$52 -> 146397667 | K55: 0
A56: =1+A55 -> 27 | C56: BILATERAL ENERGY SALES MARGINS (447) (2) | E56: 0 | G56: ='[2]NBEC '!$F$53 -> 0 | I56: ='[2]NBEC '!$J$53 -> 0
A57: =1+A56 -> 28 | C57: FINANCIAL SWAPS (ACCT 447) (2) | E57: 0 | G57: ='[2]NBEC '!$F$54 -> 0 | I57: ='[2]NBEC '!$J$54 -> 0 | K57: 0
A58: =1+A57 -> 29 | C58: ANCILLARY SERVICES REVENUE (ACCT. 447) (2) | E58: 6813374.14 | G58: ='[2]NBEC '!$F$55 -> 2445808 | I58: ='[2]NBEC '!$J$55 -> 4367566.14 | K58: 0
A60: =A58+1 -> 30 | C60: TOTAL SALES | E60: =SUM(E53:E59) -> 427689525.5 | G60: =SUM(G53:G59) -> 146377617 | I60: =SUM(I53:I59) -> 281311908.5 | K60: =SUM(K53:K59) -> 0
B62: E | C62: OTHER ADJUSTMENTS
A63: =A60+1 -> 31 | C63: REAL-TIME LOAD AND GENERATION DEVIATION (2) | E63: =G63+I63 -> 7674509 | G63: ='[2]NBEC '!$F$59 -> 2754931 | I63: ='[2]NBEC '!$J$59 -> 4919578
A65: =A63+1 -> 32 | C65: TOTAL OTHER ADJUSTMENTS | E65: =E63 -> 7674509 | G65: =G63 -> 2754931 | I65: =I63 -> 4919578
A67: =A65+1 -> 33 | B67: A + B + C - D - E | C67: NET BASE ENERGY COSTS | E67: =E31+E38+E49-E60-E65 -> 442446561.5 | G67: =G31+G38+G49-G60-G65 -> 168947047 | I67: =I31+I38+I49-I60-I65 -> 273499514.5 | K67: =K20+K49-K60 -> 0
C69: LOAD FORECAST (DELIVERED MWH) USED IN PROSYM RUN | E69: =SUM(#REF!) -> 
C71: NET BASE FUEL COSTS ($ PER MWH) | E71: =E67*1000/E69 -> 
C74: LOAD FORECAST AT GENERATION LEVEL* | E74: =SUM(#REF!) -> 
C75: * EXCLUDES TRANSMISSION LINE LOSSES
C77: NET BASE FUEL COSTS ($ PER MWH) AT GENERATION LEVEL | E77: =+E67*1000/E74 -> 
A79: =1+A67 -> 34 | C79: LOAD AT MISO CP NODE AMMO.UE (KWH) | E79: =G79+I79 -> 3.251018837e+10 | G79: ='[2]NBEC '!$F$68 -> 11670000000 | I79: ='[2]NBEC '!$J$68 -> 2.084018837e+10 | K79: =E79-G79-I79 -> 0
A81: =1+A79 -> 35 | C81: BASE FACTOR (BF) ($ PER MWH) | E81: =E67/E79*1000 -> 13.60947394 | G81: =G67/G79*1000 -> 14.47703916 | I81: =I67/I79*1000 -> 13.12365846 | K81: =K67/K79*1000 -> 
A83: =1+A81 -> 36 | C83: BASE FACTOR (BF) (CENTS PER KWH) | E83: =E81/10 -> 1.360947394 | G83: =G81/10 -> 1.447703916 | I83: =I81/10 -> 1.312365846 | K83: =K81/10 -> 
A85: =1+A83 -> 37 | B85: MONTHS IN EACH PERIOD:
A86: =1+A85 -> 38 | C86: SUMMER: JUNE THROUGH SEPTEMBER
A87: 39 | C87: WINTER: OCTOBER THROUGH MAY
A89: =A87+1 -> 40 | B89: -1 | C89: ALLOCATED BETWEEN SUMMER AND WINTERS BASED ON COAL FROM FUEL MODEL.
A90: =1+A89 -> 41 | B90: -2 | C90: ALLOCATED BETWEEN SUMMER AND WINTERS BASED ON LOAD.

Sheet SCHEDULE MJL-D18
A1: Ameren Missouri Electric Rate Case
A2: Cash Working Capital Requirement
A5: Line No. | C5: Description | E5: Revenue Lag | G5: Expense Lead | I5: Net Lag | K5: CWC Factor
C6: (A) | E6: (B) | G6: (C) | I6: (D) | K6: (E)
A8: 1 | C8: Pensions & Benefits | E8: 37.02 | G8: -15.7 | I8: =E8+G8 -> 21.32 | K8: =I8/365 -> 0.0584109589
A9: =A8+1 -> 2 | C9: Employee Benefits (Group Health & 401k) | E9: 37.02 | G9: -17.65 | I9: 19.37 | K9: =I9/365 -> 0.05306849315
A10: =A9+1 -> 3 | C10: Payroll and Withholdings | E10: 37.02 | G10: -10.9 | I10: 26.12 | K10: =I10/365 -> 0.07156164384
A11: 4 | C11: Payroll Taxes | E11: 37.02 | G11: -9.378521517 | I11: 27.64147848 | K11: 0.07573007804
A12: 5 | C12: Other Operations and Maintenance Expenses | E12: 37.02 | G12: -42.25037055 | I12: -5.230370548 | K12: -0.01432978232
A13: 6 | C13: Property/Real Estate Taxes | E13: 37.02 | G13: -183 | I13: -145.98 | K13: -0.3999452055
A14: 7 | C14: Missouri Sales Tax | E14: 37.02 | G14: -9.312952733 | I14: 27.70704727 | K14: 0.07590971854
A15: 8 | C15: Missouri and Iowa Use Tax | E15: 37.02 | G15: -76.2479442 | I15: -39.2279442 | K15: -0.1074738197
A16: 9 | C16: Illinois Use Tax | E16: 37.02 | G16: -35.7816893 | I16: =E16+G16 -> 1.238310698 | K16: =I16/365 -> 0.003392632049
A17: 10 | C17: Gross Receipts Taxes | E17: 24.27 | G17: -26.98580175 | I17: -2.715801753 | K17: -0.007440552747
A18: 11 | C18: Federal Income Tax | E18: 37.02 | G18: -38 | I18: -0.98 | K18: -0.002684931507
A19: 12 | C19: State Income Tax | E19: 37.02 | G19: -38 | I19: -0.98 | K19: -0.002684931507
A20: 13 | C20: St Louis Corporate Earnings Tax | E20: 37.02 | G20: -274.5 | I20: =E20+G20 -> -237.48 | K20: =I20/365 -> -0.650630137
A21: 14 | C21: Fuel - Nuclear | E21: 37.02 | G21: -15.20833333 | I21: =E21+G21 -> 21.81166667 | K21: =I21/365 -> 0.05975799087
A22: 15 | C22: Fuel - Coal | E22: 37.02 | G22: -14.43339818 | I22: =E22+G22 -> 22.58660182 | K22: =I22/365 -> 0.06188110087
A23: 16 | C23: Fuel - Oil | E23: 37.02 | G23: -14.68753918 | I23: =E23+G23 -> 22.33246082 | K23: =I23/365 -> 0.06118482415
A24: 17 | C24: Fuel - Gas | E24: 37.02 | G24: -40.72113375 | I24: =E24+G24 -> -3.701133745 | K24: =I24/365 -> -0.01014009245
A25: 18 | C25: Interest Expense | E25: 37.02 | G25: -91.36877139 | I25: -54.34877139 | K25: -0.1489007435
A26: 19 | C26: Uncollectible Expense | E26: 37.02 | G26: =-E26 -> -37.02 | I26: 0 | K26: 0
A27: 20 | C27: Purchased Power | E27: 37.02 | G27: -18.10028377 | I27: 18.91971623 | K27: 0.05183483898
A28: 21 | C28: Decommissioning Fees | E28: 37.02 | G28: -69.5 | I28: -32.48 | K28: -0.08898630137
A29: 22 | C29: Incentive Compensation | E29: 37.02 | G29: -250.8 | I29: -213.78 | K29: -0.5856986301
A30: 23 | C30: Fed Excise Heavy Use Tax | E30: 37.02 | G30: 125.5736117 | I30: 162.5936117 | K30: 0.4454619499
A31: 24 | C31: Self Procured Insurance Tax | E31: 37.02 | G31: -241.5 | I31: -204.48 | K31: -0.5602191781
A32: 25 | C32: Ohio Commercial Activity Tax | E32: 37.02 | G32: 50 | I32: 87.02 | K32: 0.2384109589
A33: 26 | C33: Corporate Franchise Tax | E33: 37.02 | G33: -233.192007 | I33: -196.172007 | K33: -0.5374575535
A34: 27 | C34: State of Indiana Corporate Income Tax | E34: 37.02 | G34: -14 | I34: 23.02 | K34: 0.06306849315
A35: 28 | C35: State of Iowa Corporate Income Tax | E35: 37.02 | G35: 77 | I35: 114.02 | K35: 0.3123835616
